Local authority department which incurred the expenditure,Service Division,Cost Centre,Summary of the Purpose of Expenditure,Expense Type,Expense Code,Detailed Expense Type,Date of Transaction,Transaction Number,Beneficiary,Merchant Category Number,Merchant Category,Gross Amount,VAT,Net Amount
Children and Young Peoples Services,Head of Education and Skills,071801,Selby Cottage Childcare Centre,Supplies and Services,304403,Equipment and Materials,01-Mar-2023,000010735041989,AMZNMktplace,5999,Other consumables,21.96,3.66,18.30
Children and Young Peoples Services,Head of Education and Skills,071801,Selby Cottage Childcare Centre,Supplies and Services,304403,Equipment and Materials,01-Mar-2023,000010735041989 - 1,AMZNMktplace,5999,Other consumables,8.01,,8.01
Children and Young Peoples Services,Head of Early Help Inclusion & Vulnerable Children.,085957,Secure Management,Supplies and Services,308011,Furniture,01-Mar-2023,000010735042301,AMZNMktplace,5999,Furniture repair and replacement,30.99,0.00,30.99
Neighbourhoods and Climate Change,Environmental Services,031275,E&D - Climate Change Investment,Supplies and Services,304403,Equipment and Materials,01-Mar-2023,000010735042659,AMZNMktplace,5999,Other consumables,34.80,5.80,29.00
Neighbourhoods and Climate Change,Environmental Services,031275,E&D - Climate Change Investment,Supplies and Services,304403,Equipment and Materials,01-Mar-2023,000010735042659 - 1,AMZNMktplace,5999,Other consumables,0.20,,0.20
Neighbourhoods and Climate Change,Environmental Services,031275,E&D - Climate Change Investment,Supplies and Services,304403,Equipment and Materials,01-Mar-2023,000010735042663,AMZNMktplace,5999,Other consumables,24.36,4.06,20.30
Neighbourhoods and Climate Change,Environmental Services,031275,E&D - Climate Change Investment,Supplies and Services,304403,Equipment and Materials,01-Mar-2023,000010735042663 - 1,AMZNMktplace,5999,Other consumables,0.14,,0.14
Regeneration Economy and Growth,Business Durham CL0850,030689,Inward Investment and Aftercare,Supplies and Services,336005,Advertising E336,01-Mar-2023,000010740592043,Google ADS6853017821,7311,Advertising other than for staff,44.43,0.00,44.43
Children and Young Peoples Services,Head of Childrens Social Care,085612,Families First Consett,Supplies and Services,364301,Grants to Voluntary Organisations,01-Mar-2023,000010740592045,ASDA GEORGE COM LEEDS,5411,Hardship,36.95,0.00,36.95
Children and Young Peoples Services,Head of Childrens Social Care,085612,Families First Consett,Supplies and Services,364301,Grants to Voluntary Organisations,01-Mar-2023,000010740592047,TU AT SAINSBURYS,5411,Hardship,21.95,0.00,21.95
Children and Young Peoples Services,Head of Childrens Social Care,085622,Families First Ferryhill,Supplies and Services,338045,Services,01-Mar-2023,000010740592049,HM PASSPORT OFFICE,9399,Legal expenses 338045,53.50,0.00,53.50
Children and Young Peoples Services,Head of Childrens Social Care,085622,Families First Ferryhill,Supplies and Services,338045,Services,01-Mar-2023,000010740592051,HM PASSPORT OFFICE,9399,Legal expenses 338045,53.50,0.00,53.50
Children and Young Peoples Services,Head of Childrens Social Care,085368,Children Looked After Team 5,Supplies and Services,338045,Services,01-Mar-2023,000010740592053,GEN REGISTER OFFICE,9399,Legal expenses 338045,11.00,0.00,11.00
Children and Young Peoples Services,Head of Childrens Social Care,085366,Children Looked After Team 3,Supplies and Services,338045,Services,01-Mar-2023,000010740592055,GEN REGISTER OFFICE,9399,Legal expenses 338045,11.00,0.00,11.00
Children and Young Peoples Services,Head of Childrens Social Care,085367,Children Looked After Team 4,Supplies and Services,338045,Services,01-Mar-2023,000010740592057,GEN REGISTER OFFICE,9399,Legal expenses 338045,22.00,0.00,22.00
Children and Young Peoples Services,Head of Education and Skills,071801,Selby Cottage Childcare Centre,Supplies and Services,304403,Equipment and Materials,01-Mar-2023,000010740592061,AMZNMktplace,5999,Other consumables,17.37,2.91,14.46
Children and Young Peoples Services,Head of Early Help Inclusion & Vulnerable Children.,085810,CDYJS - Interventions Team,Supplies and Services,324117,Provisions E324,01-Mar-2023,000010740592077,TESCO GIFT CARD,5411,Catering costs - provisions,50.00,0.00,50.00
Children and Young Peoples Services,Head of Education and Skills,075034,Youth Futures Foundation,Supplies and Services,364301,Grants to Voluntary Organisations,01-Mar-2023,000010740592087,WWW.GONORTHEAST.CO.UK,4111,Hardship,6.40,0.00,6.40
Children and Young Peoples Services,Head of Education and Skills,075034,Youth Futures Foundation,Supplies and Services,364301,Grants to Voluntary Organisations,01-Mar-2023,000010740592089,ARRIVA UK BUS,4131,Hardship,16.40,0.00,16.40
Children and Young Peoples Services,Head of Education and Skills,075034,Youth Futures Foundation,Supplies and Services,364301,Grants to Voluntary Organisations,01-Mar-2023,000010740592091,GATESHEAD COUNCIL INT,9399,Hardship,11.00,0.00,11.00
Children and Young Peoples Services,Head of Education and Skills,075034,Youth Futures Foundation,Supplies and Services,364301,Grants to Voluntary Organisations,01-Mar-2023,000010740592093,DRIVING LICENCE WEB,9399,Hardship,34.00,0.00,34.00
Children and Young Peoples Services,Head of Childrens Social Care,085342,16 Hickstead Rise (previously 9 Cedar Ave),Transport,235057,Public Transport,01-Mar-2023,000010740592095,TT2 LTD,4784,Staff travelling,3.80,0.00,3.80
Regeneration Economy and Growth,Culture Sport and Tourism,011056,AAP Funding - Sport & Leisure,Supplies and Services,304252,Equipment and Materials,01-Mar-2023,000010740592125,AMZNMKTPLACE AMAZON.CO,5999,Equipment-repairsserviceinsurance,8.99,1.50,7.49
Regeneration Economy and Growth,Culture Sport and Tourism,011056,AAP Funding - Sport & Leisure,Supplies and Services,304403,Equipment and Materials,01-Mar-2023,000010740592127,AMZNMKTPLACE AMAZON.CO,5999,Other consumables,16.99,2.83,14.16
Regeneration Economy and Growth,Culture Sport and Tourism,054820,Gala Theatre - Overheads,Supplies and Services,304252,Equipment and Materials,01-Mar-2023,000010740592131,AMZNMKTPLACE AMAZON.CO,5999,Equipment-repairsserviceinsurance,22.49,3.75,18.74
Regeneration Economy and Growth,Culture Sport and Tourism,054020,Barnard Castle Library,Supplies and Services,304252,Equipment and Materials,01-Mar-2023,000010740592135,AMZNMKTPLACE AMAZON.CO,5999,Equipment-repairsserviceinsurance,19.98,3.33,16.65
Regeneration Economy and Growth,Culture Sport and Tourism,054020,Barnard Castle Library,Supplies and Services,304403,Equipment and Materials,01-Mar-2023,000010740592137,AMZNMKTPLACE AMAZON.CO,5999,Other consumables,10.69,1.78,8.91
Regeneration Economy and Growth,Culture Sport and Tourism,011056,AAP Funding - Sport & Leisure,Supplies and Services,304252,Equipment and Materials,01-Mar-2023,000010740592139,AMZNMKTPLACE AMAZON.CO,5999,Equipment-repairsserviceinsurance,17.94,2.99,14.95
Regeneration Economy and Growth,Culture Sport and Tourism,054020,Barnard Castle Library,Supplies and Services,304252,Equipment and Materials,01-Mar-2023,000010740592139 - 1,AMZNMKTPLACE AMAZON.CO,5999,Equipment-repairsserviceinsurance,32.00,,32.00
Regeneration Economy and Growth,Culture Sport and Tourism,030712,VCD - Project Delivery,Supplies and Services,384199,Miscellaneous Expenses,01-Mar-2023,000010740592145,FACEBK P3QREN7RH2,7311,Other hired and contracted services,53.39,0.00,53.39
Children and Young Peoples Services,Head of Childrens Social Care,085332,Middlestone Moor CU,Supplies and Services,304403,Equipment and Materials,01-Mar-2023,000010740592149,AMZNMktplace,5999,Other consumables,12.20,2.03,10.17
Children and Young Peoples Services,Head of Childrens Social Care,085332,Middlestone Moor CU,Supplies and Services,304999,Equipment and Materials,01-Mar-2023,000010740592151,HOME BARGAINS,5251,Misc equipment tools and materials,77.98,0.00,77.98
Children and Young Peoples Services,Head of Childrens Social Care,085332,Middlestone Moor CU,Supplies and Services,324117,Provisions E324,01-Mar-2023,000010740592153,SAINSBURYS S/MKTS,5411,Catering costs - provisions,41.05,0.00,41.05
Regeneration Economy and Growth,Planning & Housing,031634,LOCAL LETTINGS AGENCY,Supplies and Services,324117,Provisions E324,01-Mar-2023,000010740592205,COUNTY HALL CANTEEN,9399,Catering costs - provisions,3.80,0.00,3.80
Children and Young Peoples Services,Head of Early Help Inclusion & Vulnerable Children.,088109,Dean Bank and Tudhoe Family Centre,Supplies and Services,384302,Miscellaneous Expenses,01-Mar-2023,000010740592257,AMZNMktplace,5999,Activity expenses,53.16,8.86,44.30
Children and Young Peoples Services,Head of Early Help Inclusion & Vulnerable Children.,088109,Dean Bank and Tudhoe Family Centre,Supplies and Services,384302,Miscellaneous Expenses,01-Mar-2023,000010740592257 - 1,AMZNMktplace,5999,Activity expenses,12.81,,12.81
Children and Young Peoples Services,Head of Early Help Inclusion & Vulnerable Children.,088109,Dean Bank and Tudhoe Family Centre,Supplies and Services,384302,Miscellaneous Expenses,01-Mar-2023,000010740592259,AMZNMktplace,5999,Activity expenses,13.99,0.00,13.99
Children and Young Peoples Services,Head of Early Help Inclusion & Vulnerable Children.,088109,Dean Bank and Tudhoe Family Centre,Supplies and Services,384237,Miscellaneous Expenses,01-Mar-2023,000010740592261,AMZNMktplace,5999,Recreational exps outings parties,14.99,0.00,14.99
Children and Young Peoples Services,Head of Childrens Social Care,085623,Families First Bishop Auckland,Supplies and Services,364200,Grants to Voluntary Organisations,01-Mar-2023,000010740592263,IHS086859091PA01 2023-,9399,No Recourse to Public Funds,"2,735.00",0.00,2735.00
Children and Young Peoples Services,Head of Childrens Social Care,085623,Families First Bishop Auckland,Supplies and Services,364200,Grants to Voluntary Organisations,01-Mar-2023,000010740592265,2LBA035694586 LTR FAMI,9399,No Recourse to Public Funds,"3,696.00",0.00,3696.00
Regeneration Economy and Growth,Economic Development Level C,030771,Durham Advance Flexible Fund,Supplies and Services,304259,Equipment and Materials,01-Mar-2023,000010740592317,DURHAM COUNTY COUNCIL,9399,Equipment-purchase and rental,11.00,0.00,11.00
Children and Young Peoples Services,Head of Early Help Inclusion & Vulnerable Children.,071492,One Point - Central,Supplies and Services,304403,Equipment and Materials,01-Mar-2023,000010740592355,AMZNMktplace,5999,Other consumables,941.85,0.00,941.85
Children and Young Peoples Services,Head of Childrens Social Care,085634,Families First Easington,Supplies and Services,338045,Services,01-Mar-2023,000010740592359,HAMPSHIRE COUNTY COUNC,9399,Legal expenses 338045,11.00,0.00,11.00
Regeneration Economy and Growth,Planning & Housing,031576,B& B - Temp Accom,Transport,235073,Public Transport,01-Mar-2023,000010740592361,CHEVRON TAXIS,4121,Travel-clients/students/children,20.50,0.00,20.50
Regeneration Economy and Growth,Planning & Housing,031576,B& B - Temp Accom,Supplies and Services,364320,Grants to Voluntary Organisations,01-Mar-2023,000010740592363,Roadchef Durham,7011,Accommodation assistance,55.00,0.00,55.00
Regeneration Economy and Growth,Planning & Housing,031576,B& B - Temp Accom,Supplies and Services,364320,Grants to Voluntary Organisations,01-Mar-2023,000010740592365,Roadchef Durham,7011,Accommodation assistance,7.50,0.00,7.50
Regeneration Economy and Growth,Planning & Housing,031576,B& B - Temp Accom,Supplies and Services,364320,Grants to Voluntary Organisations,01-Mar-2023,000010740592367,TRAVELODGE,3615,Accommodation assistance,68.83,0.00,68.83
Regeneration Economy and Growth,Planning & Housing,031576,B& B - Temp Accom,Supplies and Services,364320,Grants to Voluntary Organisations,01-Mar-2023,000010740592369,H52STANLEY,7011,Accommodation assistance,108.00,0.00,108.00
Neighbourhoods and Climate Change,Environmental Services,026591,C&G - Hardwick Park,Supplies and Services,372009,Subscriptions E372,01-Mar-2023,000010740592411,Canva 03708-9330345,7333,Subscriptions 372009,129.90,0.00,129.90
Children and Young Peoples Services,Head of Childrens Social Care,085341,High Etherley Satelite Home,Supplies and Services,324117,Provisions E324,01-Mar-2023,000010740592421,774 026,5411,Catering costs - provisions,40.69,0.00,40.69
Children and Young Peoples Services,Head of Early Help Inclusion & Vulnerable Children.,085957,Secure Management,Supplies and Services,324117,Provisions E324,01-Mar-2023,000010740592445,TESCO STORES 6329,5411,Catering costs - provisions,163.17,0.00,163.17
Regeneration Economy and Growth,Economic Development Level C,030771,Durham Advance Flexible Fund,Transport,235057,Public Transport,01-Mar-2023,000010740592469,WWW.GONORTHEAST.CO.UK,4111,Staff travelling,34.00,0.00,34.00
Children and Young Peoples Services,Head of Childrens Social Care,085364,Children Looked After Team 1,Transport,235057,Public Transport,01-Mar-2023,000010740592475,BB-MEGABUS/SCCL,4131,Staff travelling,35.35,0.00,35.35
Children and Young Peoples Services,Head of Childrens Social Care,085364,Children Looked After Team 1,Supplies and Services,328041,Clothing uniforms and laundry E328,01-Mar-2023,000010740592477,ARGOS LTD,5310,Clothing uniforms and laundry,70.00,0.00,70.00
Children and Young Peoples Services,Head of Early Help Inclusion & Vulnerable Children.,085956,Lumley,Transfer Payments,515002,Social Services Clients,01-Mar-2023,000010740592487,AMZNMktplace,5999,Pocket money,9.99,1.67,8.32
Children and Young Peoples Services,Head of Early Help Inclusion & Vulnerable Children.,085957,Secure Management,Supplies and Services,304259,Equipment and Materials,01-Mar-2023,000010740592489,Amazon MP3,5735,Equipment-purchase and rental,0.68,0.11,0.57
Children and Young Peoples Services,Head of Early Help Inclusion & Vulnerable Children.,085956,Lumley,Supplies and Services,332047,Printing Stationery and Gen Off Exps,01-Mar-2023,000010740592491,AMZN Digital,5999,Stationery,20.00,0.00,20.00
Children and Young Peoples Services,Head of Early Help Inclusion & Vulnerable Children.,085956,Lumley,Supplies and Services,304403,Equipment and Materials,01-Mar-2023,000010740592493,AMZNMktplace,5999,Other consumables,10.41,1.74,8.67
Children and Young Peoples Services,Head of Early Help Inclusion & Vulnerable Children.,085963,Maple House,Supplies and Services,308011,Furniture,01-Mar-2023,000010740592495,WF UK3876014354,5712,Furniture repair and replacement,122.00,20.33,101.67
Children and Young Peoples Services,Head of Early Help Inclusion & Vulnerable Children.,085954,Walworth,Transfer Payments,515002,Social Services Clients,01-Mar-2023,000010740592497,BOOTS UK ECOMM,5912,Pocket money,31.50,0.00,31.50
Children and Young Peoples Services,Head of Early Help Inclusion & Vulnerable Children.,085957,Secure Management,Supplies and Services,304405,Equipment and Materials,01-Mar-2023,000010740592499,Amazon.co.uk 1L9ME4684,5969,Medical supplies,9.00,1.50,7.50
Children and Young Peoples Services,Head of Education and Skills,070169,Durham SSP,Supplies and Services,304999,Equipment and Materials,01-Mar-2023,000010740592507,Microsoft Subscription,5816,Misc equipment tools and materials,7.99,1.33,6.66
Resources BK0010,HR & Employee Services,010984,Training and Development,Employees,040149,Recruitment Instruction and Training,01-Mar-2023,000010740592511,NCS VUE WAMITAB TEST,8299,Training-all costs,174.00,0.00,174.00
Neighbourhoods and Climate Change,Environmental Services,031238,North Pennines - Tees Swale,Supplies and Services,312009,Newspapers books and periodicals E312,01-Mar-2023,000010740592513,WORDERY,5942,Newspapers books and periodicals,13.99,0.00,13.99
Neighbourhoods and Climate Change,Environmental Services,031238,North Pennines - Tees Swale,Supplies and Services,304999,Equipment and Materials,01-Mar-2023,000010740592515,AMZNMktplace,5999,Misc equipment tools and materials,4.49,0.75,3.74
Children and Young Peoples Services,Head of Childrens Social Care,085621,Families First Newton Aycliffe and Shildon,Transport,235057,Public Transport,01-Mar-2023,000010740592521,SumUp Galaxy Taxis,4121,Staff travelling,500.00,0.00,500.00
Regeneration Economy and Growth,Economic Development Level C,030771,Durham Advance Flexible Fund,Supplies and Services,348037,Subsistence E348,01-Mar-2023,000010740592531,CHESTER LE STREET,5814,Subsistence,3.50,0.00,3.50
Regeneration Economy and Growth,Economic Development Level C,030771,Durham Advance Flexible Fund,Supplies and Services,348037,Subsistence E348,01-Mar-2023,000010740592533,HOUGHTON LE SPRING,5814,Subsistence,5.20,0.00,5.20
Neighbourhoods and Climate Change,Partnerships & Community Engagement Div.,060472,Humanitarian Support programme,Supplies and Services,308011,Furniture,01-Mar-2023,000010740592545,247blinds.co.uk,5714,Furniture repair and replacement,340.53,0.00,340.53
Neighbourhoods and Climate Change,Partnerships & Community Engagement Div.,060472,Humanitarian Support programme,Supplies and Services,308011,Furniture,01-Mar-2023,000010740592547,SP TERRYS FABRICS,5719,Furniture repair and replacement,84.95,0.00,84.95
Neighbourhoods and Climate Change,Partnerships & Community Engagement Div.,060472,Humanitarian Support programme,Supplies and Services,308011,Furniture,01-Mar-2023,000010740592549,B&Q LTD,5211,Furniture repair and replacement,339.00,0.00,339.00
Neighbourhoods and Climate Change,Environmental Services,010301,C&G - North Grounds Maintenance,Supplies and Services,304999,Equipment and Materials,01-Mar-2023,000010740592551,GUSTHARTS,5072,Misc equipment tools and materials,355.24,0.00,355.24
Dedicated Schools Grant BG0015,DSG Schools Block,702814,Villa Real School 7028 - Conductive Education,Supplies and Services,308011,Furniture,01-Mar-2023,000010740592581,IKEA LTD SHOP ONLINE,5712,Furniture repair and replacement,490.00,81.67,408.33
Dedicated Schools Grant BG0015,DSG Schools Block,702814,Villa Real School 7028 - Conductive Education,Employees,040149,Recruitment Instruction and Training,01-Mar-2023,000010740592583,EB PCA CONDUCTIVE EDU,7399,Training-all costs,367.90,0.00,367.90
Dedicated Schools Grant BG0015,DSG Schools Block,702812,Villa Real School 7028 - IT,Supplies and Services,304403,Equipment and Materials,01-Mar-2023,000010740592585,AMZNMKTPLACE AMAZON.CO,5999,Other consumables,88.32,14.72,73.60
Dedicated Schools Grant BG0015,DSG Schools Block,702818,Villa Real School 7028 - Communication Aids,Supplies and Services,304403,Equipment and Materials,01-Mar-2023,000010740592589,RNIB ENTERPRISE,5047,Other consumables,12.40,0.00,12.40
Adult and Health Services,Head of Adults,055643,Hawthorn House LD Respite Unit,Supplies and Services,304403,Equipment and Materials,01-Mar-2023,000010740592631,AMZNMktplace,5999,Other consumables,7.94,1.32,6.62
Adult and Health Services,Head of Adults,055643,Hawthorn House LD Respite Unit,Supplies and Services,304403,Equipment and Materials,01-Mar-2023,000010740592633,AMZNMktplace,5999,Other consumables,126.90,21.15,105.75
Adult and Health Services,Head of Adults,055643,Hawthorn House LD Respite Unit,Supplies and Services,304403,Equipment and Materials,01-Mar-2023,000010740592633 - 1,AMZNMktplace,5999,Other consumables,0.05,,0.05
Adult and Health Services,Head of Adults,055643,Hawthorn House LD Respite Unit,Supplies and Services,324117,Provisions E324,01-Mar-2023,000010740592635,ASDA STORES LTD 4313,5411,Catering costs - provisions,5.75,0.00,5.75
Adult and Health Services,Head of Adults,055643,Hawthorn House LD Respite Unit,Supplies and Services,312009,Newspapers books and periodicals E312,01-Mar-2023,000010740592637,AMZN Mktp UK 1L4M87QE4,5942,Newspapers books and periodicals,30.69,5.12,25.57
Adult and Health Services,Head of Adults,055643,Hawthorn House LD Respite Unit,Supplies and Services,304403,Equipment and Materials,01-Mar-2023,000010740592639,AMZNMktplace,5999,Other consumables,7.94,1.32,6.62
Adult and Health Services,Head of Adults,055643,Hawthorn House LD Respite Unit,Supplies and Services,304403,Equipment and Materials,01-Mar-2023,000010740592641,AMZNMktplace,5999,Other consumables,47.52,7.92,39.60
Adult and Health Services,Head of Adults,055643,Hawthorn House LD Respite Unit,Supplies and Services,304403,Equipment and Materials,01-Mar-2023,000010740592641 - 1,AMZNMktplace,5999,Other consumables,0.12,,0.12
Adult and Health Services,Head of Adults,055643,Hawthorn House LD Respite Unit,Supplies and Services,304403,Equipment and Materials,01-Mar-2023,000010740592643,AMZNMktplace,5999,Other consumables,79.38,13.23,66.15
Adult and Health Services,Head of Adults,055643,Hawthorn House LD Respite Unit,Supplies and Services,304403,Equipment and Materials,01-Mar-2023,000010740592643 - 1,AMZNMktplace,5999,Other consumables,0.06,,0.06
Adult and Health Services,Head of Adults,055643,Hawthorn House LD Respite Unit,Supplies and Services,328041,Clothing uniforms and laundry E328,01-Mar-2023,000010740592645,Argos Durham Arnis,5310,Clothing uniforms and laundry,65.00,0.00,65.00
Adult and Health Services,Head of Adults,055643,Hawthorn House LD Respite Unit,Supplies and Services,328041,Clothing uniforms and laundry E328,01-Mar-2023,000010740592647,THE WORKS,5310,Clothing uniforms and laundry,2.00,0.00,2.00
Adult and Health Services,Head of Adults,055643,Hawthorn House LD Respite Unit,Supplies and Services,324117,Provisions E324,01-Mar-2023,000010740592649,SAINSBURYS S/MKTS,5411,Catering costs - provisions,4.10,0.00,4.10
Children and Young Peoples Services,Head of Childrens Social Care,085342,16 Hickstead Rise (previously 9 Cedar Ave),Supplies and Services,324117,Provisions E324,01-Mar-2023,000010740592655,ALDI 74 774,5411,Catering costs - provisions,85.83,0.00,85.83
Children and Young Peoples Services,Head of Education and Skills,075035,DurhamDirections Re-engagement,Supplies and Services,364301,Grants to Voluntary Organisations,01-Mar-2023,000010740592659,WWW.GONORTHEAST.CO.UK,4111,Hardship,4.70,0.00,4.70
Children and Young Peoples Services,Head of Education and Skills,075033,DurhamWorks 3,Supplies and Services,364301,Grants to Voluntary Organisations,01-Mar-2023,000010740592661,WWW.GONORTHEAST.CO.UK,4111,Hardship,4.70,0.00,4.70
Children and Young Peoples Services,Head of Education and Skills,075033,DurhamWorks 3,Supplies and Services,364301,Grants to Voluntary Organisations,01-Mar-2023,000010740592663,WWW.GONORTHEAST.CO.UK,4111,Hardship,4.70,0.00,4.70
Children and Young Peoples Services,Head of Education and Skills,075033,DurhamWorks 3,Supplies and Services,364301,Grants to Voluntary Organisations,01-Mar-2023,000010740592665,AMZNMktplace,5999,Hardship,26.95,4.49,22.46
Children and Young Peoples Services,Head of Childrens Social Care,085347,Solo Home The Manse,Supplies and Services,348037,Subsistence E348,01-Mar-2023,000010740592673,Greggs Plc,5812,Subsistence,5.75,0.00,5.75
Children and Young Peoples Services,Head of Education and Skills,071732,Dean Bank Childcare,Supplies and Services,324117,Provisions E324,01-Mar-2023,000010740592681,B&M 147 - FERRYHILL,5399,Catering costs - provisions,2.00,0.00,2.00
Neighbourhoods and Climate Change,Environmental Services,031202,North Pennines - Peatscapes,Supplies and Services,348037,Subsistence E348,01-Mar-2023,000010740592707,The Coffee House,5462,Subsistence,5.70,0.95,4.75
Neighbourhoods and Climate Change,Environmental Services,031202,North Pennines - Peatscapes,Transport,235057,Public Transport,01-Mar-2023,000010740592709,PRINCE BISHOP SHOPPING,7523,Staff travelling,11.50,1.92,9.58
Neighbourhoods and Climate Change,Environmental Services,031202,North Pennines - Peatscapes,Supplies and Services,324117,Provisions E324,01-Mar-2023,000010740592711,TESCO STORES,5411,Catering costs - provisions,3.40,0.00,3.40
Children and Young Peoples Services,Head of Childrens Social Care,085334,West Rainton Satelite Home,Supplies and Services,324117,Provisions E324,01-Mar-2023,000010740592731,ALDI STORES,5411,Catering costs - provisions,38.67,0.00,38.67
Children and Young Peoples Services,Head of Early Help Inclusion & Vulnerable Children.,088103,Stanley & Moorside Family Centre,Supplies and Services,384302,Miscellaneous Expenses,01-Mar-2023,000010740592733,BOOTS UK ECOMM,5912,Activity expenses,99.76,0.00,99.76
Children and Young Peoples Services,Head of Early Help Inclusion & Vulnerable Children.,074000,National Supporting Families Programme,Transfer Payments,525033,Other,01-Mar-2023,000010740592735,ASDA GEORGE COM LEEDS,5411,Grants to individuals,172.92,28.82,144.10
Children and Young Peoples Services,Head of Early Help Inclusion & Vulnerable Children.,074000,National Supporting Families Programme,Transfer Payments,525033,Other,01-Mar-2023,000010740592735 - 1,ASDA GEORGE COM LEEDS,5411,Grants to individuals,0.03,,0.03
Children and Young Peoples Services,Head of Early Help Inclusion & Vulnerable Children.,085965,Barnard,Supplies and Services,384999,Miscellaneous Expenses,01-Mar-2023,000010740592741,Amazon.co.uk 1L9743QW4,5969,Other expenses,49.97,0.00,49.97
Resources BK0010,Digital Services,065335,School Services - Implementations,Supplies and Services,342033,Computers and Communications,01-Mar-2023,000010740592755,PAYPAL PANJIE307,5732,Computer hardware,53.46,0.00,53.46
Children and Young Peoples Services,Head of Early Help Inclusion & Vulnerable Children.,085956,Lumley,Supplies and Services,332047,Printing Stationery and Gen Off Exps,01-Mar-2023,000010740592767,AMZNMktplace,5999,Stationery,10.41,1.74,8.67
Children and Young Peoples Services,Head of Early Help Inclusion & Vulnerable Children.,085963,Maple House,Supplies and Services,308011,Furniture,01-Mar-2023,000010740592769,WF UK3876016094,5712,Furniture repair and replacement,139.99,0.00,139.99
Children and Young Peoples Services,Head of Childrens Social Care,085357,LAC Bespoke Placements,Transport,235057,Public Transport,01-Mar-2023,000010740592773,HOLIDAY PAYMENT AVR,4722,Staff travelling,655.00,0.00,655.00
Children and Young Peoples Services,Head of Childrens Social Care,085357,LAC Bespoke Placements,Transport,235057,Public Transport,01-Mar-2023,000010740592775,HOLIDAY PAYMENT AVR,4722,Staff travelling,"1,885.00",0.00,1885.00
Children and Young Peoples Services,Head of Childrens Social Care,085369,Care Leavers Team 1,Supplies and Services,364301,Grants to Voluntary Organisations,01-Mar-2023,000010740592777,SPORTSDIRECT.COM,5655,Hardship,75.00,0.00,75.00
Children and Young Peoples Services,Head of Childrens Social Care,085347,Solo Home The Manse,Supplies and Services,384999,Miscellaneous Expenses,01-Mar-2023,000010740592797,MAKING FACES,7230,Other expenses,17.96,0.00,17.96
Children and Young Peoples Services,Head of Childrens Social Care,085347,Solo Home The Manse,Supplies and Services,344033,Telephones,01-Mar-2023,000010740592799,giffgaff,4814,Telephones general-all costs,35.00,0.00,35.00
Children and Young Peoples Services,Head of Childrens Social Care,085347,Solo Home The Manse,Supplies and Services,342033,Computers and Communications,01-Mar-2023,000010740592801,SERVICE SEATS CINEMA,7372,Computer hardware,22.56,0.00,22.56
Children and Young Peoples Services,Head of Childrens Social Care,085347,Solo Home The Manse,Supplies and Services,328041,Clothing uniforms and laundry E328,01-Mar-2023,000010740592803,POUNDLAND LTD 1037,5310,Clothing uniforms and laundry,4.25,0.00,4.25
Children and Young Peoples Services,Head of Childrens Social Care,085347,Solo Home The Manse,Supplies and Services,348037,Subsistence E348,01-Mar-2023,000010740592805,MCDONALDS,5814,Subsistence,20.49,0.00,20.49
Neighbourhoods and Climate Change,Environmental Services,010367,C&G - South Grounds Maintenance,Supplies and Services,304403,Equipment and Materials,01-Mar-2023,000010740592811,TIMPSON LTD,5999,Other consumables,28.00,0.00,28.00
Children and Young Peoples Services,Head of Childrens Social Care,085351,Framwellgate Moor CU,Supplies and Services,304259,Equipment and Materials,01-Mar-2023,000010740592821,CURRYS ONLINE,5732,Equipment-purchase and rental,176.99,0.00,176.99
Children and Young Peoples Services,Head of Early Help Inclusion & Vulnerable Children.,088100,Durham & CLS Intensive Family Support Team,Supplies and Services,384302,Miscellaneous Expenses,01-Mar-2023,000010740592831,AMZNMktplace,5999,Activity expenses,18.91,3.15,15.76
Children and Young Peoples Services,Head of Early Help Inclusion & Vulnerable Children.,088100,Durham & CLS Intensive Family Support Team,Supplies and Services,384302,Miscellaneous Expenses,01-Mar-2023,000010740592833,AMZNMktplace,5999,Activity expenses,28.44,4.74,23.70
Children and Young Peoples Services,Head of Early Help Inclusion & Vulnerable Children.,088100,Durham & CLS Intensive Family Support Team,Supplies and Services,384302,Miscellaneous Expenses,01-Mar-2023,000010740592833 - 1,AMZNMktplace,5999,Activity expenses,0.03,,0.03
Children and Young Peoples Services,Head of Early Help Inclusion & Vulnerable Children.,088107,Wheatley Hill & N. Aycliffe Family Centre,Supplies and Services,324117,Provisions E324,01-Mar-2023,000010740592875,SAINSBURYS S/MKTS,5411,Catering costs - provisions,23.00,0.00,23.00
Children and Young Peoples Services,Head of Early Help Inclusion & Vulnerable Children.,088107,Wheatley Hill & N. Aycliffe Family Centre,Supplies and Services,324117,Provisions E324,01-Mar-2023,000010740592877,SAINSBURYS S/MKTS,5411,Catering costs - provisions,78.00,0.00,78.00
Regeneration Economy and Growth,Culture Sport and Tourism,054233,Bishop Auckland Town Hall Library,Supplies and Services,324117,Provisions E324,01-Mar-2023,000010740592887,WILKO RETAIL LIMITED,5399,Catering costs - provisions,70.20,0.00,70.20
Neighbourhoods and Climate Change,Environmental Services,031275,E&D - Climate Change Investment,Supplies and Services,304403,Equipment and Materials,01-Mar-2023,000010740592909,AMZNMktplace,5999,Other consumables,898.50,150.00,748.50
Neighbourhoods and Climate Change,Environmental Services,031275,E&D - Climate Change Investment,Supplies and Services,304403,Equipment and Materials,01-Mar-2023,000010740592911,AMZNMktplace,5999,Other consumables,59.76,9.96,49.80
Neighbourhoods and Climate Change,Environmental Services,031275,E&D - Climate Change Investment,Supplies and Services,304403,Equipment and Materials,01-Mar-2023,000010740592911 - 1,AMZNMktplace,5999,Other consumables,0.12,,0.12
Neighbourhoods and Climate Change,Environmental Services,031275,E&D - Climate Change Investment,Supplies and Services,304403,Equipment and Materials,01-Mar-2023,000010740592913,AMZNMktplace,5999,Other consumables,149.90,25.00,124.90
Neighbourhoods and Climate Change,Environmental Services,031275,E&D - Climate Change Investment,Supplies and Services,304403,Equipment and Materials,01-Mar-2023,000010740592915,AMZNMKTPLACE AMAZON.CO,5999,Other consumables,74.95,12.50,62.45
Neighbourhoods and Climate Change,Environmental Services,031275,E&D - Climate Change Investment,Supplies and Services,304403,Equipment and Materials,01-Mar-2023,000010740592917,AMZNMktplace,5999,Other consumables,189.24,31.54,157.70
Neighbourhoods and Climate Change,Environmental Services,031275,E&D - Climate Change Investment,Supplies and Services,304403,Equipment and Materials,01-Mar-2023,000010740592917 - 1,AMZNMktplace,5999,Other consumables,0.38,,0.38
Regeneration Economy and Growth,Communications Management,060270,Communications and Marketing,Supplies and Services,336005,Advertising E336,01-Mar-2023,000010740592939,LINKEDIN ADS 801201744,7311,Advertising other than for staff,22.60,0.00,22.60
Children and Young Peoples Services,Head of Childrens Social Care,085551,Short Break Services-Park Hse Sher,Supplies and Services,348037,Subsistence E348,01-Mar-2023,000010740592977,MCDONALDS,5814,Subsistence,20.75,0.00,20.75
Neighbourhoods and Climate Change,Environmental Services,010367,C&G - South Grounds Maintenance,Supplies and Services,304999,Equipment and Materials,01-Mar-2023,000010740592995,BLACK & DECKER,5251,Misc equipment tools and materials,259.00,0.00,259.00
Neighbourhoods and Climate Change,Environmental Services,010367,C&G - South Grounds Maintenance,Supplies and Services,304999,Equipment and Materials,01-Mar-2023,000010740592997,BLACK & DECKER,5251,Misc equipment tools and materials,400.00,0.00,400.00
Neighbourhoods and Climate Change,Environmental Services,010367,C&G - South Grounds Maintenance,Supplies and Services,304999,Equipment and Materials,01-Mar-2023,000010740592999,Snowballs,5251,Misc equipment tools and materials,32.98,0.00,32.98
Children and Young Peoples Services,Head of Childrens Social Care,085397,Regionalisation of Adoption,Supplies and Services,336005,Advertising E336,01-Mar-2023,000010740593001,Google ADS4227981527,7311,Advertising other than for staff,584.29,0.00,584.29
Children and Young Peoples Services,Head of Early Help Inclusion & Vulnerable Children.,085963,Maple House,Supplies and Services,324117,Provisions E324,01-Mar-2023,000010740593003,B&M 035 - SHILDON,5399,Catering costs - provisions,85.83,0.00,85.83
Children and Young Peoples Services,Head of Early Help Inclusion & Vulnerable Children.,085963,Maple House,Supplies and Services,324117,Provisions E324,01-Mar-2023,000010740593005,B&M 035 - SHILDON,5399,Catering costs - provisions,13.97,0.00,13.97
Children and Young Peoples Services,Head of Early Help Inclusion & Vulnerable Children.,085963,Maple House,Supplies and Services,324117,Provisions E324,01-Mar-2023,000010740593007,B&M 035 - SHILDON,5399,Catering costs - provisions,5.00,0.00,5.00
Children and Young Peoples Services,Head of Early Help Inclusion & Vulnerable Children.,085963,Maple House,Supplies and Services,324117,Provisions E324,01-Mar-2023,000010740593009,B&M 035 - SHILDON,5399,Catering costs - provisions,296.18,0.00,296.18
Children and Young Peoples Services,Head of Early Help Inclusion & Vulnerable Children.,085963,Maple House,Supplies and Services,304259,Equipment and Materials,01-Mar-2023,000010740593011,DURHAM COUNTY COUNCIL,9399,Equipment-purchase and rental,65.00,0.00,65.00
Regeneration Economy and Growth,Corporate Property and Land,030691,Catering - Durham Dales Centre,Supplies and Services,324117,Provisions E324,01-Mar-2023,000010740593027,TESCO STORES 6329,5411,Catering costs - provisions,35.85,0.00,35.85
Regeneration Economy and Growth,Planning & Housing,031576,B& B - Temp Accom,Supplies and Services,364320,Grants to Voluntary Organisations,01-Mar-2023,000010740593035,Roadchef Durham,7011,Accommodation assistance,100.00,0.00,100.00
Regeneration Economy and Growth,Planning & Housing,031576,B& B - Temp Accom,Supplies and Services,364320,Grants to Voluntary Organisations,01-Mar-2023,000010740593037,Roadchef Durham,7011,Accommodation assistance,15.00,0.00,15.00
Regeneration Economy and Growth,Planning & Housing,031576,B& B - Temp Accom,Supplies and Services,364320,Grants to Voluntary Organisations,01-Mar-2023,000010740593039,Roadchef Durham,7011,Accommodation assistance,100.00,0.00,100.00
Regeneration Economy and Growth,Planning & Housing,031576,B& B - Temp Accom,Supplies and Services,364320,Grants to Voluntary Organisations,01-Mar-2023,000010740593041,Roadchef Durham,7011,Accommodation assistance,100.00,0.00,100.00
Regeneration Economy and Growth,Planning & Housing,031576,B& B - Temp Accom,Supplies and Services,364320,Grants to Voluntary Organisations,01-Mar-2023,000010740593043,Roadchef Durham,7011,Accommodation assistance,100.00,0.00,100.00
Regeneration Economy and Growth,Planning & Housing,031576,B& B - Temp Accom,Supplies and Services,364320,Grants to Voluntary Organisations,01-Mar-2023,000010740593045,Roadchef Durham,7011,Accommodation assistance,60.00,0.00,60.00
Regeneration Economy and Growth,Corporate Property and Land,010525,Catering - Green Lane,Supplies and Services,324117,Provisions E324,01-Mar-2023,000010740672231,JR HOLLAND FOODSERVICE,5499,Catering costs - provisions,90.10,0.00,90.10
Regeneration Economy and Growth,Corporate Property and Land,011275,Catering -Durham Leadership Centre,Supplies and Services,324117,Provisions E324,01-Mar-2023,000010740672233,JR HOLLAND FOODSERVICE,5499,Catering costs - provisions,5.01,0.00,5.01
Adult and Health Services,Head of Adults,055643,Hawthorn House LD Respite Unit,Supplies and Services,324117,Provisions E324,01-Mar-2023,000010740672241,JR HOLLAND FOODSERVICE,5499,Catering costs - provisions,17.18,0.00,17.18
Regeneration Economy and Growth,Corporate Property and Land,021234,Catering - Locomotion,Supplies and Services,324117,Provisions E324,01-Mar-2023,000010740672245,JR HOLLAND FOODSERVICE,5499,Catering costs - provisions,41.35,0.00,41.35
Regeneration Economy and Growth,Corporate Property and Land,021234,Catering - Locomotion,Supplies and Services,324117,Provisions E324,01-Mar-2023,000010740672247,JR HOLLAND FOODSERVICE,5499,Catering costs - provisions,47.92,0.00,47.92
Regeneration Economy and Growth,Corporate Property and Land,021242,Catering - County Hall,Supplies and Services,324117,Provisions E324,01-Mar-2023,000010740672251,JR HOLLAND FOODSERVICE,5499,Catering costs - provisions,230.27,0.00,230.27
Regeneration Economy and Growth,Corporate Property and Land,021242,Catering - County Hall,Supplies and Services,324117,Provisions E324,01-Mar-2023,000010740672253,JR HOLLAND FOODSERVICE,5499,Catering costs - provisions,18.44,0.00,18.44
Regeneration Economy and Growth,Business Durham CL0850,030689,Inward Investment and Aftercare,Supplies and Services,342222,Computers and Communications,01-Mar-2023,000010746883349,FASTHOSTS,4816,Comp hardware purch-network servers,12.59,0.00,12.59
Adult and Health Services,Head of Adults,055302,Durham Pathways,Supplies and Services,304403,Equipment and Materials,01-Mar-2023,000010746883389,AMZNMKTPLACE AMAZON.CO,5999,Other consumables,7.92,1.32,6.60
Adult and Health Services,Head of Adults,055302,Durham Pathways,Supplies and Services,304403,Equipment and Materials,01-Mar-2023,000010746883389 - 1,AMZNMKTPLACE AMAZON.CO,5999,Other consumables,0.04,,0.04
Regeneration Economy and Growth,Culture Sport and Tourism,011056,AAP Funding - Sport & Leisure,Supplies and Services,304252,Equipment and Materials,01-Mar-2023,000010746883393,AMZNMKTPLACE AMAZON.CO,5999,Equipment-repairsserviceinsurance,69.68,11.62,58.06
Regeneration Economy and Growth,Culture Sport and Tourism,011056,AAP Funding - Sport & Leisure,Supplies and Services,304252,Equipment and Materials,01-Mar-2023,000010746883397,AMZNMKTPLACE AMAZON.CO,5999,Equipment-repairsserviceinsurance,3.99,0.67,3.32
Regeneration Economy and Growth,Culture Sport and Tourism,011056,AAP Funding - Sport & Leisure,Supplies and Services,304252,Equipment and Materials,01-Mar-2023,000010746883399,AMZNMKTPLACE AMAZON.CO,5999,Equipment-repairsserviceinsurance,23.70,3.95,19.75
Regeneration Economy and Growth,Culture Sport and Tourism,011056,AAP Funding - Sport & Leisure,Supplies and Services,304252,Equipment and Materials,01-Mar-2023,000010746883399 - 1,AMZNMKTPLACE AMAZON.CO,5999,Equipment-repairsserviceinsurance,0.05,,0.05
Adult and Health Services,Head of Adults,051611,OP/PD Sedgefield 051611,Supplies and Services,304403,Equipment and Materials,01-Mar-2023,000010746883479,AMZNMKTPLACE AMAZON.CO,5999,Other consumables,24.80,4.14,20.66
Children and Young Peoples Services,Head of Education and Skills,075033,DurhamWorks 3,Supplies and Services,364301,Grants to Voluntary Organisations,01-Mar-2023,000010746883707,AMZNMKTPLACE AMAZON.CO,5999,Hardship,26.95,4.49,22.46
Children and Young Peoples Services,Head of Early Help Inclusion & Vulnerable Children.,085963,Maple House,Supplies and Services,332047,Printing Stationery and Gen Off Exps,01-Mar-2023,000010746883811,SECURITYSAFETYPRODUCTS,7393,Stationery,61.98,0.00,61.98
Regeneration Economy and Growth,Business Durham CL0850,030689,Inward Investment and Aftercare,Supplies and Services,342222,Computers and Communications,02-Mar-2023,000008679392662,FASTHOSTS,4816,Comp hardware purch-network servers,63.00,0.00,63.00
Regeneration Economy and Growth,Business Durham CL0850,030689,Inward Investment and Aftercare,Supplies and Services,342222,Computers and Communications,02-Mar-2023,000008679392664,FASTHOSTS,4816,Comp hardware purch-network servers,77.72,0.00,77.72
Children and Young Peoples Services,Head of Education and Skills,075034,Youth Futures Foundation,Supplies and Services,364301,Grants to Voluntary Organisations,02-Mar-2023,000008679392706,SQ BETTER BIKE TRAINI,8299,Hardship,135.00,0.00,135.00
Regeneration Economy and Growth,Culture Sport and Tourism,054820,Gala Theatre - Overheads,Supplies and Services,304252,Equipment and Materials,02-Mar-2023,000008679392752,AMZNMKTPLACE AMAZON.CO,5999,Equipment-repairsserviceinsurance,37.37,6.23,31.14
Regeneration Economy and Growth,Culture Sport and Tourism,054020,Barnard Castle Library,Supplies and Services,304252,Equipment and Materials,02-Mar-2023,000008679392756,AMZNMKTPLACE AMAZON.CO,5999,Equipment-repairsserviceinsurance,13.67,2.28,11.39
Regeneration Economy and Growth,Culture Sport and Tourism,054020,Barnard Castle Library,Supplies and Services,304252,Equipment and Materials,02-Mar-2023,000008679392758,AMZNMKTPLACE AMAZON.CO,5999,Equipment-repairsserviceinsurance,5.22,0.87,4.35
Regeneration Economy and Growth,Culture Sport and Tourism,030705,Visit County Durham 030705,Supplies and Services,384073,Miscellaneous Expenses,02-Mar-2023,000008679392760,RADISSON BLU,3583,Catering - meetings,295.00,49.17,245.83
Children and Young Peoples Services,Head of Early Help Inclusion & Vulnerable Children.,071447,Peterlee One Point Hub,Supplies and Services,352001,Conference Expenses,02-Mar-2023,000008679392986,TVLICENSING.CO.UK,7392,Conferencesseminars fees etc,159.00,0.00,159.00
Adult and Health Services,Head of Adults,055202,Support and Recovery,Supplies and Services,304403,Equipment and Materials,02-Mar-2023,000008679393120,AMZNMKTPLACE AMAZON.CO,5999,Other consumables,27.36,4.56,22.80
Adult and Health Services,Head of Adults,055202,Support and Recovery,Supplies and Services,304403,Equipment and Materials,02-Mar-2023,000008679393120 - 1,AMZNMKTPLACE AMAZON.CO,5999,Other consumables,0.04,,0.04
Regeneration Economy and Growth,Economic Development Level C,030771,Durham Advance Flexible Fund,Supplies and Services,384999,Miscellaneous Expenses,02-Mar-2023,000008679393152,ZUMBA FITNESS,7997,Other expenses,153.50,0.00,153.50
Children and Young Peoples Services,Head of Childrens Social Care,085621,Families First Newton Aycliffe and Shildon,Supplies and Services,352001,Conference Expenses,02-Mar-2023,000008679393226,WWW.BUTLINS.COM,7011,Conferencesseminars fees etc,198.00,0.00,198.00
Regeneration Economy and Growth,Corporate Property and Land,011001,FM-Civic Bldgs-Green Lane Council Offices Spennymoor,Supplies and Services,304403,Equipment and Materials,02-Mar-2023,000008679393604,AMZNMKTPLACE AMAZON.CO,5999,Other consumables,19.92,3.32,16.60
Regeneration Economy and Growth,Corporate Property and Land,011001,FM-Civic Bldgs-Green Lane Council Offices Spennymoor,Supplies and Services,304403,Equipment and Materials,02-Mar-2023,000008679393604 - 1,AMZNMKTPLACE AMAZON.CO,5999,Other consumables,0.04,,0.04
Children and Young Peoples Services,Head of Early Help Inclusion & Vulnerable Children.,085952,Secure Education,Supplies and Services,304259,Equipment and Materials,02-Mar-2023,000008679393722,AMZNMKTPLACE AMAZON.CO,5999,Equipment-purchase and rental,13.98,2.34,11.64
Regeneration Economy and Growth,Planning & Housing,031701,Care Connect All Localities,Supplies and Services,304259,Equipment and Materials,02-Mar-2023,000008679393766,FARNELL,5065,Equipment-purchase and rental,259.58,0.00,259.58
Regeneration Economy and Growth,Economic Development Level C,030776,LINKCD Flexible Fund,Supplies and Services,304259,Equipment and Materials,02-Mar-2023,000008679393966,PETERLEE TOWN COUN,9399,Equipment-purchase and rental,3.10,0.00,3.10
Regeneration Economy and Growth,Corporate Property and Land,011296,Catering - Dunes,Supplies and Services,324117,Provisions E324,02-Mar-2023,000008679480608,BESTWAY WHOLESALE,5300,Catering costs - provisions,87.38,14.57,72.81
Neighbourhoods and Climate Change,Environmental Services,011060,C&G - Hardwick Park Catering,Supplies and Services,324117,Provisions E324,02-Mar-2023,000008679480624,BESTWAY WHOLESALE,5300,Catering costs - provisions,198.90,33.15,165.75
Neighbourhoods and Climate Change,Environmental Services,011060,C&G - Hardwick Park Catering,Supplies and Services,324117,Provisions E324,02-Mar-2023,000008679480624 - 1,BESTWAY WHOLESALE,5300,Catering costs - provisions,168.10,,168.10
Regeneration Economy and Growth,Culture Sport and Tourism,054820,Gala Theatre - Overheads,Supplies and Services,304252,Equipment and Materials,02-Mar-2023,000010740592141,AMZNBusiness 1L1MX06H4,5999,Equipment-repairsserviceinsurance,6.42,1.07,5.35
Regeneration Economy and Growth,Culture Sport and Tourism,030712,VCD - Project Delivery,Supplies and Services,384199,Miscellaneous Expenses,02-Mar-2023,000010740592147,Mailchimp,5818,Other hired and contracted services,365.45,0.00,365.45
Neighbourhoods and Climate Change,Environmental Services,031238,North Pennines - Tees Swale,Supplies and Services,304999,Equipment and Materials,02-Mar-2023,000010740592517,AMZNMktplace,5999,Misc equipment tools and materials,4.49,0.75,3.74
Regeneration Economy and Growth,Business Durham CL0850,030689,Inward Investment and Aftercare,Supplies and Services,304403,Equipment and Materials,02-Mar-2023,000010746883347,ADOBE CREATIVE CLOUD,5734,Other consumables,51.98,0.00,51.98
Regeneration Economy and Growth,Business Durham CL0850,030689,Inward Investment and Aftercare,Supplies and Services,336005,Advertising E336,02-Mar-2023,000010746883351,LINKEDIN ADS 806720304,7311,Advertising other than for staff,31.58,0.00,31.58
Children and Young Peoples Services,Head of Childrens Social Care,085612,Families First Consett,Supplies and Services,364301,Grants to Voluntary Organisations,02-Mar-2023,000010746883357,SHOE ZONE (INTERNET),5661,Hardship,32.97,0.00,32.97
Children and Young Peoples Services,Head of Childrens Social Care,085364,Children Looked After Team 1,Supplies and Services,340001,Postages E340,02-Mar-2023,000010746883361,POST OFFICE COUNTER,9402,Postages,8.69,0.00,8.69
Children and Young Peoples Services,Head of Childrens Social Care,085342,16 Hickstead Rise (previously 9 Cedar Ave),Supplies and Services,384237,Miscellaneous Expenses,02-Mar-2023,000010746883379,PAINTBALL WORLD,7999,Recreational exps outings parties,27.81,0.00,27.81
Regeneration Economy and Growth,Economic Development Level C,030771,Durham Advance Flexible Fund,Supplies and Services,348037,Subsistence E348,02-Mar-2023,000010746883381,COSTA COFFEE NEWTON AY,5812,Subsistence,9.10,0.00,9.10
Neighbourhoods and Climate Change,Environmental Services,010367,C&G - South Grounds Maintenance,Supplies and Services,304259,Equipment and Materials,02-Mar-2023,000010746883385,DVLA DRIVERS TACHOGRAP,9399,Equipment-purchase and rental,32.00,0.00,32.00
Adult and Health Services,Head of Adults,055302,Durham Pathways,Supplies and Services,304403,Equipment and Materials,02-Mar-2023,000010746883391,AMZNMKTPLACE AMAZON.CO,5999,Other consumables,7.99,1.33,6.66
Regeneration Economy and Growth,Culture Sport and Tourism,054020,Barnard Castle Library,Supplies and Services,304252,Equipment and Materials,02-Mar-2023,000010746883395,AMZNMKTPLACE AMAZON.CO,5999,Equipment-repairsserviceinsurance,58.98,9.84,49.14
Regeneration Economy and Growth,Culture Sport and Tourism,054020,Barnard Castle Library,Supplies and Services,304252,Equipment and Materials,02-Mar-2023,000010746883401,AMZNMKTPLACE AMAZON.CO,5999,Equipment-repairsserviceinsurance,57.22,9.54,47.68
Children and Young Peoples Services,Head of Early Help Inclusion & Vulnerable Children.,079034,SEND LOOKED AFTER AND VULNERABLE CASEWORK TEAM 1,Supplies and Services,384999,Miscellaneous Expenses,02-Mar-2023,000010746883403,Amazon.co.uk 1L5TT3DC4,5969,Other expenses,15.60,2.61,12.99
Children and Young Peoples Services,Head of Early Help Inclusion & Vulnerable Children.,079050,SENSS-Sensory,Supplies and Services,304403,Equipment and Materials,02-Mar-2023,000010746883405,AMZNMKTPLACE AMAZON.CO,5999,Other consumables,8.52,1.42,7.10
Children and Young Peoples Services,Head of Early Help Inclusion & Vulnerable Children.,079050,SENSS-Sensory,Supplies and Services,304403,Equipment and Materials,02-Mar-2023,000010746883405 - 1,AMZNMKTPLACE AMAZON.CO,5999,Other consumables,7.06,,7.06
Children and Young Peoples Services,Head of Childrens Social Care,085342,16 Hickstead Rise (previously 9 Cedar Ave),Supplies and Services,384999,Miscellaneous Expenses,02-Mar-2023,000010746883409,SMYTHS TOYS DURHAM,5945,Other expenses,12.98,0.00,12.98
Neighbourhoods and Climate Change,Environmental Services,010383,C&G - South Street Cleansing,Supplies and Services,304259,Equipment and Materials,02-Mar-2023,000010746883419,DVLA DRIVERS TACHOGRAP,9399,Equipment-purchase and rental,32.00,0.00,32.00
Children and Young Peoples Services,Head of Early Help Inclusion & Vulnerable Children.,088109,Dean Bank and Tudhoe Family Centre,Supplies and Services,384302,Miscellaneous Expenses,02-Mar-2023,000010746883431,AMZNMktplace,5999,Activity expenses,16.33,0.00,16.33
Children and Young Peoples Services,Head of Childrens Social Care,085552,Services for Disabled Children,Transport,235057,Public Transport,02-Mar-2023,000010746883433,Trainline.COM,4112,Staff travelling,78.35,0.00,78.35
Children and Young Peoples Services,Head of Childrens Social Care,085511,Emergency Duty Team,Transport,235057,Public Transport,02-Mar-2023,000010746883465,SumUp COUNDONS TAXI,4121,Staff travelling,6.80,0.00,6.80
Children and Young Peoples Services,Head of Childrens Social Care,085511,Emergency Duty Team,Supplies and Services,352001,Conference Expenses,02-Mar-2023,000010746883467,HOTEL 52,7011,Conferencesseminars fees etc,78.00,0.00,78.00
Regeneration Economy and Growth,Corporate Property and Land,069810,Health and Safety 069810,Supplies and Services,304403,Equipment and Materials,02-Mar-2023,000010746883477,SP TARGUS EUROPE,5734,Other consumables,44.99,0.00,44.99
Children and Young Peoples Services,Head of Early Help Inclusion & Vulnerable Children.,088110,Easington & Peterlee Intensive Family Support Team,Supplies and Services,304259,Equipment and Materials,02-Mar-2023,000010746883481,AMZNMktplace,5999,Equipment-purchase and rental,15.99,0.00,15.99
Children and Young Peoples Services,Head of Childrens Social Care,085623,Families First Bishop Auckland,Supplies and Services,338045,Services,02-Mar-2023,000010746883483,GEN REGISTER OFFICE,9399,Legal expenses 338045,14.00,0.00,14.00
Regeneration Economy and Growth,Planning & Housing,031576,B& B - Temp Accom,Supplies and Services,364320,Grants to Voluntary Organisations,02-Mar-2023,000010746883485,TRAVELODGE,3615,Accommodation assistance,204.97,0.00,204.97
Regeneration Economy and Growth,Planning & Housing,031576,B& B - Temp Accom,Supplies and Services,364320,Grants to Voluntary Organisations,02-Mar-2023,000010746883487,Roadchef Durham,7011,Accommodation assistance,45.00,0.00,45.00
Children and Young Peoples Services,Head of Education and Skills,071732,Dean Bank Childcare,Supplies and Services,324117,Provisions E324,02-Mar-2023,000010746883491,B&M 147 - FERRYHILL,5399,Catering costs - provisions,26.58,0.00,26.58
Children and Young Peoples Services,Head of Education and Skills,071732,Dean Bank Childcare,Supplies and Services,304999,Equipment and Materials,02-Mar-2023,000010746883493,HOME BARGAINS SPENNYMO,5251,Misc equipment tools and materials,4.06,0.00,4.06
Children and Young Peoples Services,Head of Education and Skills,071732,Dean Bank Childcare,Supplies and Services,324117,Provisions E324,02-Mar-2023,000010746883495,ALDI 774-018,5411,Catering costs - provisions,6.78,0.00,6.78
Children and Young Peoples Services,Head of Education and Skills,071801,Selby Cottage Childcare Centre,Supplies and Services,324117,Provisions E324,02-Mar-2023,000010746883501,WILKO RETAIL LIMITED,5399,Catering costs - provisions,37.50,0.00,37.50
Children and Young Peoples Services,Head of Education and Skills,071801,Selby Cottage Childcare Centre,Supplies and Services,324117,Provisions E324,02-Mar-2023,000010746883503,TESCO STORES 2278,5411,Catering costs - provisions,36.61,0.00,36.61
Regeneration Economy and Growth,Economic Development Level C,030771,Durham Advance Flexible Fund,Supplies and Services,348037,Subsistence E348,02-Mar-2023,000010746883539,Zettle_ THE GRIND NE,5812,Subsistence,2.60,0.00,2.60
Neighbourhoods and Climate Change,Environmental Services,010301,C&G - North Grounds Maintenance,Supplies and Services,304999,Equipment and Materials,02-Mar-2023,000010746883541,GRALANDS WOODWORK SUPP,5251,Misc equipment tools and materials,11.18,0.00,11.18
Regeneration Economy and Growth,Economic Development Level C,030771,Durham Advance Flexible Fund,Transport,235057,Public Transport,02-Mar-2023,000010746883577,WALKERGATE CAR PAR,7523,Staff travelling,2.00,0.33,1.67
Regeneration Economy and Growth,Economic Development Level C,030771,Durham Advance Flexible Fund,Supplies and Services,304259,Equipment and Materials,02-Mar-2023,000010746883579,GEN REGISTER OFFICE,9399,Equipment-purchase and rental,14.00,0.00,14.00
Children and Young Peoples Services,Head of Childrens Social Care,085364,Children Looked After Team 1,Supplies and Services,328041,Clothing uniforms and laundry E328,02-Mar-2023,000010746883583,PlanetLeisureLtd,7996,Clothing uniforms and laundry,14.00,0.00,14.00
Children and Young Peoples Services,Head of Childrens Social Care,085364,Children Looked After Team 1,Supplies and Services,304999,Equipment and Materials,02-Mar-2023,000010746883585,WWW.PLANET-LEISURE.CO.,7933,Misc equipment tools and materials,15.20,0.00,15.20
Children and Young Peoples Services,Head of Childrens Social Care,085364,Children Looked After Team 1,Supplies and Services,328041,Clothing uniforms and laundry E328,02-Mar-2023,000010746883587,ARGOS LTD,5310,Clothing uniforms and laundry,283.95,0.00,283.95
Children and Young Peoples Services,Head of Childrens Social Care,085364,Children Looked After Team 1,Supplies and Services,328041,Clothing uniforms and laundry E328,02-Mar-2023,000010746883591,ARGOS LTD,5310,Clothing uniforms and laundry,-283.95,0.00,-283.95
Children and Young Peoples Services,Head of Early Help Inclusion & Vulnerable Children.,085955,Auckland,Supplies and Services,324117,Provisions E324,02-Mar-2023,000010746883593,TESCO STORES 6329,5411,Catering costs - provisions,43.38,0.00,43.38
Resources BK0010,HR & Employee Services,010984,Training and Development,Supplies and Services,384999,Miscellaneous Expenses,02-Mar-2023,000010746883617,NPORS LTD,8211,Other expenses,24.00,0.00,24.00
Neighbourhoods and Climate Change,Environmental Services,031238,North Pennines - Tees Swale,Supplies and Services,304999,Equipment and Materials,02-Mar-2023,000010746883619,AMZNMktplace,5999,Misc equipment tools and materials,8.75,1.46,7.29
Neighbourhoods and Climate Change,Environmental Services,031238,North Pennines - Tees Swale,Supplies and Services,304999,Equipment and Materials,02-Mar-2023,000010746883621,AMZNMktplace,5999,Misc equipment tools and materials,15.98,2.66,13.32
Neighbourhoods and Climate Change,Environmental Services,031238,North Pennines - Tees Swale,Supplies and Services,304999,Equipment and Materials,02-Mar-2023,000010746883623,AMZNMktplace,5999,Misc equipment tools and materials,12.98,2.16,10.82
Neighbourhoods and Climate Change,Partnerships & Community Engagement Div.,060472,Humanitarian Support programme,Supplies and Services,308011,Furniture,02-Mar-2023,000010746883635,B&Q LTD,5211,Furniture repair and replacement,-19.00,0.00,-19.00
Neighbourhoods and Climate Change,Environmental Services,010301,C&G - North Grounds Maintenance,Supplies and Services,304221,Equipment and Materials,02-Mar-2023,000010746883637,EAST RIDING HORTICULTU,5261,Direct materials,44.69,0.00,44.69
Children and Young Peoples Services,Head of Childrens Social Care,085551,Short Break Services-Park Hse Sher,Supplies and Services,324117,Provisions E324,02-Mar-2023,000010746883639,ALDI 774-018,5411,Catering costs - provisions,60.54,0.00,60.54
Dedicated Schools Grant BG0015,DSG Schools Block,702802,Villa Real School 7028 - Literacy,Supplies and Services,384409,Miscellaneous Expenses,02-Mar-2023,000010746883643,TWEDDLE CHILDRENS ANIM,7999,Educational visits,66.72,11.12,55.60
Adult and Health Services,Head of Adults,055643,Hawthorn House LD Respite Unit,Supplies and Services,304403,Equipment and Materials,02-Mar-2023,000010746883675,AMZNMktplace,5999,Other consumables,12.59,2.10,10.49
Adult and Health Services,Head of Adults,055643,Hawthorn House LD Respite Unit,Supplies and Services,304403,Equipment and Materials,02-Mar-2023,000010746883677,AMZNMktplace,5999,Other consumables,12.59,2.10,10.49
Adult and Health Services,Head of Adults,055643,Hawthorn House LD Respite Unit,Supplies and Services,304999,Equipment and Materials,02-Mar-2023,000010746883679,HOME BARGAINS DURHAM 2,5251,Misc equipment tools and materials,5.38,0.00,5.38
Adult and Health Services,Head of Adults,055643,Hawthorn House LD Respite Unit,Supplies and Services,324117,Provisions E324,02-Mar-2023,000010746883681,ASDA STORES LTD 4313,5411,Catering costs - provisions,25.25,0.00,25.25
Adult and Health Services,Head of Adults,055643,Hawthorn House LD Respite Unit,Supplies and Services,324117,Provisions E324,02-Mar-2023,000010746883685,SAINSBURYS S/MKTS,5411,Catering costs - provisions,136.75,0.00,136.75
Adult and Health Services,Head of Adults,055643,Hawthorn House LD Respite Unit,Supplies and Services,324117,Provisions E324,02-Mar-2023,000010746883687,SAINSBURYS S/MKTS,5411,Catering costs - provisions,145.25,0.00,145.25
Children and Young Peoples Services,Head of Childrens Social Care,085347,Solo Home The Manse,Supplies and Services,324117,Provisions E324,02-Mar-2023,000010746883713,ALDI 774-018,5411,Catering costs - provisions,57.33,0.00,57.33
Regeneration Economy and Growth,Culture Sport and Tourism,010601,Spennymoor Leisure Cr - General,Supplies and Services,304259,Equipment and Materials,02-Mar-2023,000010746883723,SP STRENGTH SHOP UK,5941,Equipment-purchase and rental,41.95,0.00,41.95
Regeneration Economy and Growth,Culture Sport and Tourism,011204,Festival and Events,Supplies and Services,384199,Miscellaneous Expenses,02-Mar-2023,000010746883753,Durham City Studios,5999,Other hired and contracted services,8.00,1.33,6.67
Neighbourhoods and Climate Change,Environmental Services,031239,North Pennines - Carbon Connect,Supplies and Services,352001,Conference Expenses,02-Mar-2023,000010746883761,Hotel at Booking.com,7011,Conferencesseminars fees etc,86.00,14.33,71.67
Regeneration Economy and Growth,Corporate Property and Land,015015,FM-Civic Bldgs-Spectrum 8 Seaham,Supplies and Services,304999,Equipment and Materials,02-Mar-2023,000010746883763,ACCU.CO.UK,5072,Misc equipment tools and materials,8.82,0.00,8.82
Regeneration Economy and Growth,Corporate Property and Land,015015,FM-Civic Bldgs-Spectrum 8 Seaham,Supplies and Services,384999,Miscellaneous Expenses,02-Mar-2023,000010746883765,A S CATERING SUPPLIES,5046,Other expenses,29.08,0.00,29.08
Children and Young Peoples Services,Head of Childrens Social Care,085331,New Lea Childrens Home,Supplies and Services,324117,Provisions E324,02-Mar-2023,000010746883767,TESCO STORES 6329,5411,Catering costs - provisions,12.15,0.00,12.15
Children and Young Peoples Services,Head of Early Help Inclusion & Vulnerable Children.,088115,Young Parents Programme 088115,Supplies and Services,384302,Miscellaneous Expenses,02-Mar-2023,000010746883769,AMZNMktplace,5999,Activity expenses,22.99,3.83,19.16
Children and Young Peoples Services,Head of Early Help Inclusion & Vulnerable Children.,088115,Young Parents Programme 088115,Supplies and Services,384302,Miscellaneous Expenses,02-Mar-2023,000010746883771,AMZNMktplace,5999,Activity expenses,129.44,21.60,107.84
Children and Young Peoples Services,Head of Early Help Inclusion & Vulnerable Children.,088115,Young Parents Programme 088115,Supplies and Services,384302,Miscellaneous Expenses,02-Mar-2023,000010746883773,AMZNMktplace,5999,Activity expenses,183.84,30.64,153.20
Children and Young Peoples Services,Head of Early Help Inclusion & Vulnerable Children.,088115,Young Parents Programme 088115,Supplies and Services,384302,Miscellaneous Expenses,02-Mar-2023,000010746883773 - 1,AMZNMktplace,5999,Activity expenses,0.08,,0.08
Children and Young Peoples Services,Head of Early Help Inclusion & Vulnerable Children.,074000,National Supporting Families Programme,Transfer Payments,525033,Other,02-Mar-2023,000010746883777,J DODDS CARPETS LTD,5713,Grants to individuals,200.04,33.34,166.70
Children and Young Peoples Services,Head of Early Help Inclusion & Vulnerable Children.,074000,National Supporting Families Programme,Transfer Payments,525033,Other,02-Mar-2023,000010746883777 - 1,J DODDS CARPETS LTD,5713,Grants to individuals,49.96,,49.96
Children and Young Peoples Services,Head of Early Help Inclusion & Vulnerable Children.,085965,Barnard,Supplies and Services,328041,Clothing uniforms and laundry E328,02-Mar-2023,000010746883781,ARGOS BISHOP AUCKL,5310,Clothing uniforms and laundry,9.00,0.00,9.00
Resources BK0010,Digital Services,065335,School Services - Implementations,Supplies and Services,342033,Computers and Communications,02-Mar-2023,000010746883785,REPLACEBASE,5732,Computer hardware,92.51,0.00,92.51
Resources BK0010,Digital Services,065335,School Services - Implementations,Supplies and Services,304639,Equipment and Materials,02-Mar-2023,000010746883787,AMZNBusiness 1L0XB3SS4,5999,Technicians-supplies,391.20,65.20,326.00
Resources BK0010,Digital Services,065335,School Services - Implementations,Supplies and Services,304639,Equipment and Materials,02-Mar-2023,000010746883787 - 1,AMZNBusiness 1L0XB3SS4,5999,Technicians-supplies,0.40,,0.40
Children and Young Peoples Services,Head of Early Help Inclusion & Vulnerable Children.,085963,Maple House,Supplies and Services,304259,Equipment and Materials,02-Mar-2023,000010746883813,AMZNMktplace,5999,Equipment-purchase and rental,19.99,0.00,19.99
Children and Young Peoples Services,Head of Early Help Inclusion & Vulnerable Children.,085954,Walworth,Transfer Payments,515002,Social Services Clients,02-Mar-2023,000010746883815,JD Sports Fashion PLC,5655,Pocket money,-25.00,0.00,-25.00
Children and Young Peoples Services,Head of Early Help Inclusion & Vulnerable Children.,085954,Walworth,Transfer Payments,515002,Social Services Clients,02-Mar-2023,000010746883817,JD Sports Fashion PLC,5655,Pocket money,-20.00,0.00,-20.00
Children and Young Peoples Services,Head of Early Help Inclusion & Vulnerable Children.,079034,SEND LOOKED AFTER AND VULNERABLE CASEWORK TEAM 1,Supplies and Services,304403,Equipment and Materials,02-Mar-2023,000010746883819,AMZNMktplace,5999,Other consumables,19.99,3.33,16.66
Children and Young Peoples Services,Head of Childrens Social Care,085347,Solo Home The Manse,Supplies and Services,324117,Provisions E324,02-Mar-2023,000010746883831,CO-OP GROUP 310016,5411,Catering costs - provisions,4.10,0.00,4.10
Children and Young Peoples Services,Head of Childrens Social Care,085351,Framwellgate Moor CU,Supplies and Services,324117,Provisions E324,02-Mar-2023,000010746883843,LIDL GB LANGLEY MOOR,5411,Catering costs - provisions,11.02,0.00,11.02
Children and Young Peoples Services,Head of Education and Skills,071802,Louisa Cent Nursery,Supplies and Services,324117,Provisions E324,02-Mar-2023,000010746883845,ASDA SUPERSTORE,5411,Catering costs - provisions,18.48,0.00,18.48
Children and Young Peoples Services,Head of Education and Skills,071802,Louisa Cent Nursery,Supplies and Services,324117,Provisions E324,02-Mar-2023,000010746883847,ALDI STORES,5411,Catering costs - provisions,12.93,0.00,12.93
Children and Young Peoples Services,Head of Childrens Social Care,085347,Solo Home The Manse,Employees,040149,Recruitment Instruction and Training,02-Mar-2023,000010746883849,BRITISH HEART FOUNDATI,8398,Training-all costs,22.21,0.00,22.21
Children and Young Peoples Services,Head of Childrens Social Care,085347,Solo Home The Manse,Transport,235057,Public Transport,02-Mar-2023,000010746883851,THE RIVERWALK CAR PARK,7523,Staff travelling,1.80,0.00,1.80
Children and Young Peoples Services,Head of Early Help Inclusion & Vulnerable Children.,088115,Young Parents Programme 088115,Supplies and Services,304259,Equipment and Materials,02-Mar-2023,000010746883875,AMZNBusiness 1L2FM52X4,5999,Equipment-purchase and rental,31.50,0.00,31.50
Children and Young Peoples Services,Head of Early Help Inclusion & Vulnerable Children.,088115,Young Parents Programme 088115,Supplies and Services,304259,Equipment and Materials,02-Mar-2023,000010746883877,WWW.THEWORKS.CO.UK,5310,Equipment-purchase and rental,40.00,0.00,40.00
Children and Young Peoples Services,Head of Early Help Inclusion & Vulnerable Children.,085962,Aycliffe Secure - Durham,Supplies and Services,304403,Equipment and Materials,02-Mar-2023,000010746883907,AMZNMktplace,5999,Other consumables,32.95,5.49,27.46
Children and Young Peoples Services,Head of Early Help Inclusion & Vulnerable Children.,085962,Aycliffe Secure - Durham,Supplies and Services,304403,Equipment and Materials,02-Mar-2023,000010746883909,AMZNMktplace,5999,Other consumables,8.36,1.39,6.97
Children and Young Peoples Services,Head of Childrens Social Care,085358,Orchard House Sacriston Solo Home,Supplies and Services,384237,Miscellaneous Expenses,02-Mar-2023,000010746883911,Top Gear Karting,7999,Recreational exps outings parties,50.00,0.00,50.00
Children and Young Peoples Services,Head of Childrens Social Care,085358,Orchard House Sacriston Solo Home,Supplies and Services,324117,Provisions E324,02-Mar-2023,000010746883915,OX CLOSE FARM LIMITED,5451,Catering costs - provisions,2.20,0.00,2.20
Children and Young Peoples Services,Head of Childrens Social Care,085358,Orchard House Sacriston Solo Home,Supplies and Services,324117,Provisions E324,02-Mar-2023,000010746883917,OX CLOSE FARM LIMITED,5451,Catering costs - provisions,2.30,0.00,2.30
Children and Young Peoples Services,Head of Childrens Social Care,085358,Orchard House Sacriston Solo Home,Supplies and Services,324117,Provisions E324,02-Mar-2023,000010746883919,OX CLOSE FARM LIMITED,5451,Catering costs - provisions,2.80,0.00,2.80
Children and Young Peoples Services,Head of Childrens Social Care,085358,Orchard House Sacriston Solo Home,Supplies and Services,324117,Provisions E324,02-Mar-2023,000010746883921,OX CLOSE FARM LIMITED,5451,Catering costs - provisions,1.20,0.00,1.20
Children and Young Peoples Services,Head of Childrens Social Care,085358,Orchard House Sacriston Solo Home,Supplies and Services,324117,Provisions E324,02-Mar-2023,000010746883923,OX CLOSE FARM LIMITED,5451,Catering costs - provisions,2.80,0.00,2.80
Children and Young Peoples Services,Head of Childrens Social Care,085358,Orchard House Sacriston Solo Home,Supplies and Services,324117,Provisions E324,02-Mar-2023,000010746883925,OX CLOSE FARM LIMITED,5451,Catering costs - provisions,2.30,0.00,2.30
Children and Young Peoples Services,Head of Childrens Social Care,085358,Orchard House Sacriston Solo Home,Supplies and Services,324117,Provisions E324,02-Mar-2023,000010746883927,OX CLOSE FARM LIMITED,5451,Catering costs - provisions,2.30,0.00,2.30
Children and Young Peoples Services,Childrens Services Operational Support,052932,Childrens Social Care,Supplies and Services,304403,Equipment and Materials,02-Mar-2023,000010746883951,AMZNBusiness 1L4629SN4,5999,Other consumables,21.27,0.00,21.27
Children and Young Peoples Services,Childrens Services Operational Support,052932,Childrens Social Care,Supplies and Services,304403,Equipment and Materials,02-Mar-2023,000010746883953,AMZNBusiness 1L64W0DQ4,5999,Other consumables,21.27,0.00,21.27
Resources BK0010,Digital Services,065304,Design & Print - Print,Supplies and Services,304403,Equipment and Materials,02-Mar-2023,000010746883955,AMZNMktplace,5999,Other consumables,49.95,8.33,41.62
Neighbourhoods and Climate Change,Environmental Services,031071,E&D - Sustainability and Climate Change,Supplies and Services,342222,Computers and Communications,02-Mar-2023,000010746883957,LCN COM,4816,Comp hardware purch-network servers,202.74,0.00,202.74
Regeneration Economy and Growth,Corporate Property and Land,039501,Bishop Auckland - Town Centre,Third Party Payments,430100,Rendered by Private Contractors,02-Mar-2023,000010746883959,EB STORY BUILDING WOR,7399,Payments to sub-contractors,85.00,0.00,85.00
Neighbourhoods and Climate Change,Environmental Services,031275,E&D - Climate Change Investment,Supplies and Services,304403,Equipment and Materials,02-Mar-2023,000010746883965,AMZNMKTPLACE AMAZON.CO,5999,Other consumables,359.25,60.00,299.25
Adult and Health Services,Head of Adults,052229,Countywide AMHP Team,Supplies and Services,338048,Services,02-Mar-2023,000010746883967,HMCTS GRIMSBY&SCUNTHOR,9222,Court costs 338048,81.00,0.00,81.00
Regeneration Economy and Growth,Communications Management,060270,Communications and Marketing,Supplies and Services,372009,Subscriptions E372,02-Mar-2023,000010746883987,Envato,7372,Subscriptions 372009,153.38,0.00,153.38
Adult and Health Services,Head of Adults,055310,Positive Journeys (Tudhoe),Supplies and Services,304999,Equipment and Materials,02-Mar-2023,000010746883993,HOME BARGAINS PETERLEE,5251,Misc equipment tools and materials,9.99,0.00,9.99
Neighbourhoods and Climate Change,Environmental Services,011171,Nei.Prot - Allotments,Supplies and Services,304221,Equipment and Materials,02-Mar-2023,000010746884003,BTL TIMBER AND COUNTRY,5211,Direct materials,255.75,0.00,255.75
Neighbourhoods and Climate Change,Environmental Services,011171,Nei.Prot - Allotments,Supplies and Services,304221,Equipment and Materials,02-Mar-2023,000010746884005,SCREWFIX DIR LTD,5211,Direct materials,16.48,0.00,16.48
Regeneration Economy and Growth,Planning & Housing,031634,LOCAL LETTINGS AGENCY,Premises,120037,Energy Costs,02-Mar-2023,000010746884009,MARTIN MCCOLL,5499,Other fuels,50.00,0.00,50.00
Regeneration Economy and Growth,Planning & Housing,031576,B& B - Temp Accom,Supplies and Services,364320,Grants to Voluntary Organisations,02-Mar-2023,000010746884043,Hotel at Booking.com,7011,Accommodation assistance,198.00,0.00,198.00
Regeneration Economy and Growth,Planning & Housing,031576,B& B - Temp Accom,Supplies and Services,364320,Grants to Voluntary Organisations,02-Mar-2023,000010746884045,Hotel at Booking.com,7011,Accommodation assistance,45.00,0.00,45.00
Regeneration Economy and Growth,Planning & Housing,031581,Prevention Fund,Transport,235057,Public Transport,02-Mar-2023,000010746884047,UBER TRIP,4121,Staff travelling,25.13,0.00,25.13
Regeneration Economy and Growth,Planning & Housing,031581,Prevention Fund,Transport,235057,Public Transport,02-Mar-2023,000010746884049,UBER TRIP,4121,Staff travelling,14.99,0.00,14.99
Regeneration Economy and Growth,Planning & Housing,031581,Prevention Fund,Transport,235057,Public Transport,02-Mar-2023,000010746884051,UBER TRIP,4121,Staff travelling,28.28,0.00,28.28
Regeneration Economy and Growth,Planning & Housing,031581,Prevention Fund,Transport,235057,Public Transport,02-Mar-2023,000010746884053,UBER TRIP,4121,Staff travelling,16.66,0.00,16.66
Regeneration Economy and Growth,Planning & Housing,031576,B& B - Temp Accom,Supplies and Services,364320,Grants to Voluntary Organisations,02-Mar-2023,000010746884055,Roadchef Durham,7011,Accommodation assistance,30.00,0.00,30.00
Regeneration Economy and Growth,Corporate Property and Land,010525,Catering - Green Lane,Supplies and Services,324117,Provisions E324,02-Mar-2023,000010746958889,HOPWELLS LTD,5811,Catering costs - provisions,136.16,0.00,136.16
Regeneration Economy and Growth,Corporate Property and Land,011275,Catering -Durham Leadership Centre,Supplies and Services,324117,Provisions E324,02-Mar-2023,000010746958893,HOPWELLS LTD,5811,Catering costs - provisions,117.49,0.00,117.49
Regeneration Economy and Growth,Corporate Property and Land,011296,Catering - Dunes,Supplies and Services,324117,Provisions E324,02-Mar-2023,000010746958895,HOPWELLS LTD,5811,Catering costs - provisions,27.72,4.62,23.10
Regeneration Economy and Growth,Corporate Property and Land,011296,Catering - Dunes,Supplies and Services,324117,Provisions E324,02-Mar-2023,000010746958895 - 1,HOPWELLS LTD,5811,Catering costs - provisions,174.27,,174.27
Regeneration Economy and Growth,Corporate Property and Land,011296,Catering - Dunes,Supplies and Services,324117,Provisions E324,02-Mar-2023,000010746958897,HOPWELLS LTD,5811,Catering costs - provisions,-16.58,0.00,-16.58
Regeneration Economy and Growth,Corporate Property and Land,030691,Catering - Durham Dales Centre,Supplies and Services,324117,Provisions E324,02-Mar-2023,000010746958899,JR HOLLAND FOODSERVICE,5499,Catering costs - provisions,78.59,0.00,78.59
Regeneration Economy and Growth,Culture Sport and Tourism,054235,Bishop Auckland Town Hall Cafe,Supplies and Services,324117,Provisions E324,02-Mar-2023,000010746958901,JR HOLLAND FOODSERVICE,5499,Catering costs - provisions,321.76,0.00,321.76
Neighbourhoods and Climate Change,Environmental Services,011060,C&G - Hardwick Park Catering,Supplies and Services,324117,Provisions E324,02-Mar-2023,000010746958903,HOPWELLS LTD,5811,Catering costs - provisions,365.10,60.85,304.25
Neighbourhoods and Climate Change,Environmental Services,011060,C&G - Hardwick Park Catering,Supplies and Services,324117,Provisions E324,02-Mar-2023,000010746958903 - 1,HOPWELLS LTD,5811,Catering costs - provisions,222.44,,222.44
Regeneration Economy and Growth,Corporate Property and Land,021234,Catering - Locomotion,Supplies and Services,324117,Provisions E324,02-Mar-2023,000010746958905,HOPWELLS LTD,5811,Catering costs - provisions,169.71,0.00,169.71
Regeneration Economy and Growth,Culture Sport and Tourism,011263,Louisa Centre 011263,Supplies and Services,324117,Provisions E324,02-Mar-2023,000010746958907,JR HOLLAND FOODSERVICE,5499,Catering costs - provisions,47.11,0.00,47.11
Regeneration Economy and Growth,Culture Sport and Tourism,054812,Gala Theatre - Catering etc,Supplies and Services,324117,Provisions E324,02-Mar-2023,000010746958909,HOPWELLS LTD,5811,Catering costs - provisions,30.41,0.00,30.41
Regeneration Economy and Growth,Culture Sport and Tourism,054812,Gala Theatre - Catering etc,Supplies and Services,324117,Provisions E324,02-Mar-2023,000010746958911,HOPWELLS LTD,5811,Catering costs - provisions,7.84,0.00,7.84
Regeneration Economy and Growth,Corporate Property and Land,021242,Catering - County Hall,Supplies and Services,324117,Provisions E324,02-Mar-2023,000010746958913,HOPWELLS LTD,5811,Catering costs - provisions,166.05,0.00,166.05
Regeneration Economy and Growth,Corporate Property and Land,021324,Catering - Meadowfield,Supplies and Services,324117,Provisions E324,02-Mar-2023,000010746958915,HOPWELLS LTD,5811,Catering costs - provisions,114.83,0.00,114.83
Regeneration Economy and Growth,Corporate Property and Land,021324,Catering - Meadowfield,Supplies and Services,324117,Provisions E324,02-Mar-2023,000010746958917,JR HOLLAND FOODSERVICE,5499,Catering costs - provisions,99.83,0.00,99.83
Regeneration Economy and Growth,Corporate Property and Land,021324,Catering - Meadowfield,Supplies and Services,324117,Provisions E324,02-Mar-2023,000010746958919,JR HOLLAND FOODSERVICE,5499,Catering costs - provisions,23.00,0.00,23.00
Children and Young Peoples Services,Head of Childrens Social Care,085611,Families First Stanley,Supplies and Services,364340,Grants to Voluntary Organisations,03-Mar-2023,000008679392670,WWW.GONORTHEAST.CO.UK,4111,Contact expenses,7.00,0.00,7.00
Children and Young Peoples Services,Head of Childrens Social Care,085611,Families First Stanley,Supplies and Services,364340,Grants to Voluntary Organisations,03-Mar-2023,000008679392672,WWW.GONORTHEAST.CO.UK,4111,Contact expenses,7.00,0.00,7.00
Children and Young Peoples Services,Head of Childrens Social Care,085611,Families First Stanley,Supplies and Services,364340,Grants to Voluntary Organisations,03-Mar-2023,000008679392674,WWW.GONORTHEAST.CO.UK,4111,Contact expenses,7.00,0.00,7.00
Children and Young Peoples Services,Head of Childrens Social Care,085368,Children Looked After Team 5,Supplies and Services,338045,Services,03-Mar-2023,000008679392676,HM PASSPORT OFFICE,9399,Legal expenses 338045,53.50,0.00,53.50
Children and Young Peoples Services,Head of Childrens Social Care,085368,Children Looked After Team 5,Supplies and Services,338045,Services,03-Mar-2023,000008679392678,HM PASSPORT OFFICE,9399,Legal expenses 338045,53.50,0.00,53.50
Children and Young Peoples Services,Head of Childrens Social Care,085367,Children Looked After Team 4,Supplies and Services,338045,Services,03-Mar-2023,000008679392680,GEN REGISTER OFFICE,9399,Legal expenses 338045,22.00,0.00,22.00
Regeneration Economy and Growth,Economic Development Level C,030771,Durham Advance Flexible Fund,Supplies and Services,304403,Equipment and Materials,03-Mar-2023,000008679392736,AMZNMKTPLACE AMAZON.CO,5999,Other consumables,477.21,0.00,477.21
Neighbourhoods and Climate Change,Environmental Services,010383,C&G - South Street Cleansing,Supplies and Services,304221,Equipment and Materials,03-Mar-2023,000008679392746,WWW.ARCO.CO.UK,5085,Direct materials,404.38,0.00,404.38
Regeneration Economy and Growth,Culture Sport and Tourism,011298,City of Culture,Supplies and Services,304252,Equipment and Materials,03-Mar-2023,000008679392748,AMZNMktplace,5999,Equipment-repairsserviceinsurance,19.38,3.24,16.14
Children and Young Peoples Services,Head of Childrens Social Care,085332,Middlestone Moor CU,Supplies and Services,324117,Provisions E324,03-Mar-2023,000008679392770,TESCO STORES 2371,5411,Catering costs - provisions,128.74,0.00,128.74
Children and Young Peoples Services,Head of Childrens Social Care,085342,16 Hickstead Rise (previously 9 Cedar Ave),Supplies and Services,324117,Provisions E324,03-Mar-2023,000008679392774,B&M 681 - DURHAM,5399,Catering costs - provisions,16.95,0.00,16.95
Regeneration Economy and Growth,Planning & Housing,031634,LOCAL LETTINGS AGENCY,Premises,120037,Energy Costs,03-Mar-2023,000008679392786,BRITISH GAS OTP,4900,Other fuels,410.46,0.00,410.46
Children and Young Peoples Services,Head of Childrens Social Care,085511,Emergency Duty Team,Supplies and Services,352001,Conference Expenses,03-Mar-2023,000008679392910,TRAVELODGE,3615,Conferencesseminars fees etc,190.70,0.00,190.70
Children and Young Peoples Services,Head of Childrens Social Care,085511,Emergency Duty Team,Supplies and Services,352001,Conference Expenses,03-Mar-2023,000008679392914,HOTEL 52,7011,Conferencesseminars fees etc,251.00,0.00,251.00
Children and Young Peoples Services,Head of Childrens Social Care,085342,16 Hickstead Rise (previously 9 Cedar Ave),Supplies and Services,304403,Equipment and Materials,03-Mar-2023,000008679392968,AMZNMktplace,5999,Other consumables,83.60,0.00,83.60
Regeneration Economy and Growth,Planning & Housing,031576,B& B - Temp Accom,Supplies and Services,364320,Grants to Voluntary Organisations,03-Mar-2023,000008679392990,HOTEL 52,7011,Accommodation assistance,251.00,0.00,251.00
Children and Young Peoples Services,Head of Childrens Social Care,085358,Orchard House Sacriston Solo Home,Supplies and Services,324117,Provisions E324,03-Mar-2023,000008679393000,ALDI STORES,5411,Catering costs - provisions,93.49,0.00,93.49
Children and Young Peoples Services,Head of Education and Skills,071732,Dean Bank Childcare,Supplies and Services,324117,Provisions E324,03-Mar-2023,000008679393030,B&M 035 - SHILDON,5399,Catering costs - provisions,146.54,0.00,146.54
Adult and Health Services,Head of Adults,055302,Durham Pathways,Supplies and Services,304999,Equipment and Materials,03-Mar-2023,000008679393032,HOME BARGAINS DURHAM 2,5251,Misc equipment tools and materials,32.39,0.00,32.39
Adult and Health Services,Head of Adults,055302,Durham Pathways,Supplies and Services,324117,Provisions E324,03-Mar-2023,000008679393036,ALDI STORES,5411,Catering costs - provisions,11.70,0.00,11.70
Neighbourhoods and Climate Change,Environmental Services,010314,Nei.Prot - Bereavement Services,Supplies and Services,304259,Equipment and Materials,03-Mar-2023,000008679393070,DURHAM COUNTY COUNCIL,9399,Equipment-purchase and rental,11.00,0.00,11.00
Children and Young Peoples Services,Head of Education and Skills,071801,Selby Cottage Childcare Centre,Supplies and Services,324117,Provisions E324,03-Mar-2023,000008679393074,TESCO STORES 2278,5411,Catering costs - provisions,7.30,0.00,7.30
Children and Young Peoples Services,Head of Childrens Social Care,085341,High Etherley Satelite Home,Supplies and Services,324117,Provisions E324,03-Mar-2023,000008679393096,774 026,5411,Catering costs - provisions,27.65,0.00,27.65
Adult and Health Services,Head of Adults,055202,Support and Recovery,Supplies and Services,304403,Equipment and Materials,03-Mar-2023,000008679393124,AMZNMKTPLACE AMAZON.CO,5999,Other consumables,22.99,3.83,19.16
Neighbourhoods and Climate Change,Environmental Services,010301,C&G - North Grounds Maintenance,Supplies and Services,304999,Equipment and Materials,03-Mar-2023,000008679393128,TURFCARE SPECIALISTS L,780,Misc equipment tools and materials,316.80,0.00,316.80
Regeneration Economy and Growth,Economic Development Level C,030771,Durham Advance Flexible Fund,Supplies and Services,352001,Conference Expenses,03-Mar-2023,000008679393140,BOWBURN HALL HOTEL,7011,Conferencesseminars fees etc,6.00,1.00,5.00
Regeneration Economy and Growth,Economic Development Level C,030771,Durham Advance Flexible Fund,Supplies and Services,384999,Miscellaneous Expenses,03-Mar-2023,000008679393156,ZUMBA FITNESS,7997,Other expenses,36.85,0.00,36.85
Children and Young Peoples Services,Head of Childrens Social Care,085334,West Rainton Satelite Home,Supplies and Services,324117,Provisions E324,03-Mar-2023,000008679393174,TESCO STORES 2371,5411,Catering costs - provisions,57.69,0.00,57.69
Children and Young Peoples Services,Head of Childrens Social Care,085334,West Rainton Satelite Home,Transport,215995,Running Costs of Vehicles,03-Mar-2023,000008679393176,GULF WEST RAINTON,5541,Vehicle running expenses,5.95,0.00,5.95
Children and Young Peoples Services,Head of Childrens Social Care,085334,West Rainton Satelite Home,Supplies and Services,304221,Equipment and Materials,03-Mar-2023,000008679393178,B & Q 1343,5200,Direct materials,-27.00,0.00,-27.00
Children and Young Peoples Services,Head of Childrens Social Care,085501,Child Care Cases Legal Expenses,Supplies and Services,304259,Equipment and Materials,03-Mar-2023,000008679393214,GEN REGISTER OFFICE,9399,Equipment-purchase and rental,22.00,0.00,22.00
Children and Young Peoples Services,Head of Childrens Social Care,085621,Families First Newton Aycliffe and Shildon,Supplies and Services,304403,Equipment and Materials,03-Mar-2023,000008679393220,AMZNMktplace,5999,Other consumables,9.90,1.65,8.25
Children and Young Peoples Services,Head of Childrens Social Care,085621,Families First Newton Aycliffe and Shildon,Supplies and Services,304403,Equipment and Materials,03-Mar-2023,000008679393220 - 1,AMZNMktplace,5999,Other consumables,0.05,,0.05
Children and Young Peoples Services,Head of Childrens Social Care,085621,Families First Newton Aycliffe and Shildon,Supplies and Services,304403,Equipment and Materials,03-Mar-2023,000008679393222,AMZNMktplace,5999,Other consumables,11.99,0.00,11.99
Children and Young Peoples Services,Head of Childrens Social Care,085621,Families First Newton Aycliffe and Shildon,Supplies and Services,304403,Equipment and Materials,03-Mar-2023,000008679393224,WWW.WIDGIT.COM,5734,Other consumables,354.00,0.00,354.00
Neighbourhoods and Climate Change,Partnerships & Community Engagement Div.,060472,Humanitarian Support programme,Supplies and Services,308011,Furniture,03-Mar-2023,000008679393282,247blinds.co.uk,5714,Furniture repair and replacement,276.34,0.00,276.34
Neighbourhoods and Climate Change,Partnerships & Community Engagement Div.,060472,Humanitarian Support programme,Supplies and Services,308011,Furniture,03-Mar-2023,000008679393286,247blinds.co.uk,5714,Furniture repair and replacement,"1,104.68",0.00,1104.68
Neighbourhoods and Climate Change,Partnerships & Community Engagement Div.,060472,Humanitarian Support programme,Supplies and Services,308011,Furniture,03-Mar-2023,000008679393290,B&Q LTD,5211,Furniture repair and replacement,96.00,0.00,96.00
Neighbourhoods and Climate Change,Partnerships & Community Engagement Div.,060472,Humanitarian Support programme,Supplies and Services,308011,Furniture,03-Mar-2023,000008679393294,B&Q LTD,5211,Furniture repair and replacement,158.00,0.00,158.00
Neighbourhoods and Climate Change,Partnerships & Community Engagement Div.,060472,Humanitarian Support programme,Supplies and Services,308011,Furniture,03-Mar-2023,000008679393300,B&Q LTD,5211,Furniture repair and replacement,19.00,0.00,19.00
Regeneration Economy and Growth,Culture Sport and Tourism,060131,County Records,Supplies and Services,384999,Miscellaneous Expenses,03-Mar-2023,000008679393308,UKPFS,5970,Other expenses,26.93,0.00,26.93
Neighbourhoods and Climate Change,Environmental Services,010301,C&G - North Grounds Maintenance,Supplies and Services,304999,Equipment and Materials,03-Mar-2023,000008679393316,TURFCARE SPECIALISTS L,780,Misc equipment tools and materials,316.80,0.00,316.80
Children and Young Peoples Services,Head of Childrens Social Care,085551,Short Break Services-Park Hse Sher,Supplies and Services,324117,Provisions E324,03-Mar-2023,000008679393322,J FREEMAN & SONS LTD,5499,Catering costs - provisions,165.54,0.00,165.54
Adult and Health Services,Head of Adults,055643,Hawthorn House LD Respite Unit,Supplies and Services,304403,Equipment and Materials,03-Mar-2023,000008679393448,AMZNMKTPLACE AMAZON.CO,5999,Other consumables,19.92,3.32,16.60
Adult and Health Services,Head of Adults,055643,Hawthorn House LD Respite Unit,Supplies and Services,304403,Equipment and Materials,03-Mar-2023,000008679393448 - 1,AMZNMKTPLACE AMAZON.CO,5999,Other consumables,0.04,,0.04
Adult and Health Services,Head of Adults,055643,Hawthorn House LD Respite Unit,Supplies and Services,304403,Equipment and Materials,03-Mar-2023,000008679393454,AMZNMKTPLACE AMAZON.CO,5999,Other consumables,45.84,7.64,38.20
Adult and Health Services,Head of Adults,055643,Hawthorn House LD Respite Unit,Supplies and Services,304403,Equipment and Materials,03-Mar-2023,000008679393454 - 1,AMZNMKTPLACE AMAZON.CO,5999,Other consumables,0.08,,0.08
Adult and Health Services,Head of Adults,055643,Hawthorn House LD Respite Unit,Supplies and Services,304403,Equipment and Materials,03-Mar-2023,000008679393456,AMZNMKTPLACE AMAZON.CO,5999,Other consumables,59.76,9.96,49.80
Adult and Health Services,Head of Adults,055643,Hawthorn House LD Respite Unit,Supplies and Services,304403,Equipment and Materials,03-Mar-2023,000008679393456 - 1,AMZNMKTPLACE AMAZON.CO,5999,Other consumables,0.12,,0.12
Regeneration Economy and Growth,Economic Development Level C,030775,LINKCD,Transport,235057,Public Transport,03-Mar-2023,000008679393472,WWW.GONORTHEAST.CO.UK,4111,Staff travelling,25.00,0.00,25.00
Regeneration Economy and Growth,Economic Development Level C,030771,Durham Advance Flexible Fund,Supplies and Services,324117,Provisions E324,03-Mar-2023,000008679393474,CO OP GROUP FOOD,5411,Catering costs - provisions,7.55,0.00,7.55
Regeneration Economy and Growth,Corporate Property and Land,011001,FM-Civic Bldgs-Green Lane Council Offices Spennymoor,Supplies and Services,304221,Equipment and Materials,03-Mar-2023,000008679393482,WEL MEDICAL LIMITED ON,8099,Direct materials,57.60,9.60,48.00
Regeneration Economy and Growth,Corporate Property and Land,020073,Bldg Serv - R&M Div 73 - Gas Servicing,Supplies and Services,372009,Subscriptions E372,03-Mar-2023,000008679393490,CAPITA GAS,8699,Subscriptions 372009,12.00,2.00,10.00
Regeneration Economy and Growth,Corporate Property and Land,020073,Bldg Serv - R&M Div 73 - Gas Servicing,Supplies and Services,372009,Subscriptions E372,03-Mar-2023,000008679393492,CAPITA GAS,8699,Subscriptions 372009,30.00,5.00,25.00
Regeneration Economy and Growth,Corporate Property and Land,020041,Bldg Serv - Business Development - General,Transport,235057,Public Transport,03-Mar-2023,000008679393494,MIDDLESBROUGH COUNCIL,9399,Staff travelling,0.30,0.05,0.25
Regeneration Economy and Growth,Corporate Property and Land,020041,Bldg Serv - Business Development - General,Transport,235057,Public Transport,03-Mar-2023,000008679393494 - 1,MIDDLESBROUGH COUNCIL,9399,Staff travelling,3.50,,3.50
Neighbourhoods and Climate Change,Environmental Services,010367,C&G - South Grounds Maintenance,Supplies and Services,304221,Equipment and Materials,03-Mar-2023,000008679393548,WWW.TUDORENVIRONMENTAL,5261,Direct materials,110.74,0.00,110.74
Children and Young Peoples Services,Head of Education and Skills,075035,DurhamDirections Re-engagement,Supplies and Services,364301,Grants to Voluntary Organisations,03-Mar-2023,000008679393550,WWW.GONORTHEAST.CO.UK,4111,Hardship,110.00,0.00,110.00
Children and Young Peoples Services,Head of Education and Skills,075033,DurhamWorks 3,Supplies and Services,364301,Grants to Voluntary Organisations,03-Mar-2023,000008679393552,WWW.GONORTHEAST.CO.UK,4111,Hardship,4.70,0.00,4.70
Children and Young Peoples Services,Head of Education and Skills,075033,DurhamWorks 3,Supplies and Services,364301,Grants to Voluntary Organisations,03-Mar-2023,000008679393554,WWW.GONORTHEAST.CO.UK,4111,Hardship,4.70,0.00,4.70
Children and Young Peoples Services,Head of Education and Skills,075033,DurhamWorks 3,Supplies and Services,364301,Grants to Voluntary Organisations,03-Mar-2023,000008679393556,WWW.GONORTHEAST.CO.UK,4111,Hardship,4.70,0.00,4.70
Children and Young Peoples Services,Head of Education and Skills,075034,Youth Futures Foundation,Supplies and Services,364301,Grants to Voluntary Organisations,03-Mar-2023,000008679393558,WWW.GONORTHEAST.CO.UK,4111,Hardship,72.00,0.00,72.00
Children and Young Peoples Services,Head of Education and Skills,071732,Dean Bank Childcare,Supplies and Services,304403,Equipment and Materials,03-Mar-2023,000008679393566,AMZNMktplace,5999,Other consumables,14.98,0.00,14.98
Children and Young Peoples Services,Head of Early Help Inclusion & Vulnerable Children.,085957,Secure Management,Supplies and Services,324117,Provisions E324,03-Mar-2023,000008679393570,TESCO STORES 6329,5411,Catering costs - provisions,57.99,0.00,57.99
Children and Young Peoples Services,Head of Early Help Inclusion & Vulnerable Children.,085957,Secure Management,Supplies and Services,304403,Equipment and Materials,03-Mar-2023,000008679393572,AMZNMktplace,5999,Other consumables,62.97,10.50,52.47
Children and Young Peoples Services,Head of Early Help Inclusion & Vulnerable Children.,085957,Secure Management,Supplies and Services,304403,Equipment and Materials,03-Mar-2023,000008679393574,AMZNMktplace,5999,Other consumables,99.85,16.65,83.20
Children and Young Peoples Services,Head of Childrens Social Care,085334,West Rainton Satelite Home,Supplies and Services,304999,Equipment and Materials,03-Mar-2023,000008679393606,HOME BARGAINS,5251,Misc equipment tools and materials,12.29,0.00,12.29
Children and Young Peoples Services,Head of Childrens Social Care,085334,West Rainton Satelite Home,Supplies and Services,324117,Provisions E324,03-Mar-2023,000008679393608,ALDI 12 774,5411,Catering costs - provisions,61.35,0.00,61.35
Children and Young Peoples Services,Head of Childrens Social Care,085331,New Lea Childrens Home,Supplies and Services,324117,Provisions E324,03-Mar-2023,000008679393610,LIDL GB DURHAM,5411,Catering costs - provisions,6.37,0.00,6.37
Children and Young Peoples Services,Head of Childrens Social Care,085331,New Lea Childrens Home,Supplies and Services,324117,Provisions E324,03-Mar-2023,000008679393612,TESCO STORES 6329,5411,Catering costs - provisions,6.59,0.00,6.59
Children and Young Peoples Services,Head of Early Help Inclusion & Vulnerable Children.,088115,Young Parents Programme 088115,Supplies and Services,384302,Miscellaneous Expenses,03-Mar-2023,000008679393630,BOOTS UK ECOMM,5912,Activity expenses,26.70,0.00,26.70
Children and Young Peoples Services,Head of Early Help Inclusion & Vulnerable Children.,088102,Consett & Stanley Intensive Family Support Team,Supplies and Services,364301,Grants to Voluntary Organisations,03-Mar-2023,000008679393644,ASDA GROCERIES ONLINE,5411,Hardship,470.45,0.00,470.45
Children and Young Peoples Services,Head of Early Help Inclusion & Vulnerable Children.,088115,Young Parents Programme 088115,Supplies and Services,384302,Miscellaneous Expenses,03-Mar-2023,000008679393648,AMZ Bargainhouse2021,5999,Activity expenses,-17.98,-3.00,-14.98
Children and Young Peoples Services,Head of Early Help Inclusion & Vulnerable Children.,088115,Young Parents Programme 088115,Supplies and Services,384302,Miscellaneous Expenses,03-Mar-2023,000008679393650,AMZ Bargainhouse2021,5999,Activity expenses,-17.98,-3.00,-14.98
Children and Young Peoples Services,Head of Early Help Inclusion & Vulnerable Children.,088102,Consett & Stanley Intensive Family Support Team,Supplies and Services,364301,Grants to Voluntary Organisations,03-Mar-2023,000008679393652,ASDA GROCERIES ONLINE,5411,Hardship,-46.00,0.00,-46.00
Resources BK0010,Digital Services,065323,Operations - Installations,Supplies and Services,304639,Equipment and Materials,03-Mar-2023,000008679393698,CAPITA GAS,8699,Technicians-supplies,190.20,0.00,190.20
Children and Young Peoples Services,Head of Early Help Inclusion & Vulnerable Children.,085963,Maple House,Supplies and Services,304259,Equipment and Materials,03-Mar-2023,000008679393720,WF UK3876039684,5712,Equipment-purchase and rental,63.99,0.00,63.99
Children and Young Peoples Services,Head of Early Help Inclusion & Vulnerable Children.,085963,Maple House,Supplies and Services,304259,Equipment and Materials,03-Mar-2023,000008679393724,AMZNMKTPLACE AMAZON.CO,5999,Equipment-purchase and rental,15.99,2.67,13.32
Children and Young Peoples Services,Head of Early Help Inclusion & Vulnerable Children.,079072,English addl lang,Third Party Payments,430100,Rendered by Private Contractors,03-Mar-2023,000008679393736,EB LEADING A WHOLE-SC,7399,Payments to sub-contractors,35.83,0.00,35.83
Neighbourhoods and Climate Change,Environmental Services,010367,C&G - South Grounds Maintenance,Third Party Payments,430100,Rendered by Private Contractors,03-Mar-2023,000008679393804,SQ CATHEDRAL LOCK AND,1520,Payments to sub-contractors,109.08,0.00,109.08
Children and Young Peoples Services,Head of Childrens Social Care,085351,Framwellgate Moor CU,Supplies and Services,384999,Miscellaneous Expenses,03-Mar-2023,000008679393848,FIRSTAID4LESS,5046,Other expenses,33.60,0.00,33.60
Children and Young Peoples Services,Head of Education and Skills,071802,Louisa Cent Nursery,Supplies and Services,324117,Provisions E324,03-Mar-2023,000008679393852,ASDA GROCERIES ONLINE,5411,Catering costs - provisions,220.82,0.00,220.82
Children and Young Peoples Services,Head of Education and Skills,071802,Louisa Cent Nursery,Supplies and Services,324117,Provisions E324,03-Mar-2023,000008679393854,ASDA SUPERSTORE,5411,Catering costs - provisions,13.14,0.00,13.14
Children and Young Peoples Services,Head of Education and Skills,071802,Louisa Cent Nursery,Supplies and Services,324117,Provisions E324,03-Mar-2023,000008679393856,ASDA GROCERIES ONLINE,5411,Catering costs - provisions,-2.27,0.00,-2.27
Children and Young Peoples Services,Head of Early Help Inclusion & Vulnerable Children.,088115,Young Parents Programme 088115,Supplies and Services,304259,Equipment and Materials,03-Mar-2023,000008679393872,AMZNMktplace,5999,Equipment-purchase and rental,79.80,13.30,66.50
Children and Young Peoples Services,Head of Early Help Inclusion & Vulnerable Children.,088115,Young Parents Programme 088115,Supplies and Services,304259,Equipment and Materials,03-Mar-2023,000008679393872 - 1,AMZNMktplace,5999,Equipment-purchase and rental,0.10,,0.10
Children and Young Peoples Services,Head of Early Help Inclusion & Vulnerable Children.,088115,Young Parents Programme 088115,Supplies and Services,304259,Equipment and Materials,03-Mar-2023,000008679393874,ASDA GEORGE COM LEEDS,5411,Equipment-purchase and rental,282.95,0.00,282.95
Regeneration Economy and Growth,Culture Sport and Tourism,054233,Bishop Auckland Town Hall Library,Supplies and Services,328041,Clothing uniforms and laundry E328,03-Mar-2023,000008679393926,THEWORKS,5310,Clothing uniforms and laundry,6.00,0.00,6.00
Children and Young Peoples Services,Head of Childrens Social Care,085331,New Lea Childrens Home,Supplies and Services,344033,Telephones,03-Mar-2023,000008679393938,giffgaff,4814,Telephones general-all costs,10.00,0.00,10.00
Children and Young Peoples Services,Head of Childrens Social Care,085331,New Lea Childrens Home,Supplies and Services,328041,Clothing uniforms and laundry E328,03-Mar-2023,000008679393940,Boohoo.com UK Limited,5621,Clothing uniforms and laundry,67.91,0.00,67.91
Children and Young Peoples Services,Head of Childrens Social Care,085331,New Lea Childrens Home,Supplies and Services,324117,Provisions E324,03-Mar-2023,000008679393942,ASDA SUPERSTORE,5411,Catering costs - provisions,77.22,0.00,77.22
Children and Young Peoples Services,Head of Childrens Social Care,085331,New Lea Childrens Home,Supplies and Services,384999,Miscellaneous Expenses,03-Mar-2023,000008679393948,TM TICKETMASTERUK,7922,Other expenses,81.75,0.00,81.75
Regeneration Economy and Growth,Economic Development Level C,030776,LINKCD Flexible Fund,Supplies and Services,304259,Equipment and Materials,03-Mar-2023,000008679393964,Total Sport North East,5941,Equipment-purchase and rental,91.38,0.00,91.38
Children and Young Peoples Services,Head of Childrens Social Care,085334,West Rainton Satelite Home,Supplies and Services,384999,Miscellaneous Expenses,03-Mar-2023,000008679393974,Amazon.co.uk 1L28H3KY4,5969,Other expenses,14.97,0.00,14.97
Children and Young Peoples Services,Head of Childrens Social Care,085380,Service Manager CLA Fostering,Supplies and Services,308011,Furniture,03-Mar-2023,000008679394006,ARGOS LTD,5310,Furniture repair and replacement,183.95,0.00,183.95
Children and Young Peoples Services,Head of Childrens Social Care,085380,Service Manager CLA Fostering,Supplies and Services,308011,Furniture,03-Mar-2023,000008679394008,ARGOS LTD,5310,Furniture repair and replacement,60.00,0.00,60.00
Neighbourhoods and Climate Change,Partnerships & Community Engagement Div.,060550,East Durham AAP,Supplies and Services,332047,Printing Stationery and Gen Off Exps,03-Mar-2023,000008679394010,AMZNMKTPLACE AMAZON.CO,5999,Stationery,15.95,2.66,13.29
Adult and Health Services,Head of Adults,055310,Positive Journeys (Tudhoe),Supplies and Services,324117,Provisions E324,03-Mar-2023,000008679394020,ALDI 774-018,5411,Catering costs - provisions,2.30,0.00,2.30
Neighbourhoods and Climate Change,Environmental Services,011171,Nei.Prot - Allotments,Supplies and Services,304221,Equipment and Materials,03-Mar-2023,000008679394032,BTL TIMBER AND COUNTRY,5211,Direct materials,12.18,0.00,12.18
Neighbourhoods and Climate Change,Environmental Services,010301,C&G - North Grounds Maintenance,Supplies and Services,304999,Equipment and Materials,03-Mar-2023,000008679394088,TURFCARE SPECIALISTS L,780,Misc equipment tools and materials,316.80,0.00,316.80
Regeneration Economy and Growth,Planning & Housing,031576,B& B - Temp Accom,Supplies and Services,364320,Grants to Voluntary Organisations,03-Mar-2023,000008679394104,Roadchef Durham,7011,Accommodation assistance,143.00,0.00,143.00
Regeneration Economy and Growth,Planning & Housing,031576,B& B - Temp Accom,Supplies and Services,364320,Grants to Voluntary Organisations,03-Mar-2023,000008679394106,Roadchef Durham,7011,Accommodation assistance,22.50,0.00,22.50
Regeneration Economy and Growth,Planning & Housing,031576,B& B - Temp Accom,Supplies and Services,364320,Grants to Voluntary Organisations,03-Mar-2023,000008679394108,Roadchef Durham,7011,Accommodation assistance,143.00,0.00,143.00
Regeneration Economy and Growth,Planning & Housing,031576,B& B - Temp Accom,Supplies and Services,364320,Grants to Voluntary Organisations,03-Mar-2023,000008679394110,Roadchef Durham,7011,Accommodation assistance,143.00,0.00,143.00
Regeneration Economy and Growth,Planning & Housing,031576,B& B - Temp Accom,Supplies and Services,364320,Grants to Voluntary Organisations,03-Mar-2023,000008679394112,Roadchef Durham,7011,Accommodation assistance,143.00,0.00,143.00
Regeneration Economy and Growth,Planning & Housing,031576,B& B - Temp Accom,Supplies and Services,364320,Grants to Voluntary Organisations,03-Mar-2023,000008679394114,Roadchef Durham,7011,Accommodation assistance,143.00,0.00,143.00
Regeneration Economy and Growth,Corporate Property and Land,010525,Catering - Green Lane,Supplies and Services,324117,Provisions E324,03-Mar-2023,000008679480604,FREEMAN CATERING BUTCH,5422,Catering costs - provisions,65.40,0.00,65.40
Regeneration Economy and Growth,Corporate Property and Land,011275,Catering -Durham Leadership Centre,Supplies and Services,324117,Provisions E324,03-Mar-2023,000008679480606,FREEMAN CATERING BUTCH,5422,Catering costs - provisions,106.78,0.00,106.78
Regeneration Economy and Growth,Corporate Property and Land,011296,Catering - Dunes,Supplies and Services,324117,Provisions E324,03-Mar-2023,000008679480610,JR HOLLAND FOODSERVICE,5499,Catering costs - provisions,77.25,0.00,77.25
Regeneration Economy and Growth,Corporate Property and Land,030691,Catering - Durham Dales Centre,Supplies and Services,324117,Provisions E324,03-Mar-2023,000008679480614,FREEMAN CATERING BUTCH,5422,Catering costs - provisions,21.90,0.00,21.90
Regeneration Economy and Growth,Corporate Property and Land,030691,Catering - Durham Dales Centre,Supplies and Services,324117,Provisions E324,03-Mar-2023,000008679480616,FREEMAN CATERING BUTCH,5422,Catering costs - provisions,90.52,0.00,90.52
Adult and Health Services,Head of Adults,055643,Hawthorn House LD Respite Unit,Supplies and Services,324117,Provisions E324,03-Mar-2023,000008679480618,FREEMAN CATERING BUTCH,5422,Catering costs - provisions,19.38,0.00,19.38
Adult and Health Services,Head of Adults,055643,Hawthorn House LD Respite Unit,Supplies and Services,324117,Provisions E324,03-Mar-2023,000008679480620,FREEMAN CATERING BUTCH,5422,Catering costs - provisions,25.85,0.00,25.85
Adult and Health Services,Head of Adults,055643,Hawthorn House LD Respite Unit,Supplies and Services,324117,Provisions E324,03-Mar-2023,000008679480622,JR HOLLAND FOODSERVICE,5499,Catering costs - provisions,28.37,0.00,28.37
Neighbourhoods and Climate Change,Environmental Services,011060,C&G - Hardwick Park Catering,Supplies and Services,324117,Provisions E324,03-Mar-2023,000008679480626,JR HOLLAND FOODSERVICE,5499,Catering costs - provisions,20.17,0.00,20.17
Neighbourhoods and Climate Change,Environmental Services,011060,C&G - Hardwick Park Catering,Supplies and Services,324117,Provisions E324,03-Mar-2023,000008679480628,JR HOLLAND FOODSERVICE,5499,Catering costs - provisions,113.10,0.00,113.10
Regeneration Economy and Growth,Corporate Property and Land,021234,Catering - Locomotion,Supplies and Services,324117,Provisions E324,03-Mar-2023,000008679480630,FREEMAN CATERING BUTCH,5422,Catering costs - provisions,62.73,0.00,62.73
Regeneration Economy and Growth,Corporate Property and Land,021234,Catering - Locomotion,Supplies and Services,324117,Provisions E324,03-Mar-2023,000008679480632,JR HOLLAND FOODSERVICE,5499,Catering costs - provisions,39.75,0.00,39.75
Regeneration Economy and Growth,Corporate Property and Land,021234,Catering - Locomotion,Supplies and Services,324117,Provisions E324,03-Mar-2023,000008679480634,JR HOLLAND FOODSERVICE,5499,Catering costs - provisions,13.99,0.00,13.99
Regeneration Economy and Growth,Culture Sport and Tourism,011263,Louisa Centre 011263,Supplies and Services,324117,Provisions E324,03-Mar-2023,000008679480636,JR HOLLAND FOODSERVICE,5499,Catering costs - provisions,86.10,0.00,86.10
Regeneration Economy and Growth,Culture Sport and Tourism,054812,Gala Theatre - Catering etc,Supplies and Services,324117,Provisions E324,03-Mar-2023,000008679480638,FREEMAN CATERING BUTCH,5422,Catering costs - provisions,21.90,0.00,21.90
Regeneration Economy and Growth,Culture Sport and Tourism,054812,Gala Theatre - Catering etc,Supplies and Services,324117,Provisions E324,03-Mar-2023,000008679480640,JR HOLLAND FOODSERVICE,5499,Catering costs - provisions,48.32,0.00,48.32
Regeneration Economy and Growth,Culture Sport and Tourism,054812,Gala Theatre - Catering etc,Supplies and Services,324117,Provisions E324,03-Mar-2023,000008679480642,JR HOLLAND FOODSERVICE,5499,Catering costs - provisions,7.42,0.00,7.42
Regeneration Economy and Growth,Corporate Property and Land,021242,Catering - County Hall,Supplies and Services,324117,Provisions E324,03-Mar-2023,000008679480644,FREEMAN CATERING BUTCH,5422,Catering costs - provisions,135.68,0.00,135.68
Regeneration Economy and Growth,Corporate Property and Land,021242,Catering - County Hall,Supplies and Services,324117,Provisions E324,03-Mar-2023,000008679480646,JR HOLLAND FOODSERVICE,5499,Catering costs - provisions,11.20,0.00,11.20
Children and Young Peoples Services,Head of Early Help Inclusion & Vulnerable Children.,085957,Secure Management,Supplies and Services,384302,Miscellaneous Expenses,03-Mar-2023,000008687748958,TVLICENSING.CO.UK,7392,Activity expenses,159.00,0.00,159.00
Regeneration Economy and Growth,Corporate Property and Land,010525,Catering - Green Lane,Supplies and Services,324117,Provisions E324,03-Mar-2023,000008687821222,BESTWAY WHOLESALE,5300,Catering costs - provisions,145.26,24.21,121.05
Regeneration Economy and Growth,Corporate Property and Land,010525,Catering - Green Lane,Supplies and Services,324117,Provisions E324,03-Mar-2023,000008687821222 - 1,BESTWAY WHOLESALE,5300,Catering costs - provisions,132.20,,132.20
Adult and Health Services,Head of Adults,055643,Hawthorn House LD Respite Unit,Supplies and Services,324117,Provisions E324,03-Mar-2023,000008687821236,BESTWAY WHOLESALE,5300,Catering costs - provisions,17.22,2.87,14.35
Adult and Health Services,Head of Adults,055643,Hawthorn House LD Respite Unit,Supplies and Services,324117,Provisions E324,03-Mar-2023,000008687821236 - 1,BESTWAY WHOLESALE,5300,Catering costs - provisions,77.78,,77.78
Neighbourhoods and Climate Change,Environmental Services,011060,C&G - Hardwick Park Catering,Supplies and Services,324117,Provisions E324,03-Mar-2023,000008687821244,BESTWAY WHOLESALE,5300,Catering costs - provisions,36.72,6.12,30.60
Neighbourhoods and Climate Change,Environmental Services,011060,C&G - Hardwick Park Catering,Supplies and Services,324117,Provisions E324,03-Mar-2023,000008687821244 - 1,BESTWAY WHOLESALE,5300,Catering costs - provisions,150.12,,150.12
Regeneration Economy and Growth,Business Durham CL0850,030689,Inward Investment and Aftercare,Supplies and Services,336005,Advertising E336,03-Mar-2023,000010746883353,LINKEDIN ADS 806720304,7311,Advertising other than for staff,0.87,0.00,0.87
Adult and Health Services,Head of Adults,055643,Hawthorn House LD Respite Unit,Supplies and Services,304403,Equipment and Materials,03-Mar-2023,000010746883683,AMZNMktplace,5999,Other consumables,8.99,0.00,8.99
Children and Young Peoples Services,Head of Early Help Inclusion & Vulnerable Children.,088103,Stanley & Moorside Family Centre,Supplies and Services,384302,Miscellaneous Expenses,03-Mar-2023,000010746883775,WWW.THEWORKS.CO.UK,5310,Activity expenses,-20.99,0.00,-20.99
Regeneration Economy and Growth,Communications Management,060270,Communications and Marketing,Supplies and Services,372009,Subscriptions E372,03-Mar-2023,000010746883989,Envato,7372,Subscriptions 372009,4.22,0.00,4.22
Regeneration Economy and Growth,Business Durham CL0850,030689,Inward Investment and Aftercare,Supplies and Services,342222,Computers and Communications,04-Mar-2023,000008679392666,FASTHOSTS,4816,Comp hardware purch-network servers,8.87,0.00,8.87
Children and Young Peoples Services,Head of Childrens Social Care,085342,16 Hickstead Rise (previously 9 Cedar Ave),Supplies and Services,384237,Miscellaneous Expenses,04-Mar-2023,000008679392712,DELTA FORCE PAINTBALL,7999,Recreational exps outings parties,12.00,0.00,12.00
Children and Young Peoples Services,Head of Childrens Social Care,085342,16 Hickstead Rise (previously 9 Cedar Ave),Supplies and Services,304403,Equipment and Materials,04-Mar-2023,000008679392716,AMZNMktplace,5999,Other consumables,12.63,0.00,12.63
Children and Young Peoples Services,Head of Childrens Social Care,085342,16 Hickstead Rise (previously 9 Cedar Ave),Supplies and Services,348037,Subsistence E348,04-Mar-2023,000008679392718,MCDONALDS,5814,Subsistence,11.39,0.00,11.39
Children and Young Peoples Services,Head of Childrens Social Care,085342,16 Hickstead Rise (previously 9 Cedar Ave),Supplies and Services,324117,Provisions E324,04-Mar-2023,000008679392764,TESCO STORES 2916,5411,Catering costs - provisions,126.38,0.00,126.38
Children and Young Peoples Services,Head of Childrens Social Care,085342,16 Hickstead Rise (previously 9 Cedar Ave),Supplies and Services,324117,Provisions E324,04-Mar-2023,000008679392768,SAINSBURYS AYCLIFF,5411,Catering costs - provisions,4.50,0.00,4.50
Children and Young Peoples Services,Head of Childrens Social Care,085511,Emergency Duty Team,Supplies and Services,352001,Conference Expenses,04-Mar-2023,000008679392916,Hotel at Booking.com,7011,Conferencesseminars fees etc,196.35,0.00,196.35
Children and Young Peoples Services,Head of Childrens Social Care,085511,Emergency Duty Team,Employees,040149,Recruitment Instruction and Training,04-Mar-2023,000008679392920,PREMIER INN,3811,Training-all costs,117.30,0.00,117.30
Children and Young Peoples Services,Head of Childrens Social Care,085358,Orchard House Sacriston Solo Home,Supplies and Services,344033,Telephones,04-Mar-2023,000008679393004,giffgaff,4814,Telephones general-all costs,10.00,0.00,10.00
Children and Young Peoples Services,Head of Childrens Social Care,085358,Orchard House Sacriston Solo Home,Supplies and Services,304259,Equipment and Materials,04-Mar-2023,000008679393010,SPORTSDIRECT 264,5941,Equipment-purchase and rental,51.50,0.00,51.50
Children and Young Peoples Services,Head of Childrens Social Care,085358,Orchard House Sacriston Solo Home,Supplies and Services,324117,Provisions E324,04-Mar-2023,000008679393014,TESCO STORES 2371,5411,Catering costs - provisions,24.85,0.00,24.85
Neighbourhoods and Climate Change,Environmental Services,011058,C&G - Wharton Park,Supplies and Services,304259,Equipment and Materials,04-Mar-2023,000008679393064,DEFIBSTORE LTD,5047,Equipment-purchase and rental,408.00,0.00,408.00
Children and Young Peoples Services,Head of Early Help Inclusion & Vulnerable Children.,085956,Lumley,Supplies and Services,324117,Provisions E324,04-Mar-2023,000008679393170,TESCO STORES 6329,5411,Catering costs - provisions,8.50,0.00,8.50
Neighbourhoods and Climate Change,Partnerships & Community Engagement Div.,060472,Humanitarian Support programme,Supplies and Services,308011,Furniture,04-Mar-2023,000008679393302,B&Q LTD,5211,Furniture repair and replacement,-90.00,0.00,-90.00
Children and Young Peoples Services,Head of Childrens Social Care,085551,Short Break Services-Park Hse Sher,Supplies and Services,324117,Provisions E324,04-Mar-2023,000008679393324,TESCO STORES 2371,5411,Catering costs - provisions,83.82,0.00,83.82
Children and Young Peoples Services,Head of Childrens Social Care,085551,Short Break Services-Park Hse Sher,Supplies and Services,324117,Provisions E324,04-Mar-2023,000008679393328,TESCO STORES 2371,5411,Catering costs - provisions,21.45,0.00,21.45
Children and Young Peoples Services,Head of Childrens Social Care,085551,Short Break Services-Park Hse Sher,Supplies and Services,324117,Provisions E324,04-Mar-2023,000008679393332,TESCO STORES 2371,5411,Catering costs - provisions,76.80,0.00,76.80
Children and Young Peoples Services,Head of Childrens Social Care,085551,Short Break Services-Park Hse Sher,Supplies and Services,324117,Provisions E324,04-Mar-2023,000008679393338,CO-OP GROUP 010486,5411,Catering costs - provisions,1.83,0.00,1.83
Children and Young Peoples Services,Head of Childrens Social Care,085551,Short Break Services-Park Hse Sher,Supplies and Services,324117,Provisions E324,04-Mar-2023,000008679393342,TESCO STORES 2371,5411,Catering costs - provisions,-1.65,0.00,-1.65
Neighbourhoods and Climate Change,Environmental Services,010367,C&G - South Grounds Maintenance,Supplies and Services,304221,Equipment and Materials,04-Mar-2023,000008679393420,B & Q 1120,5200,Direct materials,54.58,0.00,54.58
Children and Young Peoples Services,Head of Early Help Inclusion & Vulnerable Children.,085957,Secure Management,Supplies and Services,304403,Equipment and Materials,04-Mar-2023,000008679393576,AMZNMktplace,5999,Other consumables,13.21,2.20,11.01
Children and Young Peoples Services,Head of Early Help Inclusion & Vulnerable Children.,085957,Secure Management,Supplies and Services,304403,Equipment and Materials,04-Mar-2023,000008679393578,AMZNMktplace,5999,Other consumables,13.21,2.20,11.01
Children and Young Peoples Services,Head of Early Help Inclusion & Vulnerable Children.,088115,Young Parents Programme 088115,Supplies and Services,384302,Miscellaneous Expenses,04-Mar-2023,000008679393634,BOOTS UK ECOMM,5912,Activity expenses,22.84,0.00,22.84
Children and Young Peoples Services,Head of Early Help Inclusion & Vulnerable Children.,088115,Young Parents Programme 088115,Supplies and Services,384302,Miscellaneous Expenses,04-Mar-2023,000008679393636,BOOTS UK ECOMM,5912,Activity expenses,26.23,0.00,26.23
Children and Young Peoples Services,Head of Early Help Inclusion & Vulnerable Children.,088115,Young Parents Programme 088115,Supplies and Services,384302,Miscellaneous Expenses,04-Mar-2023,000008679393640,BOOTS UK ECOMM,5912,Activity expenses,25.09,0.00,25.09
Children and Young Peoples Services,Head of Early Help Inclusion & Vulnerable Children.,088115,Young Parents Programme 088115,Supplies and Services,384302,Miscellaneous Expenses,04-Mar-2023,000008679393646,BOOTS UK ECOMM,5912,Activity expenses,26.15,0.00,26.15
Regeneration Economy and Growth,Culture Sport and Tourism,054233,Bishop Auckland Town Hall Library,Supplies and Services,324117,Provisions E324,04-Mar-2023,000008679393928,HERON FOODS,5411,Catering costs - provisions,8.34,0.00,8.34
Children and Young Peoples Services,Head of Childrens Social Care,085331,New Lea Childrens Home,Supplies and Services,304999,Equipment and Materials,04-Mar-2023,000008679393944,HOME BARGAINS,5251,Misc equipment tools and materials,21.08,0.00,21.08
Children and Young Peoples Services,Head of Childrens Social Care,085331,New Lea Childrens Home,Supplies and Services,348037,Subsistence E348,04-Mar-2023,000008679393946,MCDONALDS 1555,5814,Subsistence,10.72,0.00,10.72
Resources BK0010,Digital Services,065432,Web Development Group,Supplies and Services,304999,Equipment and Materials,04-Mar-2023,000008679393986,PADDLE.NET FLUIDINT,5818,Misc equipment tools and materials,15.09,0.00,15.09
Dedicated Schools Grant BG0015,DSG Schools Block,417631,Greenfield Community College 004176 - Time 4 Success,Supplies and Services,384981,Miscellaneous Expenses,05-Mar-2023,000008679392690,AMZNMktplace,5999,House Rewards,79.65,13.57,66.08
Dedicated Schools Grant BG0015,DSG Schools Block,417631,Greenfield Community College 004176 - Time 4 Success,Supplies and Services,384981,Miscellaneous Expenses,05-Mar-2023,000008679392694,AMZNMktplace,5999,House Rewards,29.61,4.95,24.66
Dedicated Schools Grant BG0015,DSG Schools Block,417631,Greenfield Community College 004176 - Time 4 Success,Supplies and Services,384981,Miscellaneous Expenses,05-Mar-2023,000008679392696,AMZNMktplace,5999,House Rewards,90.00,15.00,75.00
Children and Young Peoples Services,Head of Childrens Social Care,085341,High Etherley Satelite Home,Supplies and Services,324117,Provisions E324,05-Mar-2023,000008679392710,Infinite Air,7996,Catering costs - provisions,4.40,0.00,4.40
Resources BK0010,Procurement Sales & Business Services,065504,Business Support - Meadowfield,Supplies and Services,384999,Miscellaneous Expenses,05-Mar-2023,000008679392728,Amazon.co.uk 1L30U9WD4,5969,Other expenses,250.00,0.00,250.00
Children and Young Peoples Services,Head of Childrens Social Care,085511,Emergency Duty Team,Supplies and Services,352001,Conference Expenses,05-Mar-2023,000008679392918,Roadchef Durham,7011,Conferencesseminars fees etc,104.00,0.00,104.00
Children and Young Peoples Services,Head of Childrens Social Care,085342,16 Hickstead Rise (previously 9 Cedar Ave),Supplies and Services,304999,Equipment and Materials,05-Mar-2023,000008679392974,HOME BARGAINS,5251,Misc equipment tools and materials,1.98,0.00,1.98
Children and Young Peoples Services,Head of Childrens Social Care,085342,16 Hickstead Rise (previously 9 Cedar Ave),Supplies and Services,324117,Provisions E324,05-Mar-2023,000008679392980,ASDA SUPERSTORE,5411,Catering costs - provisions,25.00,0.00,25.00
Children and Young Peoples Services,Head of Childrens Social Care,085342,16 Hickstead Rise (previously 9 Cedar Ave),Supplies and Services,348037,Subsistence E348,05-Mar-2023,000008679392982,MCDONALDS 1555,5814,Subsistence,3.98,0.00,3.98
Children and Young Peoples Services,Head of Early Help Inclusion & Vulnerable Children.,085953,Secure Residential Staff,Supplies and Services,348037,Subsistence E348,05-Mar-2023,000008679393020,Just Eat,5814,Subsistence,54.05,0.00,54.05
Adult and Health Services,Head of Adults,055302,Durham Pathways,Supplies and Services,328041,Clothing uniforms and laundry E328,05-Mar-2023,000008679393038,THE WORKS,5310,Clothing uniforms and laundry,6.00,0.00,6.00
Regeneration Economy and Growth,Culture Sport and Tourism,054813,Gala Theatre - Technical,Supplies and Services,304259,Equipment and Materials,05-Mar-2023,000008679393042,AMZNMktplace,5999,Equipment-purchase and rental,11.88,1.98,9.90
Regeneration Economy and Growth,Culture Sport and Tourism,054813,Gala Theatre - Technical,Supplies and Services,304259,Equipment and Materials,05-Mar-2023,000008679393044,SPOTIFY,5815,Equipment-purchase and rental,9.99,0.00,9.99
Children and Young Peoples Services,Head of Childrens Social Care,085621,Families First Newton Aycliffe and Shildon,Supplies and Services,304403,Equipment and Materials,05-Mar-2023,000008679393228,AMZNMktplace,5999,Other consumables,17.98,3.00,14.98
Children and Young Peoples Services,Head of Early Help Inclusion & Vulnerable Children.,085957,Secure Management,Supplies and Services,324117,Provisions E324,05-Mar-2023,000008679393580,TESCO STORES 6329,5411,Catering costs - provisions,140.22,0.00,140.22
Regeneration Economy and Growth,Culture Sport and Tourism,011215,Museums Heritage & Collections 011215,Supplies and Services,332047,Printing Stationery and Gen Off Exps,05-Mar-2023,000008679393596,AMZNMktplace,5999,Stationery,68.28,0.00,68.28
Children and Young Peoples Services,Head of Childrens Social Care,085331,New Lea Childrens Home,Supplies and Services,328041,Clothing uniforms and laundry E328,05-Mar-2023,000008679393614,InfiniteAir,7996,Clothing uniforms and laundry,12.95,0.00,12.95
Children and Young Peoples Services,Head of Childrens Social Care,085331,New Lea Childrens Home,Supplies and Services,348037,Subsistence E348,05-Mar-2023,000008679393618,KFC PETERLEE,5814,Subsistence,8.49,0.00,8.49
Children and Young Peoples Services,Head of Childrens Social Care,085331,New Lea Childrens Home,Supplies and Services,324117,Provisions E324,05-Mar-2023,000008679393620,ALDI STORES,5411,Catering costs - provisions,5.58,0.00,5.58
Children and Young Peoples Services,Head of Early Help Inclusion & Vulnerable Children.,088115,Young Parents Programme 088115,Supplies and Services,384302,Miscellaneous Expenses,05-Mar-2023,000008679393654,AMZNMktplace,5999,Activity expenses,30.40,0.00,30.40
Children and Young Peoples Services,Head of Early Help Inclusion & Vulnerable Children.,088115,Young Parents Programme 088115,Supplies and Services,384302,Miscellaneous Expenses,05-Mar-2023,000008679393656,AMZNMktplace,5999,Activity expenses,63.84,10.64,53.20
Children and Young Peoples Services,Head of Early Help Inclusion & Vulnerable Children.,088115,Young Parents Programme 088115,Supplies and Services,384302,Miscellaneous Expenses,05-Mar-2023,000008679393656 - 1,AMZNMktplace,5999,Activity expenses,0.08,,0.08
Children and Young Peoples Services,Head of Early Help Inclusion & Vulnerable Children.,088115,Young Parents Programme 088115,Supplies and Services,384302,Miscellaneous Expenses,05-Mar-2023,000008679393658,AMZNMKTPLACE AMAZON.CO,5999,Activity expenses,26.60,0.00,26.60
Children and Young Peoples Services,Head of Early Help Inclusion & Vulnerable Children.,088115,Young Parents Programme 088115,Supplies and Services,384302,Miscellaneous Expenses,05-Mar-2023,000008679393660,AMZNMKTPLACE AMAZON.CO,5999,Activity expenses,55.86,9.31,46.55
Children and Young Peoples Services,Head of Early Help Inclusion & Vulnerable Children.,088115,Young Parents Programme 088115,Supplies and Services,384237,Miscellaneous Expenses,05-Mar-2023,000008679393660 - 1,AMZNMKTPLACE AMAZON.CO,5999,Recreational exps outings parties,0.07,,0.07
Children and Young Peoples Services,Head of Early Help Inclusion & Vulnerable Children.,088102,Consett & Stanley Intensive Family Support Team,Supplies and Services,304259,Equipment and Materials,05-Mar-2023,000008679393662,AMZNBUSINESS 1R65E44I4,5999,Equipment-purchase and rental,21.98,0.00,21.98
Children and Young Peoples Services,Head of Early Help Inclusion & Vulnerable Children.,088115,Young Parents Programme 088115,Supplies and Services,384302,Miscellaneous Expenses,05-Mar-2023,000008679393664,AMZNBusiness 1L41G5Y94,5999,Activity expenses,19.98,0.00,19.98
Children and Young Peoples Services,Head of Early Help Inclusion & Vulnerable Children.,088115,Young Parents Programme 088115,Supplies and Services,384302,Miscellaneous Expenses,05-Mar-2023,000008679393668,AMZNMktplace,5999,Activity expenses,71.82,11.97,59.85
Children and Young Peoples Services,Head of Early Help Inclusion & Vulnerable Children.,088115,Young Parents Programme 088115,Supplies and Services,384302,Miscellaneous Expenses,05-Mar-2023,000008679393668 - 1,AMZNMktplace,5999,Activity expenses,0.09,,0.09
Children and Young Peoples Services,Head of Early Help Inclusion & Vulnerable Children.,088115,Young Parents Programme 088115,Supplies and Services,384302,Miscellaneous Expenses,05-Mar-2023,000008679393670,AMZNMktplace,5999,Activity expenses,34.20,0.00,34.20
Children and Young Peoples Services,Head of Early Help Inclusion & Vulnerable Children.,088115,Young Parents Programme 088115,Supplies and Services,384302,Miscellaneous Expenses,05-Mar-2023,000008679393674,AMZNMktplace,5999,Activity expenses,34.20,0.00,34.20
Children and Young Peoples Services,Head of Early Help Inclusion & Vulnerable Children.,088115,Young Parents Programme 088115,Supplies and Services,384302,Miscellaneous Expenses,05-Mar-2023,000008679393676,AMZNMktplace,5999,Activity expenses,71.82,11.97,59.85
Children and Young Peoples Services,Head of Early Help Inclusion & Vulnerable Children.,088115,Young Parents Programme 088115,Supplies and Services,384302,Miscellaneous Expenses,05-Mar-2023,000008679393676 - 1,AMZNMktplace,5999,Activity expenses,0.09,,0.09
Children and Young Peoples Services,Head of Early Help Inclusion & Vulnerable Children.,088115,Young Parents Programme 088115,Supplies and Services,384302,Miscellaneous Expenses,05-Mar-2023,000008679393678,AMZNMKTPLACE AMAZON.CO,5999,Activity expenses,55.86,9.31,46.55
Children and Young Peoples Services,Head of Early Help Inclusion & Vulnerable Children.,088115,Young Parents Programme 088115,Supplies and Services,384302,Miscellaneous Expenses,05-Mar-2023,000008679393678 - 1,AMZNMKTPLACE AMAZON.CO,5999,Activity expenses,0.07,,0.07
Children and Young Peoples Services,Head of Early Help Inclusion & Vulnerable Children.,088115,Young Parents Programme 088115,Supplies and Services,384302,Miscellaneous Expenses,05-Mar-2023,000008679393680,AMZNMKTPLACE AMAZON.CO,5999,Activity expenses,26.60,0.00,26.60
Children and Young Peoples Services,Head of Early Help Inclusion & Vulnerable Children.,088115,Young Parents Programme 088115,Supplies and Services,304259,Equipment and Materials,05-Mar-2023,000008679393876,AMZNMktplace,5999,Equipment-purchase and rental,38.00,0.00,38.00
Children and Young Peoples Services,Head of Early Help Inclusion & Vulnerable Children.,088115,Young Parents Programme 088115,Supplies and Services,304259,Equipment and Materials,05-Mar-2023,000008679393878,AMZNMktplace,5999,Equipment-purchase and rental,109.80,18.30,91.50
Children and Young Peoples Services,Head of Early Help Inclusion & Vulnerable Children.,088115,Young Parents Programme 088115,Supplies and Services,304259,Equipment and Materials,05-Mar-2023,000008679393878 - 1,AMZNMktplace,5999,Equipment-purchase and rental,0.10,,0.10
Children and Young Peoples Services,Childrens Services Operational Support,052932,Childrens Social Care,Supplies and Services,304403,Equipment and Materials,05-Mar-2023,000008679393992,AMZNBusiness 1L01T3WY4,5999,Other consumables,85.08,0.00,85.08
Children and Young Peoples Services,Childrens Services Operational Support,052932,Childrens Social Care,Supplies and Services,304403,Equipment and Materials,05-Mar-2023,000008679393994,AMZNBusiness 1L48L3R24,5999,Other consumables,170.16,0.00,170.16
Children and Young Peoples Services,Childrens Services Operational Support,052932,Childrens Social Care,Supplies and Services,304403,Equipment and Materials,05-Mar-2023,000008679393996,AMZNBusiness 1L8IX4WP4,5999,Other consumables,42.54,0.00,42.54
Resources BK0010,Digital Services,065481,Technical Services 065481,Supplies and Services,304403,Equipment and Materials,05-Mar-2023,000008679393998,AMZNMKTPLACE AMAZON.CO,5999,Other consumables,32.04,5.34,26.70
Resources BK0010,Digital Services,065481,Technical Services 065481,Supplies and Services,304403,Equipment and Materials,05-Mar-2023,000008679393998 - 1,AMZNMKTPLACE AMAZON.CO,5999,Other consumables,46.19,,46.19
Resources BK0010,Digital Services,065481,Technical Services 065481,Supplies and Services,304403,Equipment and Materials,05-Mar-2023,000008679394000,AMZNMKTPLACE AMAZON.CO,5999,Other consumables,6.59,1.10,5.49
Children and Young Peoples Services,Childrens Services Operational Support,052932,Childrens Social Care,Supplies and Services,304403,Equipment and Materials,05-Mar-2023,000008679394002,AMZNBusiness 1L6WC8YD4,5999,Other consumables,42.54,0.00,42.54
Regeneration Economy and Growth,Communications Management,060270,Communications and Marketing,Supplies and Services,372009,Subscriptions E372,05-Mar-2023,000008679394014,FACEBK KZ6ZFLB5B2,7311,Subscriptions 372009,500.00,0.00,500.00
Adult and Health Services,Head of Adults,055302,Durham Pathways,Supplies and Services,304403,Equipment and Materials,05-Mar-2023,000008687748666,AMZNBUSINESS 1R2MF6LF4,5999,Other consumables,31.99,5.33,26.66
Children and Young Peoples Services,Head of Childrens Social Care,085621,Families First Newton Aycliffe and Shildon,Supplies and Services,304403,Equipment and Materials,05-Mar-2023,000008687748782,AMZNMKTPLACE AMAZON.CO,5999,Other consumables,6.30,1.05,5.25
Resources BK0010,Digital Services,065481,Technical Services 065481,Supplies and Services,304403,Equipment and Materials,05-Mar-2023,000008687749110,AMZNMKTPLACE AMAZON.CO,5999,Other consumables,17.94,2.99,14.95
Resources BK0010,Digital Services,065481,Technical Services 065481,Supplies and Services,304403,Equipment and Materials,05-Mar-2023,000008687749112,AMZNMKTPLACE AMAZON.CO,5999,Other consumables,112.41,19.50,92.91
Children and Young Peoples Services,Head of Childrens Social Care,085380,Service Manager CLA Fostering,Supplies and Services,304403,Equipment and Materials,05-Mar-2023,000008687749216,AMZNMKTPLACE AMAZON.CO,5999,Other consumables,33.49,0.00,33.49
Dedicated Schools Grant BG0015,DSG Schools Block,417631,Greenfield Community College 004176 - Time 4 Success,Supplies and Services,384981,Miscellaneous Expenses,06-Mar-2023,000008679392698,AMZNMktplace,5999,House Rewards,55.35,9.43,45.92
Regeneration Economy and Growth,Corporate Property and Land,021242,Catering - County Hall,Supplies and Services,304403,Equipment and Materials,06-Mar-2023,000008679392902,AMZNMktplace,5999,Other consumables,19.45,0.00,19.45
Regeneration Economy and Growth,Economic Development Level C,030771,Durham Advance Flexible Fund,Supplies and Services,384999,Miscellaneous Expenses,06-Mar-2023,000008679393160,ZUMBA FITNESS,7997,Other expenses,1.01,0.00,1.01
Children and Young Peoples Services,Head of Childrens Social Care,085621,Families First Newton Aycliffe and Shildon,Supplies and Services,304403,Equipment and Materials,06-Mar-2023,000008679393230,AMZNMktplace,5999,Other consumables,5.94,0.99,4.95
Children and Young Peoples Services,Head of Childrens Social Care,085621,Families First Newton Aycliffe and Shildon,Supplies and Services,304403,Equipment and Materials,06-Mar-2023,000008679393230 - 1,AMZNMktplace,5999,Other consumables,0.03,,0.03
Children and Young Peoples Services,Head of Childrens Social Care,085621,Families First Newton Aycliffe and Shildon,Supplies and Services,304403,Equipment and Materials,06-Mar-2023,000008679393232,AMZNMktplace,5999,Other consumables,3.00,0.00,3.00
Children and Young Peoples Services,Head of Childrens Social Care,085621,Families First Newton Aycliffe and Shildon,Supplies and Services,304403,Equipment and Materials,06-Mar-2023,000008679393234,AMZNMktplace,5999,Other consumables,17.28,2.88,14.40
Children and Young Peoples Services,Head of Childrens Social Care,085621,Families First Newton Aycliffe and Shildon,Supplies and Services,304403,Equipment and Materials,06-Mar-2023,000008679393234 - 1,AMZNMktplace,5999,Other consumables,0.20,,0.20
Resources BK0010,Digital Services,065432,Web Development Group,Supplies and Services,304999,Equipment and Materials,06-Mar-2023,000008679394004,PADDLE.NET FLUIDINT,5818,Misc equipment tools and materials,0.41,0.00,0.41
Children and Young Peoples Services,Head of Childrens Social Care,085368,Children Looked After Team 5,Supplies and Services,338045,Services,06-Mar-2023,000008687748480,GEN REGISTER OFFICE,9399,Legal expenses 338045,11.00,0.00,11.00
Dedicated Schools Grant BG0015,DSG Schools Block,417631,Greenfield Community College 004176 - Time 4 Success,Supplies and Services,384981,Miscellaneous Expenses,06-Mar-2023,000008687748486,TESCO STORES 2916,5411,House Rewards,153.50,0.00,153.50
Regeneration Economy and Growth,Planning & Housing,031581,Prevention Fund,Supplies and Services,384999,Miscellaneous Expenses,06-Mar-2023,000008687748490,DURHAM COUNTY COUNCIL,9399,Other expenses,11.00,0.00,11.00
Children and Young Peoples Services,Head of Education and Skills,075034,Youth Futures Foundation,Supplies and Services,364301,Grants to Voluntary Organisations,06-Mar-2023,000008687748496,WWW.GONORTHEAST.CO.UK,4111,Hardship,25.00,0.00,25.00
Children and Young Peoples Services,Head of Education and Skills,075034,Youth Futures Foundation,Supplies and Services,364301,Grants to Voluntary Organisations,06-Mar-2023,000008687748498,WWW.GONORTHEAST.CO.UK,4111,Hardship,25.00,0.00,25.00
Children and Young Peoples Services,Head of Education and Skills,075034,Youth Futures Foundation,Supplies and Services,364301,Grants to Voluntary Organisations,06-Mar-2023,000008687748500,WWW.GONORTHEAST.CO.UK,4111,Hardship,25.00,0.00,25.00
Children and Young Peoples Services,Head of Education and Skills,075034,Youth Futures Foundation,Supplies and Services,364301,Grants to Voluntary Organisations,06-Mar-2023,000008687748502,WWW.GONORTHEAST.CO.UK,4111,Hardship,25.00,0.00,25.00
Children and Young Peoples Services,Head of Education and Skills,075034,Youth Futures Foundation,Supplies and Services,364301,Grants to Voluntary Organisations,06-Mar-2023,000008687748504,WWW.GONORTHEAST.CO.UK,4111,Hardship,6.40,0.00,6.40
Children and Young Peoples Services,Head of Childrens Social Care,085342,16 Hickstead Rise (previously 9 Cedar Ave),Supplies and Services,328041,Clothing uniforms and laundry E328,06-Mar-2023,000008687748506,WWW.ARGOS.CO.UK,5311,Clothing uniforms and laundry,14.99,0.00,14.99
Regeneration Economy and Growth,Economic Development Level C,030771,Durham Advance Flexible Fund,Supplies and Services,348037,Subsistence E348,06-Mar-2023,000008687748508,COSTA COFFEE NEWTON AY,5812,Subsistence,3.30,0.00,3.30
Neighbourhoods and Climate Change,Environmental Services,010383,C&G - South Street Cleansing,Supplies and Services,304259,Equipment and Materials,06-Mar-2023,000008687748516,DVLA DRIVERS TACHOGRAP,9399,Equipment-purchase and rental,32.00,0.00,32.00
Neighbourhoods and Climate Change,Environmental Services,010383,C&G - South Street Cleansing,Supplies and Services,304259,Equipment and Materials,06-Mar-2023,000008687748518,DVLA DRIVERS TACHOGRAP,9399,Equipment-purchase and rental,32.00,0.00,32.00
Neighbourhoods and Climate Change,Environmental Services,010383,C&G - South Street Cleansing,Supplies and Services,304259,Equipment and Materials,06-Mar-2023,000008687748520,DVLA DRIVERS TACHOGRAP,9399,Equipment-purchase and rental,32.00,0.00,32.00
Regeneration Economy and Growth,Culture Sport and Tourism,030705,Visit County Durham 030705,Supplies and Services,332047,Printing Stationery and Gen Off Exps,06-Mar-2023,000008687748526,AMZNMktplace,5999,Stationery,11.82,0.00,11.82
Children and Young Peoples Services,Head of Childrens Social Care,085332,Middlestone Moor CU,Supplies and Services,324117,Provisions E324,06-Mar-2023,000008687748534,TESCO STORES 2371,5411,Catering costs - provisions,77.56,0.00,77.56
Children and Young Peoples Services,Head of Early Help Inclusion & Vulnerable Children.,085956,Lumley,Supplies and Services,348037,Subsistence E348,06-Mar-2023,000008687748552,AZZURRI RESTAURANT,5812,Subsistence,67.05,0.00,67.05
Children and Young Peoples Services,Head of Early Help Inclusion & Vulnerable Children.,085956,Lumley,Supplies and Services,348037,Subsistence E348,06-Mar-2023,000008687748554,GREGGS,5812,Subsistence,4.65,0.00,4.65
Neighbourhoods and Climate Change,Environmental Services,031200,North Pennines Core,Supplies and Services,324117,Provisions E324,06-Mar-2023,000008687748556,STANHOPE SUPERMARKET,5411,Catering costs - provisions,1.79,0.00,1.79
Children and Young Peoples Services,Head of Childrens Social Care,085331,New Lea Childrens Home,Supplies and Services,324117,Provisions E324,06-Mar-2023,000008687748566,ASDA SUPERSTORE,5411,Catering costs - provisions,17.50,0.00,17.50
Children and Young Peoples Services,Head of Childrens Social Care,085331,New Lea Childrens Home,Supplies and Services,324117,Provisions E324,06-Mar-2023,000008687748568,ASDA SUPERSTORE,5411,Catering costs - provisions,6.85,0.00,6.85
Regeneration Economy and Growth,Planning & Housing,031578,Client Travel Reimbursements,Transport,235073,Public Transport,06-Mar-2023,000008687748594,Trainline.COM,4112,Travel-clients/students/children,55.63,0.00,55.63
Children and Young Peoples Services,Head of Childrens Social Care,085511,Emergency Duty Team,Supplies and Services,352001,Conference Expenses,06-Mar-2023,000008687748610,Hotel at Booking.com,7011,Conferencesseminars fees etc,44.88,0.00,44.88
Children and Young Peoples Services,Head of Childrens Social Care,085511,Emergency Duty Team,Supplies and Services,352001,Conference Expenses,06-Mar-2023,000008687748614,Hotel at Booking.com,7011,Conferencesseminars fees etc,71.99,0.00,71.99
Children and Young Peoples Services,Head of Childrens Social Care,085511,Emergency Duty Team,Supplies and Services,352001,Conference Expenses,06-Mar-2023,000008687748618,Hotel at Booking.com,7011,Conferencesseminars fees etc,45.82,0.00,45.82
Children and Young Peoples Services,Head of Childrens Social Care,085511,Emergency Duty Team,Supplies and Services,352001,Conference Expenses,06-Mar-2023,000008687748622,Hotel at Booking.com,7011,Conferencesseminars fees etc,66.50,0.00,66.50
Children and Young Peoples Services,Head of Childrens Social Care,085511,Emergency Duty Team,Supplies and Services,352001,Conference Expenses,06-Mar-2023,000008687748624,Hotel at Booking.com,7011,Conferencesseminars fees etc,66.50,0.00,66.50
Children and Young Peoples Services,Head of Childrens Social Care,085511,Emergency Duty Team,Supplies and Services,352001,Conference Expenses,06-Mar-2023,000008687748628,Park Head Hotel,7011,Conferencesseminars fees etc,79.00,0.00,79.00
Children and Young Peoples Services,Head of Education and Skills,071733,Shildon Childcare,Supplies and Services,324117,Provisions E324,06-Mar-2023,000008687748636,ASDA GROCERIES ONLINE,5411,Catering costs - provisions,86.94,0.00,86.94
Children and Young Peoples Services,Head of Childrens Social Care,085634,Families First Easington,Supplies and Services,338045,Services,06-Mar-2023,000008687748652,GEN REGISTER OFFICE,9399,Legal expenses 338045,11.00,0.00,11.00
Adult and Health Services,Head of Adults,055302,Durham Pathways,Supplies and Services,304403,Equipment and Materials,06-Mar-2023,000008687748664,AMZNMktplace,5999,Other consumables,23.58,3.94,19.64
Children and Young Peoples Services,Head of Childrens Social Care,085341,High Etherley Satelite Home,Supplies and Services,324117,Provisions E324,06-Mar-2023,000008687748684,774 026,5411,Catering costs - provisions,87.79,0.00,87.79
Regeneration Economy and Growth,Economic Development Level C,030771,Durham Advance Flexible Fund,Supplies and Services,328041,Clothing uniforms and laundry E328,06-Mar-2023,000008687748708,MATALAN,5691,Clothing uniforms and laundry,55.00,0.00,55.00
Regeneration Economy and Growth,Economic Development Level C,030771,Durham Advance Flexible Fund,Transport,235057,Public Transport,06-Mar-2023,000008687748714,WWW.GONORTHEAST.CO.UK,4111,Staff travelling,30.00,0.00,30.00
Regeneration Economy and Growth,Economic Development Level C,030771,Durham Advance Flexible Fund,Transport,235057,Public Transport,06-Mar-2023,000008687748716,WWW.GONORTHEAST.CO.UK,4111,Staff travelling,30.00,0.00,30.00
Children and Young Peoples Services,Head of Childrens Social Care,085364,Children Looked After Team 1,Third Party Payments,430100,Rendered by Private Contractors,06-Mar-2023,000008687748718,DMN/LANE7DURHAM,7399,Payments to sub-contractors,17.65,0.00,17.65
Children and Young Peoples Services,Head of Childrens Social Care,085364,Children Looked After Team 1,Supplies and Services,304259,Equipment and Materials,06-Mar-2023,000008687748720,DURHAM COUNTY COUNCIL,9399,Equipment-purchase and rental,11.00,0.00,11.00
Children and Young Peoples Services,Head of Early Help Inclusion & Vulnerable Children.,085957,Secure Management,Supplies and Services,304259,Equipment and Materials,06-Mar-2023,000008687748722,Amazon MP3,5735,Equipment-purchase and rental,0.98,0.16,0.82
Children and Young Peoples Services,Head of Early Help Inclusion & Vulnerable Children.,085957,Secure Management,Supplies and Services,304259,Equipment and Materials,06-Mar-2023,000008687748724,Amazon MP3,5735,Equipment-purchase and rental,0.98,0.16,0.82
Children and Young Peoples Services,Head of Early Help Inclusion & Vulnerable Children.,085957,Secure Management,Supplies and Services,304259,Equipment and Materials,06-Mar-2023,000008687748726,Amazon MP3,5735,Equipment-purchase and rental,0.98,0.16,0.82
Children and Young Peoples Services,Head of Early Help Inclusion & Vulnerable Children.,085957,Secure Management,Supplies and Services,304259,Equipment and Materials,06-Mar-2023,000008687748728,Amazon MP3,5735,Equipment-purchase and rental,0.98,0.16,0.82
Children and Young Peoples Services,Head of Early Help Inclusion & Vulnerable Children.,085957,Secure Management,Supplies and Services,304259,Equipment and Materials,06-Mar-2023,000008687748730,Amazon MP3,5735,Equipment-purchase and rental,0.98,0.16,0.82
Children and Young Peoples Services,Head of Early Help Inclusion & Vulnerable Children.,085957,Secure Management,Supplies and Services,304259,Equipment and Materials,06-Mar-2023,000008687748732,Amazon MP3,5735,Equipment-purchase and rental,0.98,0.16,0.82
Children and Young Peoples Services,Head of Early Help Inclusion & Vulnerable Children.,085957,Secure Management,Supplies and Services,304259,Equipment and Materials,06-Mar-2023,000008687748734,Amazon MP3,5735,Equipment-purchase and rental,0.98,0.16,0.82
Children and Young Peoples Services,Head of Early Help Inclusion & Vulnerable Children.,085957,Secure Management,Supplies and Services,304259,Equipment and Materials,06-Mar-2023,000008687748736,Amazon MP3,5735,Equipment-purchase and rental,0.98,0.16,0.82
Children and Young Peoples Services,Head of Early Help Inclusion & Vulnerable Children.,085957,Secure Management,Supplies and Services,304259,Equipment and Materials,06-Mar-2023,000008687748738,Amazon MP3,5735,Equipment-purchase and rental,3.98,0.66,3.32
Children and Young Peoples Services,Head of Early Help Inclusion & Vulnerable Children.,085957,Secure Management,Supplies and Services,304259,Equipment and Materials,06-Mar-2023,000008687748740,Amazon MP3,5735,Equipment-purchase and rental,0.98,0.16,0.82
Children and Young Peoples Services,Head of Early Help Inclusion & Vulnerable Children.,085957,Secure Management,Supplies and Services,304259,Equipment and Materials,06-Mar-2023,000008687748742,Amazon MP3,5735,Equipment-purchase and rental,0.98,0.16,0.82
Children and Young Peoples Services,Head of Early Help Inclusion & Vulnerable Children.,085957,Secure Management,Supplies and Services,304259,Equipment and Materials,06-Mar-2023,000008687748744,Amazon MP3,5735,Equipment-purchase and rental,0.98,0.16,0.82
Children and Young Peoples Services,Head of Early Help Inclusion & Vulnerable Children.,085957,Secure Management,Supplies and Services,304259,Equipment and Materials,06-Mar-2023,000008687748746,Amazon MP3,5735,Equipment-purchase and rental,0.98,0.16,0.82
Children and Young Peoples Services,Head of Early Help Inclusion & Vulnerable Children.,085957,Secure Management,Supplies and Services,304259,Equipment and Materials,06-Mar-2023,000008687748748,Amazon MP3,5735,Equipment-purchase and rental,8.99,1.50,7.49
Children and Young Peoples Services,Head of Early Help Inclusion & Vulnerable Children.,085957,Secure Management,Supplies and Services,304259,Equipment and Materials,06-Mar-2023,000008687748750,Amazon MP3,5735,Equipment-purchase and rental,0.98,0.00,0.98
Children and Young Peoples Services,Head of Early Help Inclusion & Vulnerable Children.,085956,Lumley,Supplies and Services,332047,Printing Stationery and Gen Off Exps,06-Mar-2023,000008687748752,AMZNMKTPLACE AMAZON.CO,5999,Stationery,5.99,1.00,4.99
Children and Young Peoples Services,Head of Childrens Social Care,085334,West Rainton Satelite Home,Supplies and Services,324117,Provisions E324,06-Mar-2023,000008687748754,TESCO STORES 2371,5411,Catering costs - provisions,127.39,0.00,127.39
Resources BK0010,HR & Employee Services,010984,Training and Development,Supplies and Services,384999,Miscellaneous Expenses,06-Mar-2023,000008687748774,NPORS LTD,8211,Other expenses,48.00,8.00,40.00
Children and Young Peoples Services,Head of Childrens Social Care,085621,Families First Newton Aycliffe and Shildon,Supplies and Services,328041,Clothing uniforms and laundry E328,06-Mar-2023,000008687748784,WWW.ARGOS.CO.UK,5311,Clothing uniforms and laundry,549.00,0.00,549.00
Adult and Health Services,Head of Adults,055301,Stanley Pathways,Supplies and Services,304403,Equipment and Materials,06-Mar-2023,000008687748852,AMZNMktplace,5999,Other consumables,9.68,1.61,8.07
Adult and Health Services,Head of Adults,055301,Stanley Pathways,Supplies and Services,304403,Equipment and Materials,06-Mar-2023,000008687748854,AMZNMKTPLACE AMAZON.CO,5999,Other consumables,33.98,5.66,28.32
Children and Young Peoples Services,Head of Education and Skills,075035,DurhamDirections Re-engagement,Supplies and Services,364301,Grants to Voluntary Organisations,06-Mar-2023,000008687748858,WWW.GONORTHEAST.CO.UK,4111,Hardship,6.40,0.00,6.40
Children and Young Peoples Services,Head of Education and Skills,075033,DurhamWorks 3,Supplies and Services,364301,Grants to Voluntary Organisations,06-Mar-2023,000008687748860,WWW.GONORTHEAST.CO.UK,4111,Hardship,34.00,0.00,34.00
Children and Young Peoples Services,Head of Education and Skills,075035,DurhamDirections Re-engagement,Supplies and Services,364301,Grants to Voluntary Organisations,06-Mar-2023,000008687748862,WWW.GONORTHEAST.CO.UK,4111,Hardship,6.40,0.00,6.40
Children and Young Peoples Services,Head of Education and Skills,075035,DurhamDirections Re-engagement,Supplies and Services,364301,Grants to Voluntary Organisations,06-Mar-2023,000008687748864,WWW.GONORTHEAST.CO.UK,4111,Hardship,6.40,0.00,6.40
Children and Young Peoples Services,Head of Education and Skills,075035,DurhamDirections Re-engagement,Supplies and Services,364301,Grants to Voluntary Organisations,06-Mar-2023,000008687748866,WWW.GONORTHEAST.CO.UK,4111,Hardship,72.00,0.00,72.00
Children and Young Peoples Services,Head of Education and Skills,075033,DurhamWorks 3,Supplies and Services,364301,Grants to Voluntary Organisations,06-Mar-2023,000008687748868,DURHAM COUNTY COUNCIL,9399,Hardship,11.00,0.00,11.00
Children and Young Peoples Services,Head of Education and Skills,078550,Discretionary Learning Support,Transport,235057,Public Transport,06-Mar-2023,000008687748870,WWW.GONORTHEAST.CO.UK,4111,Staff travelling,1.40,0.00,1.40
Children and Young Peoples Services,Head of Education and Skills,078550,Discretionary Learning Support,Transport,235057,Public Transport,06-Mar-2023,000008687748872,WWW.GONORTHEAST.CO.UK,4111,Staff travelling,1.40,0.00,1.40
Children and Young Peoples Services,Head of Education and Skills,071732,Dean Bank Childcare,Supplies and Services,324117,Provisions E324,06-Mar-2023,000008687748878,B&M 147 - FERRYHILL,5399,Catering costs - provisions,6.35,0.00,6.35
Children and Young Peoples Services,Head of Education and Skills,071732,Dean Bank Childcare,Supplies and Services,324117,Provisions E324,06-Mar-2023,000008687748880,ASDA GROCERIES ONLINE,5411,Catering costs - provisions,57.31,0.00,57.31
Children and Young Peoples Services,Head of Education and Skills,071732,Dean Bank Childcare,Supplies and Services,324117,Provisions E324,06-Mar-2023,000008687748882,ASDA GROCERIES ONLINE,5411,Catering costs - provisions,9.80,0.00,9.80
Children and Young Peoples Services,Head of Education and Skills,071732,Dean Bank Childcare,Supplies and Services,324117,Provisions E324,06-Mar-2023,000008687748884,ASDA GROCERIES ONLINE,5411,Catering costs - provisions,-0.35,0.00,-0.35
Children and Young Peoples Services,Head of Early Help Inclusion & Vulnerable Children.,085957,Secure Management,Supplies and Services,324117,Provisions E324,06-Mar-2023,000008687748890,TESCO STORES 6329,5411,Catering costs - provisions,127.78,0.00,127.78
Neighbourhoods and Climate Change,Environmental Services,031239,North Pennines - Carbon Connect,Supplies and Services,348037,Subsistence E348,06-Mar-2023,000008687748908,JOHN GILBERT,5813,Subsistence,12.99,2.17,10.82
Neighbourhoods and Climate Change,Environmental Services,031239,North Pennines - Carbon Connect,Supplies and Services,348037,Subsistence E348,06-Mar-2023,000008687748910,SHELL Edenside Garage,5541,Subsistence,3.50,0.58,2.92
Regeneration Economy and Growth,Corporate Property and Land,011001,FM-Civic Bldgs-Green Lane Council Offices Spennymoor,Supplies and Services,304403,Equipment and Materials,06-Mar-2023,000008687748918,AMZNMktplace,5999,Other consumables,35.24,5.87,29.37
Children and Young Peoples Services,Head of Early Help Inclusion & Vulnerable Children.,088115,Young Parents Programme 088115,Supplies and Services,324117,Provisions E324,06-Mar-2023,000008687748934,ASDA GROCERIES ONLINE,5411,Catering costs - provisions,33.85,0.00,33.85
Children and Young Peoples Services,Head of Early Help Inclusion & Vulnerable Children.,088115,Young Parents Programme 088115,Supplies and Services,324117,Provisions E324,06-Mar-2023,000008687748936,ASDA GROCERIES ONLINE,5411,Catering costs - provisions,-0.35,0.00,-0.35
Children and Young Peoples Services,Head of Early Help Inclusion & Vulnerable Children.,085963,Maple House,Supplies and Services,304259,Equipment and Materials,06-Mar-2023,000008687748960,AMZNMktplace,5999,Equipment-purchase and rental,10.95,1.83,9.12
Children and Young Peoples Services,Head of Early Help Inclusion & Vulnerable Children.,085957,Secure Management,Premises,108099,Service Repairs and Maintenance,06-Mar-2023,000008687748962,AMZNMKTPLACE AMAZON.CO,5999,General repairs 108099,16.99,2.83,14.16
Children and Young Peoples Services,Head of Early Help Inclusion & Vulnerable Children.,085963,Maple House,Supplies and Services,304259,Equipment and Materials,06-Mar-2023,000008687748964,AMZNMKTPLACE AMAZON.CO,5999,Equipment-purchase and rental,41.99,0.00,41.99
Children and Young Peoples Services,Head of Early Help Inclusion & Vulnerable Children.,085963,Maple House,Supplies and Services,308011,Furniture,06-Mar-2023,000008687748966,AMZNMktplace,5999,Furniture repair and replacement,2.99,5.49,-2.50
Children and Young Peoples Services,Head of Early Help Inclusion & Vulnerable Children.,085963,Maple House,Supplies and Services,308011,Furniture,06-Mar-2023,000008687748968,AMZNMktplace,5999,Furniture repair and replacement,29.93,5.49,24.44
Children and Young Peoples Services,Head of Early Help Inclusion & Vulnerable Children.,085963,Maple House,Supplies and Services,304259,Equipment and Materials,06-Mar-2023,000008687748970,AMZNMktplace,5999,Equipment-purchase and rental,7.99,1.33,6.66
Children and Young Peoples Services,Head of Childrens Social Care,085333,Coxhoe Satelite Home,Supplies and Services,324117,Provisions E324,06-Mar-2023,000008687749010,TESCO STORES 2916,5411,Catering costs - provisions,115.83,0.00,115.83
Children and Young Peoples Services,Head of Childrens Social Care,085614,Families First Durham West,Supplies and Services,304259,Equipment and Materials,06-Mar-2023,000008687749038,VIKING OFFICE UK LIMIT,5111,Equipment-purchase and rental,7.06,0.00,7.06
Neighbourhoods and Climate Change,Environmental Services,031200,North Pennines Core,Supplies and Services,342033,Computers and Communications,06-Mar-2023,000008687749044,SendinBlue,7372,Computer hardware,35.00,0.00,35.00
Regeneration Economy and Growth,Planning & Housing,031500,Housing Solutions - Core,Supplies and Services,352001,Conference Expenses,06-Mar-2023,000008687749062,Roadchef Durham,7011,Conferencesseminars fees etc,49.00,0.00,49.00
Regeneration Economy and Growth,Planning & Housing,031500,Housing Solutions - Core,Supplies and Services,352001,Conference Expenses,06-Mar-2023,000008687749064,Roadchef Durham,7011,Conferencesseminars fees etc,7.50,0.00,7.50
Regeneration Economy and Growth,Planning & Housing,031500,Housing Solutions - Core,Supplies and Services,352001,Conference Expenses,06-Mar-2023,000008687749066,TRAVELODGE,3615,Conferencesseminars fees etc,273.31,0.00,273.31
Regeneration Economy and Growth,Economic Development Level C,030772,CLLD South,Transport,235057,Public Transport,06-Mar-2023,000008687749068,WALKERGATE CAR PAR,7523,Staff travelling,3.10,0.00,3.10
Regeneration Economy and Growth,Planning & Housing,031634,LOCAL LETTINGS AGENCY,Premises,108099,Service Repairs and Maintenance,06-Mar-2023,000008687749078,TESCO STORES 2371,5411,General repairs 108099,18.50,0.00,18.50
Children and Young Peoples Services,Head of Childrens Social Care,085331,New Lea Childrens Home,Supplies and Services,308011,Furniture,06-Mar-2023,000008687749080,Dunelm SoftFurnishings,5712,Furniture repair and replacement,105.00,0.00,105.00
Children and Young Peoples Services,Head of Childrens Social Care,085331,New Lea Childrens Home,Supplies and Services,304403,Equipment and Materials,06-Mar-2023,000008687749082,AMZNMktplace,5999,Other consumables,8.89,0.00,8.89
Children and Young Peoples Services,Head of Childrens Social Care,085331,New Lea Childrens Home,Supplies and Services,348037,Subsistence E348,06-Mar-2023,000008687749084,MCDONALDS 1555,5814,Subsistence,5.14,0.00,5.14
Children and Young Peoples Services,Head of Childrens Social Care,085331,New Lea Childrens Home,Supplies and Services,338048,Services,06-Mar-2023,000008687749086,HMCTS DURHAM012W,9222,Court costs 338048,18.00,0.00,18.00
Regeneration Economy and Growth,Economic Development Level C,030776,LINKCD Flexible Fund,Employees,040149,Recruitment Instruction and Training,06-Mar-2023,000008687749100,WWW.TEES.AC.UK,8220,Training-all costs,40.00,0.00,40.00
Children and Young Peoples Services,Head of Childrens Social Care,085351,Framwellgate Moor CU,Supplies and Services,304259,Equipment and Materials,06-Mar-2023,000008687749108,OFSTED INTERNET,9399,Equipment-purchase and rental,910.00,0.00,910.00
Neighbourhoods and Climate Change,Environmental Services,010367,C&G - South Grounds Maintenance,Supplies and Services,304999,Equipment and Materials,06-Mar-2023,000008687749118,Snowballs,5251,Misc equipment tools and materials,35.94,0.00,35.94
Neighbourhoods and Climate Change,Environmental Services,011171,Nei.Prot - Allotments,Supplies and Services,304221,Equipment and Materials,06-Mar-2023,000008687749140,BTL TIMBER AND COUNTRY,5211,Direct materials,171.08,0.00,171.08
Neighbourhoods and Climate Change,Environmental Services,011171,Nei.Prot - Allotments,Supplies and Services,304221,Equipment and Materials,06-Mar-2023,000008687749142,BTL TIMBER AND COUNTRY,5211,Direct materials,356.72,0.00,356.72
Neighbourhoods and Climate Change,Environmental Services,011171,Nei.Prot - Allotments,Supplies and Services,304221,Equipment and Materials,06-Mar-2023,000008687749144,BTL TIMBER AND COUNTRY,5211,Direct materials,5.99,0.00,5.99
Adult and Health Services,Head of Adults,055310,Positive Journeys (Tudhoe),Supplies and Services,324117,Provisions E324,06-Mar-2023,000008687749164,ASDA STORES LTD,5411,Catering costs - provisions,2.80,0.00,2.80
Regeneration Economy and Growth,Planning & Housing,031576,B& B - Temp Accom,Supplies and Services,364320,Grants to Voluntary Organisations,06-Mar-2023,000008687749178,Roadchef Durham,7011,Accommodation assistance,45.00,0.00,45.00
Regeneration Economy and Growth,Planning & Housing,031576,B& B - Temp Accom,Supplies and Services,364320,Grants to Voluntary Organisations,06-Mar-2023,000008687749180,Roadchef Durham,7011,Accommodation assistance,100.00,0.00,100.00
Regeneration Economy and Growth,Planning & Housing,031576,B& B - Temp Accom,Supplies and Services,364320,Grants to Voluntary Organisations,06-Mar-2023,000008687749182,Roadchef Durham,7011,Accommodation assistance,100.00,0.00,100.00
Regeneration Economy and Growth,Planning & Housing,031576,B& B - Temp Accom,Supplies and Services,364320,Grants to Voluntary Organisations,06-Mar-2023,000008687749184,Roadchef Durham,7011,Accommodation assistance,100.00,0.00,100.00
Regeneration Economy and Growth,Planning & Housing,031576,B& B - Temp Accom,Supplies and Services,364320,Grants to Voluntary Organisations,06-Mar-2023,000008687749186,Roadchef Durham,7011,Accommodation assistance,100.00,0.00,100.00
Regeneration Economy and Growth,Planning & Housing,031576,B& B - Temp Accom,Supplies and Services,364320,Grants to Voluntary Organisations,06-Mar-2023,000008687749188,Roadchef Durham,7011,Accommodation assistance,15.00,0.00,15.00
Regeneration Economy and Growth,Planning & Housing,031576,B& B - Temp Accom,Supplies and Services,364320,Grants to Voluntary Organisations,06-Mar-2023,000008687749190,Roadchef Durham,7011,Accommodation assistance,7.50,0.00,7.50
Regeneration Economy and Growth,Planning & Housing,031576,B& B - Temp Accom,Supplies and Services,364320,Grants to Voluntary Organisations,06-Mar-2023,000008687749192,Roadchef Durham,7011,Accommodation assistance,100.00,0.00,100.00
Regeneration Economy and Growth,Planning & Housing,031576,B& B - Temp Accom,Supplies and Services,364320,Grants to Voluntary Organisations,06-Mar-2023,000008687749194,Roadchef Durham,7011,Accommodation assistance,15.00,0.00,15.00
Regeneration Economy and Growth,Planning & Housing,031576,B& B - Temp Accom,Supplies and Services,364320,Grants to Voluntary Organisations,06-Mar-2023,000008687749196,Roadchef Durham,7011,Accommodation assistance,49.00,0.00,49.00
Regeneration Economy and Growth,Planning & Housing,031576,B& B - Temp Accom,Supplies and Services,364320,Grants to Voluntary Organisations,06-Mar-2023,000008687749198,Roadchef Durham,7011,Accommodation assistance,15.00,0.00,15.00
Regeneration Economy and Growth,Planning & Housing,031576,B& B - Temp Accom,Supplies and Services,364320,Grants to Voluntary Organisations,06-Mar-2023,000008687749200,Roadchef Durham,7011,Accommodation assistance,7.50,0.00,7.50
Regeneration Economy and Growth,Planning & Housing,031576,B& B - Temp Accom,Supplies and Services,364320,Grants to Voluntary Organisations,06-Mar-2023,000008687749202,H52STANLEY,7011,Accommodation assistance,196.20,0.00,196.20
Regeneration Economy and Growth,Planning & Housing,031576,B& B - Temp Accom,Supplies and Services,364320,Grants to Voluntary Organisations,06-Mar-2023,000008687749204,H52STANLEY,7011,Accommodation assistance,180.00,0.00,180.00
Regeneration Economy and Growth,Planning & Housing,031576,B& B - Temp Accom,Supplies and Services,364320,Grants to Voluntary Organisations,06-Mar-2023,000008687749206,H52STANLEY,7011,Accommodation assistance,124.20,0.00,124.20
Regeneration Economy and Growth,Corporate Property and Land,010525,Catering - Green Lane,Supplies and Services,384999,Miscellaneous Expenses,06-Mar-2023,000008687821224,G M PACKAGING UK LIMIT,5046,Other expenses,116.78,0.00,116.78
Regeneration Economy and Growth,Corporate Property and Land,010525,Catering - Green Lane,Supplies and Services,324117,Provisions E324,06-Mar-2023,000008687821226,HOPWELLS LTD,5811,Catering costs - provisions,76.78,0.00,76.78
Regeneration Economy and Growth,Corporate Property and Land,010525,Catering - Green Lane,Supplies and Services,324117,Provisions E324,06-Mar-2023,000008687821228,JR HOLLAND FOODSERVICE,5499,Catering costs - provisions,101.95,0.00,101.95
Regeneration Economy and Growth,Corporate Property and Land,011296,Catering - Dunes,Supplies and Services,324117,Provisions E324,06-Mar-2023,000008687821230,HOPWELLS LTD,5811,Catering costs - provisions,21.54,3.59,17.95
Regeneration Economy and Growth,Corporate Property and Land,011296,Catering - Dunes,Supplies and Services,324117,Provisions E324,06-Mar-2023,000008687821230 - 1,HOPWELLS LTD,5811,Catering costs - provisions,94.61,,94.61
Regeneration Economy and Growth,Corporate Property and Land,030691,Catering - Durham Dales Centre,Supplies and Services,324117,Provisions E324,06-Mar-2023,000008687821232,HOPWELLS LTD,5811,Catering costs - provisions,187.80,0.00,187.80
Regeneration Economy and Growth,Culture Sport and Tourism,054235,Bishop Auckland Town Hall Cafe,Supplies and Services,324117,Provisions E324,06-Mar-2023,000008687821234,JR HOLLAND FOODSERVICE,5499,Catering costs - provisions,693.77,0.00,693.77
Adult and Health Services,Head of Adults,055643,Hawthorn House LD Respite Unit,Supplies and Services,324117,Provisions E324,06-Mar-2023,000008687821238,HOPWELLS LTD,5811,Catering costs - provisions,89.48,0.00,89.48
Adult and Health Services,Head of Adults,055643,Hawthorn House LD Respite Unit,Supplies and Services,324117,Provisions E324,06-Mar-2023,000008687821240,JR HOLLAND FOODSERVICE,5499,Catering costs - provisions,31.02,0.00,31.02
Adult and Health Services,Head of Adults,055643,Hawthorn House LD Respite Unit,Supplies and Services,324117,Provisions E324,06-Mar-2023,000008687821242,JR HOLLAND FOODSERVICE,5499,Catering costs - provisions,28.61,0.00,28.61
Neighbourhoods and Climate Change,Environmental Services,011060,C&G - Hardwick Park Catering,Supplies and Services,324117,Provisions E324,06-Mar-2023,000008687821246,JR HOLLAND FOODSERVICE,5499,Catering costs - provisions,114.64,0.00,114.64
Regeneration Economy and Growth,Corporate Property and Land,021234,Catering - Locomotion,Supplies and Services,384999,Miscellaneous Expenses,06-Mar-2023,000008687821248,G M PACKAGING UK LIMIT,5046,Other expenses,122.88,0.00,122.88
Regeneration Economy and Growth,Culture Sport and Tourism,054812,Gala Theatre - Catering etc,Supplies and Services,384999,Miscellaneous Expenses,06-Mar-2023,000008687821252,G M PACKAGING UK LIMIT,5046,Other expenses,18.96,0.00,18.96
Regeneration Economy and Growth,Corporate Property and Land,021242,Catering - County Hall,Supplies and Services,324117,Provisions E324,06-Mar-2023,000008687821254,JR HOLLAND FOODSERVICE,5499,Catering costs - provisions,32.24,0.00,32.24
Regeneration Economy and Growth,Corporate Property and Land,021242,Catering - County Hall,Supplies and Services,324117,Provisions E324,06-Mar-2023,000008687821256,JR HOLLAND FOODSERVICE,5499,Catering costs - provisions,57.80,0.00,57.80
Regeneration Economy and Growth,Business Durham CL0850,030689,Inward Investment and Aftercare,Supplies and Services,342222,Computers and Communications,06-Mar-2023,000008692425346,FASTHOSTS,4816,Comp hardware purch-network servers,6.94,0.00,6.94
Regeneration Economy and Growth,Planning & Housing,031581,Prevention Fund,Supplies and Services,364320,Grants to Voluntary Organisations,06-Mar-2023,000008692425398,PREMIER INN,3811,Accommodation assistance,78.84,0.00,78.84
Children and Young Peoples Services,Head of Childrens Social Care,085332,Middlestone Moor CU,Supplies and Services,304403,Equipment and Materials,06-Mar-2023,000008692426054,AMZNMKTPLACE AMAZON.CO,5999,Other consumables,12.94,0.00,12.94
Adult and Health Services,Head of Adults,055643,Hawthorn House LD Respite Unit,Supplies and Services,304403,Equipment and Materials,06-Mar-2023,000008692426154,AMZNMKTPLACE AMAZON.CO,5999,Other consumables,48.84,8.14,40.70
Adult and Health Services,Head of Adults,055643,Hawthorn House LD Respite Unit,Supplies and Services,304403,Equipment and Materials,06-Mar-2023,000008692426154 - 1,AMZNMKTPLACE AMAZON.CO,5999,Other consumables,0.03,,0.03
Regeneration Economy and Growth,Corporate Property and Land,020041,Bldg Serv - Business Development - General,Supplies and Services,372009,Subscriptions E372,06-Mar-2023,000008692426160,IPO,9399,Subscriptions 372009,470.00,0.00,470.00
Neighbourhoods and Climate Change,Environmental Services,031239,North Pennines - Carbon Connect,Transport,215995,Running Costs of Vehicles,06-Mar-2023,000008692426256,KILLINGTON LAKE CONNEC,5541,Vehicle running expenses,70.00,11.67,58.33
Regeneration Economy and Growth,Planning & Housing,031500,Housing Solutions - Core,Employees,040149,Recruitment Instruction and Training,06-Mar-2023,000008692426462,PREMIER INN,3811,Training-all costs,77.35,0.00,77.35
Children and Young Peoples Services,Head of Childrens Social Care,085331,New Lea Childrens Home,Supplies and Services,304403,Equipment and Materials,06-Mar-2023,000008692426532,AMZNMKTPLACE AMAZON.CO,5999,Other consumables,9.49,0.00,9.49
Resources BK0010,Digital Services,065481,Technical Services 065481,Supplies and Services,304403,Equipment and Materials,06-Mar-2023,000008692426602,AMZNBUSINESS 1R4SM23W4,5999,Other consumables,10.99,1.83,9.16
Regeneration Economy and Growth,Corporate Property and Land,030691,Catering - Durham Dales Centre,Supplies and Services,324117,Provisions E324,06-Mar-2023,000008692533178,BESTWAY WHOLESALE,5300,Catering costs - provisions,25.32,4.22,21.10
Regeneration Economy and Growth,Corporate Property and Land,030691,Catering - Durham Dales Centre,Supplies and Services,324117,Provisions E324,06-Mar-2023,000008692533178 - 1,BESTWAY WHOLESALE,5300,Catering costs - provisions,107.18,,107.18
Children and Young Peoples Services,Head of Childrens Social Care,085358,Orchard House Sacriston Solo Home,Supplies and Services,372009,Subscriptions E372,07-Mar-2023,000008687748654,Netflix,4899,Subscriptions 372009,15.99,0.00,15.99
Children and Young Peoples Services,Head of Early Help Inclusion & Vulnerable Children.,085963,Maple House,Supplies and Services,304259,Equipment and Materials,07-Mar-2023,000008687748972,AMZNMktplace,5999,Equipment-purchase and rental,18.99,3.17,15.82
Regeneration Economy and Growth,Business Durham CL0850,030689,Inward Investment and Aftercare,Supplies and Services,336005,Advertising E336,07-Mar-2023,000008692425350,LINKEDIN ADS 824097404,7311,Advertising other than for staff,121.52,0.00,121.52
Children and Young Peoples Services,Head of Childrens Social Care,085341,High Etherley Satelite Home,Supplies and Services,304259,Equipment and Materials,07-Mar-2023,000008692425360,SPORTSDIRECT 246,5941,Equipment-purchase and rental,84.99,0.00,84.99
Children and Young Peoples Services,Head of Childrens Social Care,085364,Children Looked After Team 1,Supplies and Services,338045,Services,07-Mar-2023,000008692425364,GEN REGISTER OFFICE,9399,Legal expenses 338045,33.00,0.00,33.00
Children and Young Peoples Services,Head of Childrens Social Care,085365,Children Looked After Team 2,Supplies and Services,338045,Services,07-Mar-2023,000008692425368,GEN REGISTER OFFICE,9399,Legal expenses 338045,11.00,0.00,11.00
Children and Young Peoples Services,Head of Childrens Social Care,085365,Children Looked After Team 2,Supplies and Services,338045,Services,07-Mar-2023,000008692425372,GEN REGISTER OFFICE,9399,Legal expenses 338045,11.00,0.00,11.00
Children and Young Peoples Services,Head of Education and Skills,071801,Selby Cottage Childcare Centre,Supplies and Services,324117,Provisions E324,07-Mar-2023,000008692425376,TESCO STORES 2371,5411,Catering costs - provisions,16.23,0.00,16.23
Dedicated Schools Grant BG0015,DSG Schools Block,417625,Greenfield Community College 004176-Non Stat Training,Employees,040149,Recruitment Instruction and Training,07-Mar-2023,000008692425388,COMMUNICATE-ED,8299,Training-all costs,15.00,0.00,15.00
Dedicated Schools Grant BG0015,DSG Schools Block,417631,Greenfield Community College 004176 - Time 4 Success,Supplies and Services,384981,Miscellaneous Expenses,07-Mar-2023,000008692425390,AMZNMktplace,5999,House Rewards,10.78,1.80,8.98
Children and Young Peoples Services,Head of Early Help Inclusion & Vulnerable Children.,085810,CDYJS - Interventions Team,Supplies and Services,384237,Miscellaneous Expenses,07-Mar-2023,000008692425402,Battlezone Paintball,7999,Recreational exps outings parties,200.00,0.00,200.00
Regeneration Economy and Growth,Culture Sport and Tourism,010661,Meadowfield Leisure Centre,Supplies and Services,328041,Clothing uniforms and laundry E328,07-Mar-2023,000008692425410,WWW.ARGOS.CO.UK,5311,Clothing uniforms and laundry,26.95,0.00,26.95
Children and Young Peoples Services,Head of Education and Skills,075034,Youth Futures Foundation,Supplies and Services,364301,Grants to Voluntary Organisations,07-Mar-2023,000008692425418,AMZNMktplace,5999,Hardship,14.40,2.40,12.00
Neighbourhoods and Climate Change,Environmental Services,010367,C&G - South Grounds Maintenance,Supplies and Services,304999,Equipment and Materials,07-Mar-2023,000008692425432,Harelaw sawmill delive,5251,Misc equipment tools and materials,43.73,0.00,43.73
Adult and Health Services,Head of Adults,055302,Durham Pathways,Supplies and Services,324117,Provisions E324,07-Mar-2023,000008692425442,SAINSBURY`S S/MKT,5411,Catering costs - provisions,15.45,0.00,15.45
Regeneration Economy and Growth,Culture Sport and Tourism,011198,Culture & Sport Management 011198,Employees,040149,Recruitment Instruction and Training,07-Mar-2023,000008692425454,CULTURAL ENTERPRISES,8398,Training-all costs,225.00,0.00,225.00
Regeneration Economy and Growth,Culture Sport and Tourism,011056,AAP Funding - Sport & Leisure,Supplies and Services,304252,Equipment and Materials,07-Mar-2023,000008692425460,AMZNMktplace,5999,Equipment-repairsserviceinsurance,32.29,5.38,26.91
Children and Young Peoples Services,Head of Childrens Social Care,085332,Middlestone Moor CU,Supplies and Services,328041,Clothing uniforms and laundry E328,07-Mar-2023,000008692425552,eBay O 04-09793-27641,5311,Clothing uniforms and laundry,10.49,0.00,10.49
Children and Young Peoples Services,Head of Childrens Social Care,085332,Middlestone Moor CU,Supplies and Services,304999,Equipment and Materials,07-Mar-2023,000008692425558,HOME BARGAINS SPENNYMO,5251,Misc equipment tools and materials,15.32,0.00,15.32
Children and Young Peoples Services,Head of Childrens Social Care,085332,Middlestone Moor CU,Supplies and Services,324117,Provisions E324,07-Mar-2023,000008692425562,ASDA SUPERSTORE 4987,5411,Catering costs - provisions,23.80,0.00,23.80
Children and Young Peoples Services,Head of Childrens Social Care,085332,Middlestone Moor CU,Supplies and Services,324117,Provisions E324,07-Mar-2023,000008692425566,ASDA SUPERSTORE 4987,5411,Catering costs - provisions,17.25,0.00,17.25
Children and Young Peoples Services,Head of Early Help Inclusion & Vulnerable Children.,071440,Barnard Castle One Point Hub,Supplies and Services,332047,Printing Stationery and Gen Off Exps,07-Mar-2023,000008692425662,AMZNMktplace,5999,Stationery,3.59,0.60,2.99
Regeneration Economy and Growth,Economic Development Level C,030771,Durham Advance Flexible Fund,Supplies and Services,348037,Subsistence E348,07-Mar-2023,000008692425666,COSTA COFFEE 43011693,5814,Subsistence,1.70,0.28,1.42
Regeneration Economy and Growth,Economic Development Level C,030771,Durham Advance Flexible Fund,Supplies and Services,348037,Subsistence E348,07-Mar-2023,000008692425670,COSTA COFFEE 43011693,5814,Subsistence,3.05,0.51,2.54
Children and Young Peoples Services,Head of Childrens Social Care,085511,Emergency Duty Team,Supplies and Services,352001,Conference Expenses,07-Mar-2023,000008692425708,Hotel at Booking.com,7011,Conferencesseminars fees etc,58.00,0.00,58.00
Children and Young Peoples Services,Head of Childrens Social Care,085511,Emergency Duty Team,Supplies and Services,352001,Conference Expenses,07-Mar-2023,000008692425712,Hotel at Booking.com,7011,Conferencesseminars fees etc,45.00,0.00,45.00
Children and Young Peoples Services,Head of Childrens Social Care,085511,Emergency Duty Team,Transport,235057,Public Transport,07-Mar-2023,000008692425718,UBER TRIP,4121,Staff travelling,21.93,0.00,21.93
Children and Young Peoples Services,Head of Childrens Social Care,085511,Emergency Duty Team,Supplies and Services,352001,Conference Expenses,07-Mar-2023,000008692425722,Roadchef Durham,7011,Conferencesseminars fees etc,10.00,0.00,10.00
Children and Young Peoples Services,Head of Childrens Social Care,085511,Emergency Duty Team,Transport,235057,Public Transport,07-Mar-2023,000008692425726,CURB,4121,Staff travelling,42.00,0.00,42.00
Children and Young Peoples Services,Head of Childrens Social Care,085511,Emergency Duty Team,Transport,235057,Public Transport,07-Mar-2023,000008692425728,BOOKING #4348577,4121,Staff travelling,36.30,0.00,36.30
Children and Young Peoples Services,Head of Childrens Social Care,085380,Service Manager CLA Fostering,Supplies and Services,364301,Grants to Voluntary Organisations,07-Mar-2023,000008692425740,ARGOS LTD,5310,Hardship,113.95,0.00,113.95
Regeneration Economy and Growth,Planning & Housing,031576,B& B - Temp Accom,Supplies and Services,364320,Grants to Voluntary Organisations,07-Mar-2023,000008692425746,GAR HOTEL RES,4722,Accommodation assistance,65.32,0.00,65.32
Children and Young Peoples Services,Head of Childrens Social Care,085342,16 Hickstead Rise (previously 9 Cedar Ave),Supplies and Services,324117,Provisions E324,07-Mar-2023,000008692425756,ALDI 74 774,5411,Catering costs - provisions,51.99,0.00,51.99
Adult and Health Services,Head of Adults,055302,Durham Pathways,Supplies and Services,304403,Equipment and Materials,07-Mar-2023,000008692425790,AMZNMktplace,5999,Other consumables,7.99,1.33,6.66
Regeneration Economy and Growth,Culture Sport and Tourism,054813,Gala Theatre - Technical,Supplies and Services,304259,Equipment and Materials,07-Mar-2023,000008692425796,GAFFERTAPE.COM,5399,Equipment-purchase and rental,73.00,0.00,73.00
Regeneration Economy and Growth,Economic Development Level C,030771,Durham Advance Flexible Fund,Transport,235057,Public Transport,07-Mar-2023,000008692425880,WALKERGATE CAR PAR,7523,Staff travelling,3.10,0.00,3.10
Children and Young Peoples Services,Head of Early Help Inclusion & Vulnerable Children.,085963,Maple House,Employees,040149,Recruitment Instruction and Training,07-Mar-2023,000008692425906,PEARSON EDUCATION LTD.,8299,Training-all costs,52.00,0.00,52.00
Children and Young Peoples Services,Head of Early Help Inclusion & Vulnerable Children.,085963,Maple House,Supplies and Services,304403,Equipment and Materials,07-Mar-2023,000008692425908,AMZNMktplace,5999,Other consumables,71.98,0.00,71.98
Children and Young Peoples Services,Head of Early Help Inclusion & Vulnerable Children.,085963,Maple House,Supplies and Services,304403,Equipment and Materials,07-Mar-2023,000008692425910,AMZNMktplace,5999,Other consumables,23.02,0.00,23.02
Children and Young Peoples Services,Head of Early Help Inclusion & Vulnerable Children.,085963,Maple House,Supplies and Services,304403,Equipment and Materials,07-Mar-2023,000008692425912,AMZNMktplace,5999,Other consumables,19.00,0.00,19.00
Children and Young Peoples Services,Head of Early Help Inclusion & Vulnerable Children.,085963,Maple House,Supplies and Services,304403,Equipment and Materials,07-Mar-2023,000008692425914,AMZNMktplace,5999,Other consumables,17.31,0.00,17.31
Regeneration Economy and Growth,Economic Development Level C,030771,Durham Advance Flexible Fund,Transport,235057,Public Transport,07-Mar-2023,000008692425924,WALKERGATE CAR PAR,7523,Staff travelling,3.10,0.52,2.58
Regeneration Economy and Growth,Economic Development Level C,030771,Durham Advance Flexible Fund,Supplies and Services,324117,Provisions E324,07-Mar-2023,000008692425930,SP WILLOWACADEMY,5399,Catering costs - provisions,40.10,0.00,40.10
Regeneration Economy and Growth,Economic Development Level C,030771,Durham Advance Flexible Fund,Supplies and Services,384999,Miscellaneous Expenses,07-Mar-2023,000008692425934,SP GLITTERBELS,5977,Other expenses,179.03,0.00,179.03
Regeneration Economy and Growth,Economic Development Level C,030771,Durham Advance Flexible Fund,Supplies and Services,308011,Furniture,07-Mar-2023,000008692425938,IKEA LTD SHOP ONLINE,5712,Furniture repair and replacement,61.00,0.00,61.00
Regeneration Economy and Growth,Economic Development Level C,030771,Durham Advance Flexible Fund,Supplies and Services,308011,Furniture,07-Mar-2023,000008692425940,WWW.THERANGE.CO.UK,5719,Furniture repair and replacement,120.93,0.00,120.93
Children and Young Peoples Services,Head of Childrens Social Care,085364,Children Looked After Team 1,Supplies and Services,328041,Clothing uniforms and laundry E328,07-Mar-2023,000008692425954,PlanetLeisureLtd,7996,Clothing uniforms and laundry,13.90,0.00,13.90
Children and Young Peoples Services,Head of Childrens Social Care,085364,Children Looked After Team 1,Supplies and Services,384999,Miscellaneous Expenses,07-Mar-2023,000008692425958,WWW.WEST-DUNBARTON.GOV,7997,Other expenses,15.95,0.00,15.95
Children and Young Peoples Services,Head of Childrens Social Care,085364,Children Looked After Team 1,Supplies and Services,304999,Equipment and Materials,07-Mar-2023,000008692425960,WWW.PLANET-LEISURE.CO.,7933,Misc equipment tools and materials,15.20,0.00,15.20
Children and Young Peoples Services,Head of Childrens Social Care,085364,Children Looked After Team 1,Supplies and Services,328041,Clothing uniforms and laundry E328,07-Mar-2023,000008692425962,WWW.ARGOS.CO.UK,5311,Clothing uniforms and laundry,-1.00,0.00,-1.00
Children and Young Peoples Services,Head of Early Help Inclusion & Vulnerable Children.,085955,Auckland,Transfer Payments,515002,Social Services Clients,07-Mar-2023,000008692425972,JD Sports Fashion PLC,5655,Pocket money,70.00,0.00,70.00
Children and Young Peoples Services,Head of Early Help Inclusion & Vulnerable Children.,085956,Lumley,Transfer Payments,515002,Social Services Clients,07-Mar-2023,000008692425976,JD Sports Fashion PLC,5655,Pocket money,43.99,0.00,43.99
Children and Young Peoples Services,Head of Early Help Inclusion & Vulnerable Children.,085957,Secure Management,Supplies and Services,328041,Clothing uniforms and laundry E328,07-Mar-2023,000008692425978,JD Sports Fashion PLC,5655,Clothing uniforms and laundry,43.99,0.00,43.99
Children and Young Peoples Services,Head of Early Help Inclusion & Vulnerable Children.,085954,Walworth,Transfer Payments,515002,Social Services Clients,07-Mar-2023,000008692425980,JD Sports Fashion PLC,5655,Pocket money,44.99,0.00,44.99
Children and Young Peoples Services,Head of Early Help Inclusion & Vulnerable Children.,085954,Walworth,Transfer Payments,515002,Social Services Clients,07-Mar-2023,000008692425982,JD Sports Fashion PLC,5655,Pocket money,44.98,0.00,44.98
Children and Young Peoples Services,Head of Education and Skills,070169,Durham SSP,Supplies and Services,384999,Miscellaneous Expenses,07-Mar-2023,000008692426002,Amazon.co.uk 1R83F8NX4,5969,Other expenses,42.56,0.00,42.56
Neighbourhoods and Climate Change,Environmental Services,031228,North Pennines - Fellfoot Forward,Supplies and Services,324117,Provisions E324,07-Mar-2023,000008692426004,SCOTMID CO-OP STANHOPE,5411,Catering costs - provisions,10.65,0.00,10.65
Neighbourhoods and Climate Change,Environmental Services,031261,North Pennines - Wild about Bowlees,Supplies and Services,304221,Equipment and Materials,07-Mar-2023,000008692426012,BRADSHAWS DIRECT,5261,Direct materials,54.98,9.16,45.82
Children and Young Peoples Services,Head of Childrens Social Care,085621,Families First Newton Aycliffe and Shildon,Transport,235057,Public Transport,07-Mar-2023,000008692426020,trainline,4112,Staff travelling,123.29,0.00,123.29
Children and Young Peoples Services,Head of Childrens Social Care,085621,Families First Newton Aycliffe and Shildon,Supplies and Services,304221,Equipment and Materials,07-Mar-2023,000008692426026,B&Q LTD,5211,Direct materials,21.00,0.00,21.00
Regeneration Economy and Growth,Culture Sport and Tourism,060131,County Records,Supplies and Services,384999,Miscellaneous Expenses,07-Mar-2023,000008692426066,UKPFS,5970,Other expenses,21.54,0.00,21.54
Neighbourhoods and Climate Change,Environmental Services,010301,C&G - North Grounds Maintenance,Supplies and Services,304999,Equipment and Materials,07-Mar-2023,000008692426068,Harelaw sawmill delive,5251,Misc equipment tools and materials,140.76,0.00,140.76
Adult and Health Services,Head of Adults,055643,Hawthorn House LD Respite Unit,Supplies and Services,324117,Provisions E324,07-Mar-2023,000008692426150,SAINSBURYS S/MKTS,5411,Catering costs - provisions,10.45,0.00,10.45
Children and Young Peoples Services,Head of Education and Skills,075033,DurhamWorks 3,Supplies and Services,364301,Grants to Voluntary Organisations,07-Mar-2023,000008692426180,WWW.GONORTHEAST.CO.UK,4111,Hardship,4.70,0.00,4.70
Children and Young Peoples Services,Head of Education and Skills,075033,DurhamWorks 3,Supplies and Services,364301,Grants to Voluntary Organisations,07-Mar-2023,000008692426182,WWW.GONORTHEAST.CO.UK,4111,Hardship,4.70,0.00,4.70
Children and Young Peoples Services,Head of Education and Skills,078561,DurhamEnable,Supplies and Services,304403,Equipment and Materials,07-Mar-2023,000008692426186,WWW.KEYBOARDSPECIALIST,5734,Other consumables,93.34,15.56,77.78
Children and Young Peoples Services,Head of Education and Skills,078550,Discretionary Learning Support,Transport,235057,Public Transport,07-Mar-2023,000008692426196,WWW.GONORTHEAST.CO.UK,4111,Staff travelling,1.40,0.00,1.40
Children and Young Peoples Services,Head of Education and Skills,078550,Discretionary Learning Support,Transport,235057,Public Transport,07-Mar-2023,000008692426200,WWW.GONORTHEAST.CO.UK,4111,Staff travelling,1.40,0.00,1.40
Children and Young Peoples Services,Head of Education and Skills,078550,Discretionary Learning Support,Transport,235057,Public Transport,07-Mar-2023,000008692426202,WWW.GONORTHEAST.CO.UK,4111,Staff travelling,1.40,0.00,1.40
Children and Young Peoples Services,Head of Education and Skills,078550,Discretionary Learning Support,Transport,235057,Public Transport,07-Mar-2023,000008692426206,WWW.GONORTHEAST.CO.UK,4111,Staff travelling,1.40,0.00,1.40
Children and Young Peoples Services,Head of Education and Skills,078550,Discretionary Learning Support,Transport,235057,Public Transport,07-Mar-2023,000008692426210,WWW.GONORTHEAST.CO.UK,4111,Staff travelling,1.40,0.00,1.40
Children and Young Peoples Services,Head of Education and Skills,078550,Discretionary Learning Support,Transport,235073,Public Transport,07-Mar-2023,000008692426212,WWW.GONORTHEAST.CO.UK,4111,Travel-clients/students/children,1.40,0.00,1.40
Regeneration Economy and Growth,Culture Sport and Tourism,011206,Sports 011206,Supplies and Services,304259,Equipment and Materials,07-Mar-2023,000008692426230,AMZNMktplace,5999,Equipment-purchase and rental,42.79,7.14,35.65
Regeneration Economy and Growth,Corporate Property and Land,015015,FM-Civic Bldgs-Spectrum 8 Seaham,Supplies and Services,304403,Equipment and Materials,07-Mar-2023,000008692426276,AMZNMktplace,5999,Other consumables,68.53,11.42,57.11
Children and Young Peoples Services,Head of Education and Skills,070264,EDC Premises,Supplies and Services,312009,Newspapers books and periodicals E312,07-Mar-2023,000008692426282,AMZN Mktp UK 1R2X58N54,5942,Newspapers books and periodicals,26.32,4.39,21.93
Children and Young Peoples Services,Head of Education and Skills,078561,DurhamEnable,Supplies and Services,364301,Grants to Voluntary Organisations,07-Mar-2023,000008692426284,WWW.GONORTHEAST.CO.UK,4111,Hardship,6.40,0.00,6.40
Children and Young Peoples Services,Head of Early Help Inclusion & Vulnerable Children.,088115,Young Parents Programme 088115,Supplies and Services,324117,Provisions E324,07-Mar-2023,000008692426300,ASDA GROCERIES ONLINE,5411,Catering costs - provisions,31.90,0.00,31.90
Children and Young Peoples Services,Head of Early Help Inclusion & Vulnerable Children.,088115,Young Parents Programme 088115,Supplies and Services,324117,Provisions E324,07-Mar-2023,000008692426304,ASDA GROCERIES ONLINE,5411,Catering costs - provisions,-2.00,0.00,-2.00
Children and Young Peoples Services,Head of Early Help Inclusion & Vulnerable Children.,074000,National Supporting Families Programme,Transfer Payments,525033,Other,07-Mar-2023,000008692426308,J DODDS CARPETS LTD,5713,Grants to individuals,175.14,29.19,145.95
Children and Young Peoples Services,Head of Early Help Inclusion & Vulnerable Children.,074000,National Supporting Families Programme,Transfer Payments,525033,Other,07-Mar-2023,000008692426308 - 1,J DODDS CARPETS LTD,5713,Grants to individuals,74.86,,74.86
Resources BK0010,Digital Services,065335,School Services - Implementations,Supplies and Services,342033,Computers and Communications,07-Mar-2023,000008692426320,PAYPAL LAPTOP-LCD,5732,Computer hardware,65.34,0.00,65.34
Resources BK0010,Digital Services,065323,Operations - Installations,Supplies and Services,304639,Equipment and Materials,07-Mar-2023,000008692426322,Connect Distribution S,5722,Technicians-supplies,37.39,0.00,37.39
Regeneration Economy and Growth,Economic Development Level C,030771,Durham Advance Flexible Fund,Transport,235057,Public Transport,07-Mar-2023,000008692426326,WALKERGATE CAR PAR,7523,Staff travelling,3.10,0.52,2.58
Children and Young Peoples Services,Head of Early Help Inclusion & Vulnerable Children.,085963,Maple House,Supplies and Services,304259,Equipment and Materials,07-Mar-2023,000008692426330,AMZNMktplace,5999,Equipment-purchase and rental,23.79,3.97,19.82
Children and Young Peoples Services,Head of Early Help Inclusion & Vulnerable Children.,085963,Maple House,Supplies and Services,304259,Equipment and Materials,07-Mar-2023,000008692426334,AMZNMktplace,5999,Equipment-purchase and rental,16.99,2.83,14.16
Children and Young Peoples Services,Head of Early Help Inclusion & Vulnerable Children.,085963,Maple House,Supplies and Services,304259,Equipment and Materials,07-Mar-2023,000008692426336,AMZNMktplace,5999,Equipment-purchase and rental,18.99,3.17,15.82
Children and Young Peoples Services,Head of Early Help Inclusion & Vulnerable Children.,085963,Maple House,Supplies and Services,304259,Equipment and Materials,07-Mar-2023,000008692426338,AMZNMktplace,5999,Equipment-purchase and rental,14.55,0.00,14.55
Regeneration Economy and Growth,Planning & Housing,031704,Care Connect - CCTV Countywide,Supplies and Services,384956,Miscellaneous Expenses,07-Mar-2023,000008692426368,SECURITY INDUSTRY AUTH,9399,Licences,190.00,0.00,190.00
Neighbourhoods and Climate Change,Community Protection,010809,Community Protection Management,Supplies and Services,338048,Services,07-Mar-2023,000008692426396,HMCTS DURHAM012,9222,Court costs 338048,226.00,0.00,226.00
Neighbourhoods and Climate Change,Environmental Services,010367,C&G - South Grounds Maintenance,Supplies and Services,304999,Equipment and Materials,07-Mar-2023,000008692426398,GRALANDS WOODWORK SUPP,5251,Misc equipment tools and materials,2.95,0.00,2.95
Children and Young Peoples Services,Head of Childrens Social Care,085333,Coxhoe Satelite Home,Supplies and Services,324117,Provisions E324,07-Mar-2023,000008692426426,SAINSBURY`S S/MKT,5411,Catering costs - provisions,117.85,0.00,117.85
Children and Young Peoples Services,Head of Childrens Social Care,085614,Families First Durham West,Supplies and Services,364301,Grants to Voluntary Organisations,07-Mar-2023,000008692426448,AMZNMktplace,5999,Hardship,120.99,20.17,100.82
Children and Young Peoples Services,Head of Childrens Social Care,085614,Families First Durham West,Supplies and Services,364301,Grants to Voluntary Organisations,07-Mar-2023,000008692426452,WWW.ARGOS.CO.UK,5311,Hardship,173.95,0.00,173.95
Children and Young Peoples Services,Head of Early Help Inclusion & Vulnerable Children.,088115,Young Parents Programme 088115,Supplies and Services,304259,Equipment and Materials,07-Mar-2023,000008692426454,ASDA GEORGE COM LEEDS,5411,Equipment-purchase and rental,122.95,0.00,122.95
Regeneration Economy and Growth,Planning & Housing,031500,Housing Solutions - Core,Supplies and Services,352001,Conference Expenses,07-Mar-2023,000008692426464,Roadchef Durham,7011,Conferencesseminars fees etc,7.50,0.00,7.50
Children and Young Peoples Services,Head of Early Help Inclusion & Vulnerable Children.,085962,Aycliffe Secure - Durham,Supplies and Services,332047,Printing Stationery and Gen Off Exps,07-Mar-2023,000008692426506,Showcase Cinemas,7832,Stationery,20.70,0.00,20.70
Children and Young Peoples Services,Head of Early Help Inclusion & Vulnerable Children.,085962,Aycliffe Secure - Durham,Supplies and Services,304403,Equipment and Materials,07-Mar-2023,000008692426510,AMZNMktplace,5999,Other consumables,13.99,2.33,11.66
Regeneration Economy and Growth,Culture Sport and Tourism,054233,Bishop Auckland Town Hall Library,Supplies and Services,324117,Provisions E324,07-Mar-2023,000008692426518,ASDA STORES,5411,Catering costs - provisions,41.16,0.00,41.16
Children and Young Peoples Services,Head of Childrens Social Care,085331,New Lea Childrens Home,Supplies and Services,304403,Equipment and Materials,07-Mar-2023,000008692426536,AMZNMKTPLACE AMAZON.CO,5999,Other consumables,18.84,0.00,18.84
Adult and Health Services,Head of Adults,052714,Development and Learning AHS 052714,Supplies and Services,372009,Subscriptions E372,07-Mar-2023,000008692426588,MA EDUCATION LTD,2741,Subscriptions 372009,144.00,0.00,144.00
Regeneration Economy and Growth,Culture Sport and Tourism,010664,Freemans Quay Leisure Centre,Supplies and Services,384999,Miscellaneous Expenses,07-Mar-2023,000008692426592,Amazon.co.uk 1R4MC4NQ4,5969,Other expenses,16.48,0.00,16.48
Resources BK0010,Digital Services,065481,Technical Services 065481,Supplies and Services,342033,Computers and Communications,07-Mar-2023,000008692426596,PAYPAL IASME,7372,Computer hardware,600.00,0.00,600.00
Adult and Health Services,Head of Adults,052127,North Durham 1 Psychosis MH,Supplies and Services,342033,Computers and Communications,07-Mar-2023,000008692426598,IANSYST LTD,7372,Computer hardware,230.40,0.00,230.40
Neighbourhoods and Climate Change,Environmental Services,010367,C&G - South Grounds Maintenance,Supplies and Services,304221,Equipment and Materials,07-Mar-2023,000008692426616,WINDLESTONE NURSERY LT,5261,Direct materials,88.00,0.00,88.00
Regeneration Economy and Growth,Communications Management,060270,Communications and Marketing,Supplies and Services,372009,Subscriptions E372,07-Mar-2023,000008692426634,LinkedIn Ads 882397759,7311,Subscriptions 372009,86.33,0.00,86.33
Resources BK0010,Digital Services,065432,Web Development Group,Supplies and Services,372009,Subscriptions E372,07-Mar-2023,000008692426638,WPMU DEV INCSUBFEE.COM,7372,Subscriptions 372009,15.84,0.00,15.84
Adult and Health Services,Head of Adults,055310,Positive Journeys (Tudhoe),Supplies and Services,304403,Equipment and Materials,07-Mar-2023,000008692426642,AMZ KnoWhite,5999,Other consumables,-20.99,-3.50,-17.49
Neighbourhoods and Climate Change,Environmental Services,011171,Nei.Prot - Allotments,Supplies and Services,304221,Equipment and Materials,07-Mar-2023,000008692426650,BTL TIMBER AND COUNTRY,5211,Direct materials,131.50,0.00,131.50
Children and Young Peoples Services,Head of Childrens Social Care,085331,New Lea Childrens Home,Supplies and Services,332047,Printing Stationery and Gen Off Exps,07-Mar-2023,000008692426694,ODEON CINEMAS,7832,Stationery,16.00,0.00,16.00
Children and Young Peoples Services,Head of Childrens Social Care,085331,New Lea Childrens Home,Supplies and Services,324117,Provisions E324,07-Mar-2023,000008692426696,SAINSBURYS SUPERMA,5411,Catering costs - provisions,5.20,0.00,5.20
Children and Young Peoples Services,Head of Childrens Social Care,085331,New Lea Childrens Home,Supplies and Services,324117,Provisions E324,07-Mar-2023,000008692426700,ASDA SUPERSTORE,5411,Catering costs - provisions,30.45,0.00,30.45
Regeneration Economy and Growth,Planning & Housing,031581,Prevention Fund,Transport,235057,Public Transport,07-Mar-2023,000008692426726,CHEVRON TAXIS,4121,Staff travelling,28.50,0.00,28.50
Regeneration Economy and Growth,Planning & Housing,031581,Prevention Fund,Transport,235057,Public Transport,07-Mar-2023,000008692426730,CHEVRON TAXIS,4121,Staff travelling,24.50,0.00,24.50
Regeneration Economy and Growth,Planning & Housing,031581,Prevention Fund,Transport,235057,Public Transport,07-Mar-2023,000008692426732,UBER TRIP,4121,Staff travelling,22.97,0.00,22.97
Regeneration Economy and Growth,Planning & Housing,031581,Prevention Fund,Transport,235057,Public Transport,07-Mar-2023,000008692426736,UBER TRIP,4121,Staff travelling,37.94,0.00,37.94
Regeneration Economy and Growth,Planning & Housing,031576,B& B - Temp Accom,Supplies and Services,364320,Grants to Voluntary Organisations,07-Mar-2023,000008692426738,Roadchef Durham,7011,Accommodation assistance,167.00,0.00,167.00
Regeneration Economy and Growth,Planning & Housing,031576,B& B - Temp Accom,Supplies and Services,364320,Grants to Voluntary Organisations,07-Mar-2023,000008692426742,Roadchef Durham,7011,Accommodation assistance,7.50,0.00,7.50
Regeneration Economy and Growth,Planning & Housing,031576,B& B - Temp Accom,Supplies and Services,364320,Grants to Voluntary Organisations,07-Mar-2023,000008692426744,Roadchef Durham,7011,Accommodation assistance,167.00,0.00,167.00
Regeneration Economy and Growth,Planning & Housing,031576,B& B - Temp Accom,Supplies and Services,364320,Grants to Voluntary Organisations,07-Mar-2023,000008692426748,Roadchef Durham,7011,Accommodation assistance,375.00,0.00,375.00
Regeneration Economy and Growth,Planning & Housing,031576,B& B - Temp Accom,Supplies and Services,364320,Grants to Voluntary Organisations,07-Mar-2023,000008692426750,Roadchef Durham,7011,Accommodation assistance,167.00,0.00,167.00
Regeneration Economy and Growth,Planning & Housing,031576,B& B - Temp Accom,Supplies and Services,364320,Grants to Voluntary Organisations,07-Mar-2023,000008692426754,Roadchef Durham,7011,Accommodation assistance,7.50,0.00,7.50
Regeneration Economy and Growth,Planning & Housing,031576,B& B - Temp Accom,Supplies and Services,364320,Grants to Voluntary Organisations,07-Mar-2023,000008692426756,Roadchef Durham,7011,Accommodation assistance,168.00,0.00,168.00
Regeneration Economy and Growth,Planning & Housing,031576,B& B - Temp Accom,Supplies and Services,364320,Grants to Voluntary Organisations,07-Mar-2023,000008692426760,Roadchef Durham,7011,Accommodation assistance,168.00,0.00,168.00
Regeneration Economy and Growth,Planning & Housing,031576,B& B - Temp Accom,Supplies and Services,364320,Grants to Voluntary Organisations,07-Mar-2023,000008692426762,Roadchef Durham,7011,Accommodation assistance,7.50,0.00,7.50
Regeneration Economy and Growth,Corporate Property and Land,010525,Catering - Green Lane,Supplies and Services,324117,Provisions E324,07-Mar-2023,000008692533164,JR HOLLAND FOODSERVICE,5499,Catering costs - provisions,-0.57,0.00,-0.57
Regeneration Economy and Growth,Corporate Property and Land,011275,Catering -Durham Leadership Centre,Supplies and Services,324117,Provisions E324,07-Mar-2023,000008692533168,JR HOLLAND FOODSERVICE,5499,Catering costs - provisions,123.66,0.00,123.66
Regeneration Economy and Growth,Culture Sport and Tourism,011265,Empire Theatre (Operations),Supplies and Services,324117,Provisions E324,07-Mar-2023,000008692533172,JR HOLLAND FOODSERVICE,5499,Catering costs - provisions,23.65,0.00,23.65
Regeneration Economy and Growth,Corporate Property and Land,011296,Catering - Dunes,Supplies and Services,324117,Provisions E324,07-Mar-2023,000008692533174,JR HOLLAND FOODSERVICE,5499,Catering costs - provisions,102.54,0.00,102.54
Regeneration Economy and Growth,Corporate Property and Land,030691,Catering - Durham Dales Centre,Supplies and Services,324117,Provisions E324,07-Mar-2023,000008692533184,HOPWELLS LTD,5811,Catering costs - provisions,81.89,0.00,81.89
Adult and Health Services,Head of Adults,055643,Hawthorn House LD Respite Unit,Supplies and Services,324117,Provisions E324,07-Mar-2023,000008692533188,HOPWELLS LTD,5811,Catering costs - provisions,-1.42,0.00,-1.42
Regeneration Economy and Growth,Corporate Property and Land,021234,Catering - Locomotion,Supplies and Services,384999,Miscellaneous Expenses,07-Mar-2023,000008692533192,ON A ROLL SANDWICH COM,5199,Other expenses,336.72,0.00,336.72
Regeneration Economy and Growth,Culture Sport and Tourism,011263,Louisa Centre 011263,Supplies and Services,324117,Provisions E324,07-Mar-2023,000008692533202,JR HOLLAND FOODSERVICE,5499,Catering costs - provisions,60.26,0.00,60.26
Regeneration Economy and Growth,Culture Sport and Tourism,054812,Gala Theatre - Catering etc,Supplies and Services,324117,Provisions E324,07-Mar-2023,000008692533206,JR HOLLAND FOODSERVICE,5499,Catering costs - provisions,108.77,0.00,108.77
Regeneration Economy and Growth,Corporate Property and Land,021242,Catering - County Hall,Supplies and Services,384999,Miscellaneous Expenses,07-Mar-2023,000008692533208,ON A ROLL SANDWICH COM,5199,Other expenses,96.25,0.00,96.25
Regeneration Economy and Growth,Corporate Property and Land,021242,Catering - County Hall,Supplies and Services,324117,Provisions E324,07-Mar-2023,000008692533212,JR HOLLAND FOODSERVICE,5499,Catering costs - provisions,217.63,0.00,217.63
Regeneration Economy and Growth,Business Durham CL0850,030689,Inward Investment and Aftercare,Supplies and Services,342222,Computers and Communications,07-Mar-2023,000008697959338,FASTHOSTS,4816,Comp hardware purch-network servers,17.98,0.00,17.98
Regeneration Economy and Growth,Business Durham CL0850,030689,Inward Investment and Aftercare,Supplies and Services,342222,Computers and Communications,07-Mar-2023,000008697959346,FASTHOSTS,4816,Comp hardware purch-network servers,6.94,0.00,6.94
Children and Young Peoples Services,Head of Early Help Inclusion & Vulnerable Children.,088111,Easington Horden & Seascape Family Centre,Supplies and Services,304259,Equipment and Materials,07-Mar-2023,000008697960112,AMZNMKTPLACE AMAZON.CO,5999,Equipment-purchase and rental,403.68,0.00,403.68
Regeneration Economy and Growth,Culture Sport and Tourism,054813,Gala Theatre - Technical,Supplies and Services,304259,Equipment and Materials,07-Mar-2023,000008697960212,AMZNBUSINESS 1R3XR6AV4,5999,Equipment-purchase and rental,122.64,20.44,102.20
Regeneration Economy and Growth,Culture Sport and Tourism,054813,Gala Theatre - Technical,Supplies and Services,304259,Equipment and Materials,07-Mar-2023,000008697960212 - 1,AMZNBUSINESS 1R3XR6AV4,5999,Equipment-purchase and rental,0.04,,0.04
Children and Young Peoples Services,Head of Early Help Inclusion & Vulnerable Children.,085963,Maple House,Supplies and Services,304403,Equipment and Materials,07-Mar-2023,000008697960430,AMZNMKTPLACE AMAZON.CO,5999,Other consumables,32.99,0.00,32.99
Children and Young Peoples Services,Head of Early Help Inclusion & Vulnerable Children.,085965,Barnard,Supplies and Services,384302,Miscellaneous Expenses,07-Mar-2023,000008697960530,AMZNMKTPLACE AMAZON.CO,5999,Activity expenses,27.79,4.63,23.16
Children and Young Peoples Services,Head of Early Help Inclusion & Vulnerable Children.,085965,Barnard,Supplies and Services,384302,Miscellaneous Expenses,07-Mar-2023,000008697960534,AMZNMKTPLACE AMAZON.CO,5999,Activity expenses,13.67,2.28,11.39
Children and Young Peoples Services,Head of Early Help Inclusion & Vulnerable Children.,085965,Barnard,Supplies and Services,384302,Miscellaneous Expenses,07-Mar-2023,000008697960542,AMZNMKTPLACE AMAZON.CO,5999,Activity expenses,91.68,15.28,76.40
Children and Young Peoples Services,Head of Early Help Inclusion & Vulnerable Children.,085965,Barnard,Supplies and Services,384302,Miscellaneous Expenses,07-Mar-2023,000008697960542 - 1,AMZNMKTPLACE AMAZON.CO,5999,Activity expenses,0.08,,0.08
Neighbourhoods and Climate Change,Environmental Services,019100,Fleet - Strategic Fleet,Supplies and Services,304403,Equipment and Materials,07-Mar-2023,000008697960822,AMZNMKTPLACE AMAZON.CO,5999,Other consumables,29.95,0.00,29.95
Children and Young Peoples Services,Head of Early Help Inclusion & Vulnerable Children.,085952,Secure Education,Supplies and Services,304259,Equipment and Materials,07-Mar-2023,000008697961310,AMZNMKTPLACE AMAZON.CO,5999,Equipment-purchase and rental,135.72,22.62,113.10
Children and Young Peoples Services,Head of Early Help Inclusion & Vulnerable Children.,085952,Secure Education,Supplies and Services,304259,Equipment and Materials,07-Mar-2023,000008697961310 - 1,AMZNMKTPLACE AMAZON.CO,5999,Equipment-purchase and rental,0.03,,0.03
Neighbourhoods and Climate Change,Environmental Services,031200,North Pennines Core,Supplies and Services,342222,Computers and Communications,07-Mar-2023,000008697961456,1 AND 1 IONOS LTD,4816,Comp hardware purch-network servers,76.80,0.00,76.80
